Workbook

Sheet job Order
B1: 1 | C1: 2 | D1: 3 | E1: 4 | F1: 5 | G1: 6 | H1: 7 | I1: 8 | J1: 9 | K1: 10 | L1: 11 | M1: 12 | N1: 13 | O1: 14 | P1: 15 | Q1: 16 | R1: 17 | S1: 18 | T1: 19 | U1: 20 | V1: 21 | W1: 22 | X1: 23 | Y1: 24 | Z1: 25 | AA1: 26 | AB1: 27 | AC1: 28 | AD1: 29 | AE1: 30 | AF1: 31 | AG1: 32 | AH1: 33 | AI1: 34 | AJ1: 35 | AK1: 36 | AL1: 37 | AM1: 38 | AN1: 39 | AO1: 40 | AP1: 41 | AQ1: 42 | AR1: 43 | AS1: 44 | AT1: 45 | AU1: 46 | AV1: 47 | AW1: 48 | AX1: 49 | AY1: 50 | AZ1: 51 | BA1: 52 | BB1: 53 | BC1: 54 | BD1: 55 | BE1: 56 | BF1: 57 | BG1: 58 | BH1: 59 | BI1: 60 | BJ1: 61 | BK1: 62 | BL1: 63 | BM1: 64 | BN1: 65 | BO1: 66 | BP1: 67 | BQ1: 68 | BR1: 69 | BS1: 70
A3: مسلسل | B3: رقم امر الشغل | C3: التاريخ | D3: اسم المنتج | E3: اسم المصنع | F3: اسم العميل | G3: الكميه | H3: عدد الشرائح | I3: نوع الشيت | J3: البكر | K3: عرض البكر | L3: طول | M3: السنة الاولي | N3: نوع الخامة | O3: معامل السنه الاولي | P3: جرام الورق | Q3: الوزن المطلوب | R3: السنة الثانية | S3: نوع الخامة2 | T3: معامل السنه الثانيه | U3: جرام الورق3 | V3: الوزن المطلوب4 | W3: الدهر الاول | X3: جرام الورق5 | Y3: الوزن المطلوب6 | Z3: الدهر الثاني | AA3: جرام الورق7 | AB3: الوزن المطلوب8 | AC3: دوبلكس الطباعه | AD3: جرام الورق2 | AE3: الوزن المطلوب9 | AF3: اسم المطبعه | AG3: الوان الطباعه | AH3: عدد الاطقم | AI3: مورد طبقه الحمايه | AJ3: طبقة الحماية | AK3: تشطيب | AL3: عدد الدبوس | AM3: عدد الربطه | AN3: عدد الكرسي | AO3: ارتفاع الربط | AP3: رقم تليفون العميل | AQ3: مكان التسليم | AR3: نوع التحميل | AS3: مقاس البالته | AT3: ارتفاع البالته | AU3: مورد الفورمه | AV3: رقم الفورمه | AW3: طول10 | AX3: عرض | AY3: ارتفاع | AZ3: الطعم 1 | BA3: الكميه 1 | BB3: الطعم 2 | BC3: الكميه 2 | BD3: الطعم 3 | BE3: الكميه 3 | BF3: الطعم 4 | BG3: الكميه 4 | BH3: الطعم 5 | BI3: الكميه 5 | BJ3: الطعم 6 | BK3: الكميه 6 | BL3: الطعم 7 | BM3: الكميه 7 | BN3: الطعم 8 | BO3: الكميه 8 | BP3: السعر | BQ3: سعر الصرف | BR3: ملاحظات | BS3: ملاحظات امر التوريد | BT3: الفرق في الكميه | BW3: الكميه المنتجه | BX3: الكميه المسلمه | BY3: الفرق
A4: =IF(D4<>"",MAX($A$1:A3)+1,"") -> 1 | B4: 3 | C4: 2020-01-04 | D4: كرتون - هالك مقاس صغير دوبل | E4: =IFERROR(VLOOKUP($D4,table2,2,0),"") ->  | F4: عميل نقدى | G4: 500 | H4: =IFERROR(VLOOKUP($D4,table2,17,0)*$G4,"") ->  | I4: =IFERROR(VLOOKUP($D4,table2,18,0),"") ->  | J4: =IFERROR(VLOOKUP($D4,table2,14,0),"") ->  | K4: =IFERROR(VLOOKUP($D4,table2,15,0),"") ->  | L4: =IFERROR(VLOOKUP($D4,table2,16,0),"") ->  | M4: =IFERROR(VLOOKUP($D4,table2,19,0),"") ->  | N4: =IFERROR(VLOOKUP($D4,table2,20,0),"") ->  | O4: =IFERROR(VLOOKUP($M4,#REF!,2,0),"") ->  | Q4: =IFERROR(ROUNDUP(($H4*$K4*$L4*$O4*$P4)/1000,),"------") -> ------ | R4: =IFERROR(VLOOKUP($D4,table2,21,0),"") ->  | S4: =IFERROR(VLOOKUP($D4,table2,22,0),"") ->  | T4: =IFERROR(VLOOKUP($R4,#REF!,2,0),"") ->  | V4: =IFERROR(ROUNDUP(($H4*$K4*$L4*$T4*$U4)/1000,),"------") -> ------ | W4: =IFERROR(VLOOKUP($D4,table2,23,0),"") ->  | Y4: =IFERROR(ROUNDUP(($H4*$K4*$L4*$X4)/1000,),"------") -> ------ | Z4: =IFERROR(VLOOKUP($D4,table2,24,0),"") ->  | AB4: =IFERROR(ROUNDUP(($H4*$K4*$L4*$AA4)/1000,),"------") -> ------ | AC4: =IFERROR(VLOOKUP($D4,table2,25,0),"") ->  | AE4: =IFERROR(ROUNDUP(($H4*$K4*$L4*$AD4)/1000,),"------") -> ------ | AF4: =IFERROR(VLOOKUP($D4,table2,27,0),"") ->  | AG4: =IFERROR(VLOOKUP($D4,table2,28,0),"") ->  | AH4: =IFERROR(VLOOKUP($D4,table2,29,0),"") ->  | AI4: =IFERROR(VLOOKUP($D4,table2,30,0),"") ->  | AJ4: =IFERROR(VLOOKUP($D4,table2,31,0),"") ->  | AK4: =IFERROR(VLOOKUP($D4,table2,32,0),"") ->  | AL4: =IFERROR(VLOOKUP($D4,table2,33,0),"") ->  | AM4: =IFERROR(VLOOKUP($D4,table2,34,0),"") ->  | AN4: =IFERROR(VLOOKUP($D4,table2,35,0),"") ->  | AO4: =IFERROR(VLOOKUP($D4,table2,36,0),"") ->  | AP4: =IFERROR(VLOOKUP($D4,table2,37,0),"") ->  | AQ4: =IFERROR(VLOOKUP($D4,table2,38,0),"") ->  | AR4: =IFERROR(VLOOKUP($D4,table2,39,0),"") ->  | AS4: =IFERROR(VLOOKUP($D4,table2,40,0),"") ->  | AT4: =IFERROR(VLOOKUP($D4,table2,41,0),"") ->  | AU4: =IFERROR(VLOOKUP($D4,table2,5,0),"") ->  | AV4: =IFERROR(VLOOKUP($D4,table2,6,0),"") ->  | AW4: =IFERROR(VLOOKUP($D4,table2,11,0),"") ->  | AX4: =IFERROR(VLOOKUP($D4,table2,12,0),"") ->  | AY4: =IFERROR(VLOOKUP($D4,table2,13,0),"") ->  | BP4: 3 | BQ4: 1 | BR4: =IFERROR(VLOOKUP($D4,table2,42,0),"") ->  | BW4: =IFERROR(VLOOKUP(Table4[[#This Row],[رقم امر الشغل]],table5,9,0),"") ->  | BX4: =IFERROR(VLOOKUP(Table4[[#This Row],[رقم امر الشغل]],table5,10,0),"") ->  | BY4: =IFERROR((BW4-BX4),"") -> 
A5: =IF(D5<>"",MAX($A$1:A4)+1,"") -> 2 | B5: 3650 | C5: 2020-01-07 | D5: كوين - علبه شيكولاته 1 كيلو كرسبي وبالبن | E5: عميل نقدى | F5: عميل نقدى | G5: 100 | O5: =IFERROR(VLOOKUP($M5,#REF!,2,0),"") ->  | Q5: ------ | T5: =IFERROR(VLOOKUP($R5,#REF!,2,0),"") ->  | V5: ------ | Y5: ------ | AB5: ------ | AE5: ------ | AR5: يدوي | BP5: 1.25 | BQ5: 1 | BS5: كوريشه هالك | BT5: -1 | BW5: =IFERROR(VLOOKUP(Table4[[#This Row],[رقم امر الشغل]],table5,9,0),"") ->  | BX5: =IFERROR(VLOOKUP(Table4[[#This Row],[رقم امر الشغل]],table5,10,0),"") -> 
A6: =IF(D6<>"",MAX($A$1:A5)+1,"") ->  | E6: =IFERROR(VLOOKUP($D6,table2,2,0),"") ->  | F6: =IFERROR(VLOOKUP($D6,table2,3,0),"") ->  | H6: =IFERROR(VLOOKUP($D6,table2,17,0)*$G6,"") ->  | I6: =IFERROR(VLOOKUP($D6,table2,18,0),"") ->  | J6: =IFERROR(VLOOKUP($D6,table2,14,0),"") ->  | K6: =IFERROR(VLOOKUP($D6,table2,15,0),"") ->  | L6: =IFERROR(VLOOKUP($D6,table2,16,0),"") ->  | M6: =IFERROR(VLOOKUP($D6,table2,19,0),"") ->  | N6: =IFERROR(VLOOKUP($D6,table2,20,0),"") ->  | O6: =IFERROR(VLOOKUP($M6,#REF!,2,0),"") ->  | Q6: =IFERROR(ROUNDUP(($H6*$K6*$L6*$O6*$P6)/1000,),"------") -> ------ | R6: =IFERROR(VLOOKUP($D6,table2,21,0),"") ->  | S6: =IFERROR(VLOOKUP($D6,table2,22,0),"") ->  | T6: =IFERROR(VLOOKUP($R6,#REF!,2,0),"") ->  | V6: =IFERROR(ROUNDUP(($H6*$K6*$L6*$T6*$U6)/1000,),"------") -> ------ | W6: =IFERROR(VLOOKUP($D6,table2,23,0),"") ->  | Y6: =IFERROR(ROUNDUP(($H6*$K6*$L6*$X6)/1000,),"------") -> ------ | Z6: =IFERROR(VLOOKUP($D6,table2,24,0),"") ->  | AB6: =IFERROR(ROUNDUP(($H6*$K6*$L6*$AA6)/1000,),"------") -> ------ | AC6: =IFERROR(VLOOKUP($D6,table2,25,0),"") ->  | AE6: =IFERROR(ROUNDUP(($H6*$K6*$L6*$AD6)/1000,),"------") -> ------ | AF6: =IFERROR(VLOOKUP($D6,table2,27,0),"") ->  | AG6: =IFERROR(VLOOKUP($D6,table2,28,0),"") ->  | AH6: =IFERROR(VLOOKUP($D6,table2,29,0),"") ->  | AI6: =IFERROR(VLOOKUP($D6,table2,30,0),"") ->  | AJ6: =IFERROR(VLOOKUP($D6,table2,31,0),"") ->  | AK6: =IFERROR(VLOOKUP($D6,table2,32,0),"") ->  | AL6: =IFERROR(VLOOKUP($D6,table2,33,0),"") ->  | AM6: =IFERROR(VLOOKUP($D6,table2,34,0),"") ->  | AN6: =IFERROR(VLOOKUP($D6,table2,35,0),"") ->  | AO6: =IFERROR(VLOOKUP($D6,table2,36,0),"") ->  | AP6: =IFERROR(VLOOKUP($D6,table2,37,0),"") ->  | AQ6: =IFERROR(VLOOKUP($D6,table2,38,0),"") ->  | AR6: =IFERROR(VLOOKUP($D6,table2,39,0),"") ->  | AS6: =IFERROR(VLOOKUP($D6,table2,40,0),"") ->  | AT6: =IFERROR(VLOOKUP($D6,table2,41,0),"") ->  | AU6: =IFERROR(VLOOKUP($D6,table2,5,0),"") ->  | AV6: =IFERROR(VLOOKUP($D6,table2,6,0),"") ->  | AW6: =IFERROR(VLOOKUP($D6,table2,11,0),"") ->  | AX6: =IFERROR(VLOOKUP($D6,table2,12,0),"") ->  | AY6: =IFERROR(VLOOKUP($D6,table2,13,0),"") ->  | BR6: =IFERROR(VLOOKUP($D6,table2,42,0),"") ->  | BW6: =IFERROR(VLOOKUP(Table4[[#This Row],[رقم امر الشغل]],table5,9,0),"") ->  | BX6: =IFERROR(VLOOKUP(Table4[[#This Row],[رقم امر الشغل]],table5,10,0),"") ->  | BY6: =IFERROR((BW6-BX6),"") -> 
A7: =IF(D7<>"",MAX($A$1:A6)+1,"") ->  | O7: =IFERROR(VLOOKUP($M7,#REF!,2,0),"") ->  | Q7: ------ | T7: =IFERROR(VLOOKUP($R7,#REF!,2,0),"") ->  | V7: ------ | Y7: ------ | AB7: ------ | AE7: ------ | BW7: =IFERROR(VLOOKUP(Table4[[#This Row],[رقم امر الشغل]],table5,9,0),"") ->  | BX7: =IFERROR(VLOOKUP(Table4[[#This Row],[رقم امر الشغل]],table5,10,0),"") -> 
A8: =IF(D8<>"",MAX($A$1:A7)+1,"") ->  | O8: =IFERROR(VLOOKUP($M8,#REF!,2,0),"") ->  | Q8: ------ | T8: =IFERROR(VLOOKUP($R8,#REF!,2,0),"") ->  | V8: ------ | Y8: ------ | AB8: ------ | AE8: ------ | BW8: =IFERROR(VLOOKUP(Table4[[#This Row],[رقم امر الشغل]],table5,9,0),"") ->  | BX8: =IFERROR(VLOOKUP(Table4[[#This Row],[رقم امر الشغل]],table5,10,0),"") -> 
A9: Total | BO9: =SUBTOTAL(103,Table4[الكميه 8]) -> 0 | BW9: =IFERROR(VLOOKUP(Table4[[#This Row],[رقم امر الشغل]],table5,9,0),"") ->  | BX9: =IFERROR(VLOOKUP(Table4[[#This Row],[رقم امر الشغل]],table5,10,0),"") ->  | BY9: =IFERROR((BW9-BX9),"") -> 
BW10: =IFERROR(VLOOKUP(Table4[[#This Row],[رقم امر الشغل]],table5,9,0),"") ->  | BX10: =IFERROR(VLOOKUP(Table4[[#This Row],[رقم امر الشغل]],table5,10,0),"") -> 
BW11: =IFERROR(VLOOKUP(Table4[[#This Row],[رقم امر الشغل]],table5,9,0),"") ->  | BX11: =IFERROR(VLOOKUP(Table4[[#This Row],[رقم امر الشغل]],table5,10,0),"") -> 
BW12: =IFERROR(VLOOKUP(Table4[[#This Row],[رقم امر الشغل]],table5,9,0),"") ->  | BX12: =IFERROR(VLOOKUP(Table4[[#This Row],[رقم امر الشغل]],table5,10,0),"") -> 
BW13: =IFERROR(VLOOKUP(Table4[[#This Row],[رقم امر الشغل]],table5,9,0),"") ->  | BX13: =IFERROR(VLOOKUP(Table4[[#This Row],[رقم امر الشغل]],table5,10,0),"") -> 
BW14: =IFERROR(VLOOKUP(Table4[[#This Row],[رقم امر الشغل]],table5,9,0),"") ->  | BX14: =IFERROR(VLOOKUP(Table4[[#This Row],[رقم امر الشغل]],table5,10,0),"") -> 
BW15: =IFERROR(VLOOKUP(Table4[[#This Row],[رقم امر الشغل]],table5,9,0),"") ->  | BX15: =IFERROR(VLOOKUP(Table4[[#This Row],[رقم امر الشغل]],table5,10,0),"") -> 
BW16: =IFERROR(VLOOKUP(Table4[[#This Row],[رقم امر الشغل]],table5,9,0),"") ->  | BX16: =IFERROR(VLOOKUP(Table4[[#This Row],[رقم امر الشغل]],table5,10,0),"") -> 
BW17: =IFERROR(VLOOKUP(Table4[[#This Row],[رقم امر الشغل]],table5,9,0),"") ->  | BX17: =IFERROR(VLOOKUP(Table4[[#This Row],[رقم امر الشغل]],table5,10,0),"") -> 
BW18: =IFERROR(VLOOKUP(Table4[[#This Row],[رقم امر الشغل]],table5,9,0),"") ->  | BX18: =IFERROR(VLOOKUP(Table4[[#This Row],[رقم امر الشغل]],table5,10,0),"") -> 
BW19: =IFERROR(VLOOKUP(Table4[[#This Row],[رقم امر الشغل]],table5,9,0),"") ->  | BX19: =IFERROR(VLOOKUP(Table4[[#This Row],[رقم امر الشغل]],table5,10,0),"") -> 
BW20: =IFERROR(VLOOKUP(Table4[[#This Row],[رقم امر الشغل]],table5,9,0),"") ->  | BX20: =IFERROR(VLOOKUP(Table4[[#This Row],[رقم امر الشغل]],table5,10,0),"") -> 
BW21: =IFERROR(VLOOKUP(Table4[[#This Row],[رقم امر الشغل]],table5,9,0),"") ->  | BX21: =IFERROR(VLOOKUP(Table4[[#This Row],[رقم امر الشغل]],table5,10,0),"") -> 
BW22: =IFERROR(VLOOKUP(Table4[[#This Row],[رقم امر الشغل]],table5,9,0),"") ->  | BX22: =IFERROR(VLOOKUP(Table4[[#This Row],[رقم امر الشغل]],table5,10,0),"") -> 
BW23: =IFERROR(VLOOKUP(Table4[[#This Row],[رقم امر الشغل]],table5,9,0),"") ->  | BX23: =IFERROR(VLOOKUP(Table4[[#This Row],[رقم امر الشغل]],table5,10,0),"") -> 
BW24: =IFERROR(VLOOKUP(Table4[[#This Row],[رقم امر الشغل]],table5,9,0),"") ->  | BX24: =IFERROR(VLOOKUP(Table4[[#This Row],[رقم امر الشغل]],table5,10,0),"") -> 
BW25: =IFERROR(VLOOKUP(Table4[[#This Row],[رقم امر الشغل]],table5,9,0),"") ->  | BX25: =IFERROR(VLOOKUP(Table4[[#This Row],[رقم امر الشغل]],table5,10,0),"") -> 
BW26: =IFERROR(VLOOKUP(Table4[[#This Row],[رقم امر الشغل]],table5,9,0),"") ->  | BX26: =IFERROR(VLOOKUP(Table4[[#This Row],[رقم امر الشغل]],table5,10,0),"") -> 
BW27: =IFERROR(VLOOKUP(Table4[[#This Row],[رقم امر الشغل]],table5,9,0),"") ->  | BX27: =IFERROR(VLOOKUP(Table4[[#This Row],[رقم امر الشغل]],table5,10,0),"") -> 
BW28: =IFERROR(VLOOKUP(Table4[[#This Row],[رقم امر الشغل]],table5,9,0),"") ->  | BX28: =IFERROR(VLOOKUP(Table4[[#This Row],[رقم امر الشغل]],table5,10,0),"") -> 
BW29: =IFERROR(VLOOKUP(Table4[[#This Row],[رقم امر الشغل]],table5,9,0),"") ->  | BX29: =IFERROR(VLOOKUP(Table4[[#This Row],[رقم امر الشغل]],table5,10,0),"") -> 
BW30: =IFERROR(VLOOKUP(Table4[[#This Row],[رقم امر الشغل]],table5,9,0),"") ->  | BX30: =IFERROR(VLOOKUP(Table4[[#This Row],[رقم امر الشغل]],table5,10,0),"") ->  | BY30: =IFERROR((BW30-BX30),"") -> 
BW31: =IFERROR(VLOOKUP(Table4[[#This Row],[رقم امر الشغل]],table5,9,0),"") ->  | BX31: =IFERROR(VLOOKUP(Table4[[#This Row],[رقم امر الشغل]],table5,10,0),"") -> 
BW32: =IFERROR(VLOOKUP(Table4[[#This Row],[رقم امر الشغل]],table5,9,0),"") ->  | BX32: =IFERROR(VLOOKUP(Table4[[#This Row],[رقم امر الشغل]],table5,10,0),"") -> 
BW33: =IFERROR(VLOOKUP(Table4[[#This Row],[رقم امر الشغل]],table5,9,0),"") ->  | BX33: =IFERROR(VLOOKUP(Table4[[#This Row],[رقم امر الشغل]],table5,10,0),"") -> 
BW34: =IFERROR(VLOOKUP(Table4[[#This Row],[رقم امر الشغل]],table5,9,0),"") ->  | BX34: =IFERROR(VLOOKUP(Table4[[#This Row],[رقم امر الشغل]],table5,10,0),"") -> 
BW35: =IFERROR(VLOOKUP(Table4[[#This Row],[رقم امر الشغل]],table5,9,0),"") ->  | BX35: =IFERROR(VLOOKUP(Table4[[#This Row],[رقم امر الشغل]],table5,10,0),"") -> 
BW36: =IFERROR(VLOOKUP(Table4[[#This Row],[رقم امر الشغل]],table5,9,0),"") ->  | BX36: =IFERROR(VLOOKUP(Table4[[#This Row],[رقم امر الشغل]],table5,10,0),"") -> 
BW37: =IFERROR(VLOOKUP(Table4[[#This Row],[رقم امر الشغل]],table5,9,0),"") ->  | BX37: =IFERROR(VLOOKUP(Table4[[#This Row],[رقم امر الشغل]],table5,10,0),"") -> 
BW38: =IFERROR(VLOOKUP(Table4[[#This Row],[رقم امر الشغل]],table5,9,0),"") ->  | BX38: =IFERROR(VLOOKUP(Table4[[#This Row],[رقم امر الشغل]],table5,10,0),"") -> 
BW39: =IFERROR(VLOOKUP(Table4[[#This Row],[رقم امر الشغل]],table5,9,0),"") ->  | BX39: =IFERROR(VLOOKUP(Table4[[#This Row],[رقم امر الشغل]],table5,10,0),"") -> 
BW40: =IFERROR(VLOOKUP(Table4[[#This Row],[رقم امر الشغل]],table5,9,0),"") ->  | BX40: =IFERROR(VLOOKUP(Table4[[#This Row],[رقم امر الشغل]],table5,10,0),"") -> 
BW41: =IFERROR(VLOOKUP(Table4[[#This Row],[رقم امر الشغل]],table5,9,0),"") ->  | BX41: =IFERROR(VLOOKUP(Table4[[#This Row],[رقم امر الشغل]],table5,10,0),"") -> 
BW42: =IFERROR(VLOOKUP(Table4[[#This Row],[رقم امر الشغل]],table5,9,0),"") ->  | BX42: =IFERROR(VLOOKUP(Table4[[#This Row],[رقم امر الشغل]],table5,10,0),"") -> 
BW43: =IFERROR(VLOOKUP(Table4[[#This Row],[رقم امر الشغل]],table5,9,0),"") ->  | BX43: =IFERROR(VLOOKUP(Table4[[#This Row],[رقم امر الشغل]],table5,10,0),"") -> 
BW44: =IFERROR(VLOOKUP(Table4[[#This Row],[رقم امر الشغل]],table5,9,0),"") ->  | BX44: =IFERROR(VLOOKUP(Table4[[#This Row],[رقم امر الشغل]],table5,10,0),"") -> 
BW45: =IFERROR(VLOOKUP(Table4[[#This Row],[رقم امر الشغل]],table5,9,0),"") ->  | BX45: =IFERROR(VLOOKUP(Table4[[#This Row],[رقم امر الشغل]],table5,10,0),"") -> 
BW46: =IFERROR(VLOOKUP(Table4[[#This Row],[رقم امر الشغل]],table5,9,0),"") ->  | BX46: =IFERROR(VLOOKUP(Table4[[#This Row],[رقم امر الشغل]],table5,10,0),"") -> 
BW47: =IFERROR(VLOOKUP(Table4[[#This Row],[رقم امر الشغل]],table5,9,0),"") ->  | BX47: =IFERROR(VLOOKUP(Table4[[#This Row],[رقم امر الشغل]],table5,10,0),"") -> 
BW48: =IFERROR(VLOOKUP(Table4[[#This Row],[رقم امر الشغل]],table5,9,0),"") ->  | BX48: =IFERROR(VLOOKUP(Table4[[#This Row],[رقم امر الشغل]],table5,10,0),"") -> 
BW49: =IFERROR(VLOOKUP(Table4[[#This Row],[رقم امر الشغل]],table5,9,0),"") ->  | BX49: =IFERROR(VLOOKUP(Table4[[#This Row],[رقم امر الشغل]],table5,10,0),"") -> 
BW50: =IFERROR(VLOOKUP(Table4[[#This Row],[رقم امر الشغل]],table5,9,0),"") ->  | BX50: =IFERROR(VLOOKUP(Table4[[#This Row],[رقم امر الشغل]],table5,10,0),"") -> 
BW51: =IFERROR(VLOOKUP(Table4[[#This Row],[رقم امر الشغل]],table5,9,0),"") ->  | BX51: =IFERROR(VLOOKUP(Table4[[#This Row],[رقم امر الشغل]],table5,10,0),"") -> 
BW52: =IFERROR(VLOOKUP(Table4[[#This Row],[رقم امر الشغل]],table5,9,0),"") ->  | BX52: =IFERROR(VLOOKUP(Table4[[#This Row],[رقم امر الشغل]],table5,10,0),"") -> 
BW53: =IFERROR(VLOOKUP(Table4[[#This Row],[رقم امر الشغل]],table5,9,0),"") ->  | BX53: =IFERROR(VLOOKUP(Table4[[#This Row],[رقم امر الشغل]],table5,10,0),"") -> 
BW54: =IFERROR(VLOOKUP(Table4[[#This Row],[رقم امر الشغل]],table5,9,0),"") ->  | BX54: =IFERROR(VLOOKUP(Table4[[#This Row],[رقم امر الشغل]],table5,10,0),"") -> 
BW55: =IFERROR(VLOOKUP(Table4[[#This Row],[رقم امر الشغل]],table5,9,0),"") ->  | BX55: =IFERROR(VLOOKUP(Table4[[#This Row],[رقم امر الشغل]],table5,10,0),"") -> 
BW56: =IFERROR(VLOOKUP(Table4[[#This Row],[رقم امر الشغل]],table5,9,0),"") ->  | BX56: =IFERROR(VLOOKUP(Table4[[#This Row],[رقم امر الشغل]],table5,10,0),"") -> 
BW57: =IFERROR(VLOOKUP(Table4[[#This Row],[رقم امر الشغل]],table5,9,0),"") ->  | BX57: =IFERROR(VLOOKUP(Table4[[#This Row],[رقم امر الشغل]],table5,10,0),"") -> 
BW58: =IFERROR(VLOOKUP(Table4[[#This Row],[رقم امر الشغل]],table5,9,0),"") ->  | BX58: =IFERROR(VLOOKUP(Table4[[#This Row],[رقم امر الشغل]],table5,10,0),"") -> 
BW59: =IFERROR(VLOOKUP(Table4[[#This Row],[رقم امر الشغل]],table5,9,0),"") ->  | BX59: =IFERROR(VLOOKUP(Table4[[#This Row],[رقم امر الشغل]],table5,10,0),"") -> 
BW60: =IFERROR(VLOOKUP(Table4[[#This Row],[رقم امر الشغل]],table5,9,0),"") ->  | BX60: =IFERROR(VLOOKUP(Table4[[#This Row],[رقم امر الشغل]],table5,10,0),"") -> 
BW61: =IFERROR(VLOOKUP(Table4[[#This Row],[رقم امر الشغل]],table5,9,0),"") ->  | BX61: =IFERROR(VLOOKUP(Table4[[#This Row],[رقم امر الشغل]],table5,10,0),"") -> 
BW62: =IFERROR(VLOOKUP(Table4[[#This Row],[رقم امر الشغل]],table5,9,0),"") ->  | BX62: =IFERROR(VLOOKUP(Table4[[#This Row],[رقم امر الشغل]],table5,10,0),"") -> 
BW63: =IFERROR(VLOOKUP(Table4[[#This Row],[رقم امر الشغل]],table5,9,0),"") ->  | BX63: =IFERROR(VLOOKUP(Table4[[#This Row],[رقم امر الشغل]],table5,10,0),"") -> 
BW64: =IFERROR(VLOOKUP(Table4[[#This Row],[رقم امر الشغل]],table5,9,0),"") ->  | BX64: =IFERROR(VLOOKUP(Table4[[#This Row],[رقم امر الشغل]],table5,10,0),"") -> 
BW65: =IFERROR(VLOOKUP(Table4[[#This Row],[رقم امر الشغل]],table5,9,0),"") ->  | BX65: =IFERROR(VLOOKUP(Table4[[#This Row],[رقم امر الشغل]],table5,10,0),"") -> 
BW66: =IFERROR(VLOOKUP(Table4[[#This Row],[رقم امر الشغل]],table5,9,0),"") ->  | BX66: =IFERROR(VLOOKUP(Table4[[#This Row],[رقم امر الشغل]],table5,10,0),"") -> 
BW67: =IFERROR(VLOOKUP(Table4[[#This Row],[رقم امر الشغل]],table5,9,0),"") ->  | BX67: =IFERROR(VLOOKUP(Table4[[#This Row],[رقم امر الشغل]],table5,10,0),"") -> 
BW68: =IFERROR(VLOOKUP(Table4[[#This Row],[رقم امر الشغل]],table5,9,0),"") ->  | BX68: =IFERROR(VLOOKUP(Table4[[#This Row],[رقم امر الشغل]],table5,10,0),"") -> 
BW69: =IFERROR(VLOOKUP(Table4[[#This Row],[رقم امر الشغل]],table5,9,0),"") ->  | BX69: =IFERROR(VLOOKUP(Table4[[#This Row],[رقم امر الشغل]],table5,10,0),"") -> 
BW70: =IFERROR(VLOOKUP(Table4[[#This Row],[رقم امر الشغل]],table5,9,0),"") ->  | BX70: =IFERROR(VLOOKUP(Table4[[#This Row],[رقم امر الشغل]],table5,10,0),"") -> 
BW71: =IFERROR(VLOOKUP(Table4[[#This Row],[رقم امر الشغل]],table5,9,0),"") ->  | BX71: =IFERROR(VLOOKUP(Table4[[#This Row],[رقم امر الشغل]],table5,10,0),"") -> 
BW72: =IFERROR(VLOOKUP(Table4[[#This Row],[رقم امر الشغل]],table5,9,0),"") ->  | BX72: =IFERROR(VLOOKUP(Table4[[#This Row],[رقم امر الشغل]],table5,10,0),"") -> 
BW73: =IFERROR(VLOOKUP(Table4[[#This Row],[رقم امر الشغل]],table5,9,0),"") ->  | BX73: =IFERROR(VLOOKUP(Table4[[#This Row],[رقم امر الشغل]],table5,10,0),"") -> 
BW74: =IFERROR(VLOOKUP(Table4[[#This Row],[رقم امر الشغل]],table5,9,0),"") ->  | BX74: =IFERROR(VLOOKUP(Table4[[#This Row],[رقم امر الشغل]],table5,10,0),"") -> 
BW75: =IFERROR(VLOOKUP(Table4[[#This Row],[رقم امر الشغل]],table5,9,0),"") ->  | BX75: =IFERROR(VLOOKUP(Table4[[#This Row],[رقم امر الشغل]],table5,10,0),"") -> 
BW76: =IFERROR(VLOOKUP(Table4[[#This Row],[رقم امر الشغل]],table5,9,0),"") ->  | BX76: =IFERROR(VLOOKUP(Table4[[#This Row],[رقم امر الشغل]],table5,10,0),"") -> 
BW77: =IFERROR(VLOOKUP(Table4[[#This Row],[رقم امر الشغل]],table5,9,0),"") ->  | BX77: =IFERROR(VLOOKUP(Table4[[#This Row],[رقم امر الشغل]],table5,10,0),"") -> 
BW78: =IFERROR(VLOOKUP(Table4[[#This Row],[رقم امر الشغل]],table5,9,0),"") ->  | BX78: =IFERROR(VLOOKUP(Table4[[#This Row],[رقم امر الشغل]],table5,10,0),"") -> 
BW79: =IFERROR(VLOOKUP(Table4[[#This Row],[رقم امر الشغل]],table5,9,0),"") ->  | BX79: =IFERROR(VLOOKUP(Table4[[#This Row],[رقم امر الشغل]],table5,10,0),"") -> 
BW80: =IFERROR(VLOOKUP(Table4[[#This Row],[رقم امر الشغل]],table5,9,0),"") ->  | BX80: =IFERROR(VLOOKUP(Table4[[#This Row],[رقم امر الشغل]],table5,10,0),"") -> 
BW81: =IFERROR(VLOOKUP(Table4[[#This Row],[رقم امر الشغل]],table5,9,0),"") ->  | BX81: =IFERROR(VLOOKUP(Table4[[#This Row],[رقم امر الشغل]],table5,10,0),"") -> 
BW82: =IFERROR(VLOOKUP(Table4[[#This Row],[رقم امر الشغل]],table5,9,0),"") ->  | BX82: =IFERROR(VLOOKUP(Table4[[#This Row],[رقم امر الشغل]],table5,10,0),"") -> 
BW83: =IFERROR(VLOOKUP(Table4[[#This Row],[رقم امر الشغل]],table5,9,0),"") ->  | BX83: =IFERROR(VLOOKUP(Table4[[#This Row],[رقم امر الشغل]],table5,10,0),"") -> 
BW84: =IFERROR(VLOOKUP(Table4[[#This Row],[رقم امر الشغل]],table5,9,0),"") ->  | BX84: =IFERROR(VLOOKUP(Table4[[#This Row],[رقم امر الشغل]],table5,10,0),"") -> 
BW85: =IFERROR(VLOOKUP(Table4[[#This Row],[رقم امر الشغل]],table5,9,0),"") ->  | BX85: =IFERROR(VLOOKUP(Table4[[#This Row],[رقم امر الشغل]],table5,10,0),"") -> 
BW86: =IFERROR(VLOOKUP(Table4[[#This Row],[رقم امر الشغل]],table5,9,0),"") ->  | BX86: =IFERROR(VLOOKUP(Table4[[#This Row],[رقم امر الشغل]],table5,10,0),"") -> 
BW87: =IFERROR(VLOOKUP(Table4[[#This Row],[رقم امر الشغل]],table5,9,0),"") ->  | BX87: =IFERROR(VLOOKUP(Table4[[#This Row],[رقم امر الشغل]],table5,10,0),"") -> 
BW88: =IFERROR(VLOOKUP(Table4[[#This Row],[رقم امر الشغل]],table5,9,0),"") ->  | BX88: =IFERROR(VLOOKUP(Table4[[#This Row],[رقم امر الشغل]],table5,10,0),"") -> 
BW89: =IFERROR(VLOOKUP(Table4[[#This Row],[رقم امر الشغل]],table5,9,0),"") ->  | BX89: =IFERROR(VLOOKUP(Table4[[#This Row],[رقم امر الشغل]],table5,10,0),"") -> 
BW90: =IFERROR(VLOOKUP(Table4[[#This Row],[رقم امر الشغل]],table5,9,0),"") ->  | BX90: =IFERROR(VLOOKUP(Table4[[#This Row],[رقم امر الشغل]],table5,10,0),"") -> 
BW91: =IFERROR(VLOOKUP(Table4[[#This Row],[رقم امر الشغل]],table5,9,0),"") ->  | BX91: =IFERROR(VLOOKUP(Table4[[#This Row],[رقم امر الشغل]],table5,10,0),"") -> 
BW92: =IFERROR(VLOOKUP(Table4[[#This Row],[رقم امر الشغل]],table5,9,0),"") ->  | BX92: =IFERROR(VLOOKUP(Table4[[#This Row],[رقم امر الشغل]],table5,10,0),"") -> 
BW93: =IFERROR(VLOOKUP(Table4[[#This Row],[رقم امر الشغل]],table5,9,0),"") ->  | BX93: =IFERROR(VLOOKUP(Table4[[#This Row],[رقم امر الشغل]],table5,10,0),"") -> 
BW94: =IFERROR(VLOOKUP(Table4[[#This Row],[رقم امر الشغل]],table5,9,0),"") ->  | BX94: =IFERROR(VLOOKUP(Table4[[#This Row],[رقم امر الشغل]],table5,10,0),"") ->  | BY94: =IFERROR((BW94-BX94),"") -> 
BW95: =IFERROR(VLOOKUP(Table4[[#This Row],[رقم امر الشغل]],table5,9,0),"") ->  | BX95: =IFERROR(VLOOKUP(Table4[[#This Row],[رقم امر الشغل]],table5,10,0),"") -> 
BW96: =IFERROR(VLOOKUP(Table4[[#This Row],[رقم امر الشغل]],table5,9,0),"") ->  | BX96: =IFERROR(VLOOKUP(Table4[[#This Row],[رقم امر الشغل]],table5,10,0),"") -> 
BW97: =IFERROR(VLOOKUP(Table4[[#This Row],[رقم امر الشغل]],table5,9,0),"") ->  | BX97: =IFERROR(VLOOKUP(Table4[[#This Row],[رقم امر الشغل]],table5,10,0),"") -> 
BW98: =IFERROR(VLOOKUP(Table4[[#This Row],[رقم امر الشغل]],table5,9,0),"") ->  | BX98: =IFERROR(VLOOKUP(Table4[[#This Row],[رقم امر الشغل]],table5,10,0),"") -> 
BW99: =IFERROR(VLOOKUP(Table4[[#This Row],[رقم امر الشغل]],table5,9,0),"") ->  | BX99: =IFERROR(VLOOKUP(Table4[[#This Row],[رقم امر الشغل]],table5,10,0),"") -> 
BW100: =IFERROR(VLOOKUP(Table4[[#This Row],[رقم امر الشغل]],table5,9,0),"") ->  | BX100: =IFERROR(VLOOKUP(Table4[[#This Row],[رقم امر الشغل]],table5,10,0),"") -> 
BW101: =IFERROR(VLOOKUP(Table4[[#This Row],[رقم امر الشغل]],table5,9,0),"") ->  | BX101: =IFERROR(VLOOKUP(Table4[[#This Row],[رقم امر الشغل]],table5,10,0),"") -> 
BW102: =IFERROR(VLOOKUP(Table4[[#This Row],[رقم امر الشغل]],table5,9,0),"") ->  | BX102: =IFERROR(VLOOKUP(Table4[[#This Row],[رقم امر الشغل]],table5,10,0),"") -> 
BW103: =IFERROR(VLOOKUP(Table4[[#This Row],[رقم امر الشغل]],table5,9,0),"") ->  | BX103: =IFERROR(VLOOKUP(Table4[[#This Row],[رقم امر الشغل]],table5,10,0),"") -> 
BW104: =IFERROR(VLOOKUP(Table4[[#This Row],[رقم امر الشغل]],table5,9,0),"") ->  | BX104: =IFERROR(VLOOKUP(Table4[[#This Row],[رقم امر الشغل]],table5,10,0),"") -> 
BW105: =IFERROR(VLOOKUP(Table4[[#This Row],[رقم امر الشغل]],table5,9,0),"") ->  | BX105: =IFERROR(VLOOKUP(Table4[[#This Row],[رقم امر الشغل]],table5,10,0),"") -> 
BW106: =IFERROR(VLOOKUP(Table4[[#This Row],[رقم امر الشغل]],table5,9,0),"") ->  | BX106: =IFERROR(VLOOKUP(Table4[[#This Row],[رقم امر الشغل]],table5,10,0),"") -> 
BW107: =IFERROR(VLOOKUP(Table4[[#This Row],[رقم امر الشغل]],table5,9,0),"") ->  | BX107: =IFERROR(VLOOKUP(Table4[[#This Row],[رقم امر الشغل]],table5,10,0),"") -> 
BW108: =IFERROR(VLOOKUP(Table4[[#This Row],[رقم امر الشغل]],table5,9,0),"") ->  | BX108: =IFERROR(VLOOKUP(Table4[[#This Row],[رقم امر الشغل]],table5,10,0),"") -> 
BW109: =IFERROR(VLOOKUP(Table4[[#This Row],[رقم امر الشغل]],table5,9,0),"") ->  | BX109: =IFERROR(VLOOKUP(Table4[[#This Row],[رقم امر الشغل]],table5,10,0),"") -> 
BW110: =IFERROR(VLOOKUP(Table4[[#This Row],[رقم امر الشغل]],table5,9,0),"") ->  | BX110: =IFERROR(VLOOKUP(Table4[[#This Row],[رقم امر الشغل]],table5,10,0),"") -> 
BW111: =IFERROR(VLOOKUP(Table4[[#This Row],[رقم امر الشغل]],table5,9,0),"") ->  | BX111: =IFERROR(VLOOKUP(Table4[[#This Row],[رقم امر الشغل]],table5,10,0),"") -> 
BW112: =IFERROR(VLOOKUP(Table4[[#This Row],[رقم امر الشغل]],table5,9,0),"") ->  | BX112: =IFERROR(VLOOKUP(Table4[[#This Row],[رقم امر الشغل]],table5,10,0),"") -> 
BW113: =IFERROR(VLOOKUP(Table4[[#This Row],[رقم امر الشغل]],table5,9,0),"") ->  | BX113: =IFERROR(VLOOKUP(Table4[[#This Row],[رقم امر الشغل]],table5,10,0),"") -> 
BW114: =IFERROR(VLOOKUP(Table4[[#This Row],[رقم امر الشغل]],table5,9,0),"") ->  | BX114: =IFERROR(VLOOKUP(Table4[[#This Row],[رقم امر الشغل]],table5,10,0),"") -> 
BW115: =IFERROR(VLOOKUP(Table4[[#This Row],[رقم امر الشغل]],table5,9,0),"") ->  | BX115: =IFERROR(VLOOKUP(Table4[[#This Row],[رقم امر الشغل]],table5,10,0),"") -> 
BW116: =IFERROR(VLOOKUP(Table4[[#This Row],[رقم امر الشغل]],table5,9,0),"") ->  | BX116: =IFERROR(VLOOKUP(Table4[[#This Row],[رقم امر الشغل]],table5,10,0),"") -> 
BW117: =IFERROR(VLOOKUP(Table4[[#This Row],[رقم امر الشغل]],table5,9,0),"") ->  | BX117: =IFERROR(VLOOKUP(Table4[[#This Row],[رقم امر الشغل]],table5,10,0),"") -> 
BW118: =IFERROR(VLOOKUP(Table4[[#This Row],[رقم امر الشغل]],table5,9,0),"") ->  | BX118: =IFERROR(VLOOKUP(Table4[[#This Row],[رقم امر الشغل]],table5,10,0),"") -> 
BW119: =IFERROR(VLOOKUP(Table4[[#This Row],[رقم امر الشغل]],table5,9,0),"") ->  | BX119: =IFERROR(VLOOKUP(Table4[[#This Row],[رقم امر الشغل]],table5,10,0),"") -> 
BW120: =IFERROR(VLOOKUP(Table4[[#This Row],[رقم امر الشغل]],table5,9,0),"") ->  | BX120: =IFERROR(VLOOKUP(Table4[[#This Row],[رقم امر الشغل]],table5,10,0),"") -> 
BW121: =IFERROR(VLOOKUP(Table4[[#This Row],[رقم امر الشغل]],table5,9,0),"") ->  | BX121: =IFERROR(VLOOKUP(Table4[[#This Row],[رقم امر الشغل]],table5,10,0),"") -> 
BW122: =IFERROR(VLOOKUP(Table4[[#This Row],[رقم امر الشغل]],table5,9,0),"") ->  | BX122: =IFERROR(VLOOKUP(Table4[[#This Row],[رقم امر الشغل]],table5,10,0),"") -> 
BW123: =IFERROR(VLOOKUP(Table4[[#This Row],[رقم امر الشغل]],table5,9,0),"") ->  | BX123: =IFERROR(VLOOKUP(Table4[[#This Row],[رقم امر الشغل]],table5,10,0),"") -> 
BW124: =IFERROR(VLOOKUP(Table4[[#This Row],[رقم امر الشغل]],table5,9,0),"") ->  | BX124: =IFERROR(VLOOKUP(Table4[[#This Row],[رقم امر الشغل]],table5,10,0),"") -> 
BW125: =IFERROR(VLOOKUP(Table4[[#This Row],[رقم امر الشغل]],table5,9,0),"") ->  | BX125: =IFERROR(VLOOKUP(Table4[[#This Row],[رقم امر الشغل]],table5,10,0),"") -> 
BW126: =IFERROR(VLOOKUP(Table4[[#This Row],[رقم امر الشغل]],table5,9,0),"") ->  | BX126: =IFERROR(VLOOKUP(Table4[[#This Row],[رقم امر الشغل]],table5,10,0),"") -> 
BW127: =IFERROR(VLOOKUP(Table4[[#This Row],[رقم امر الشغل]],table5,9,0),"") ->  | BX127: =IFERROR(VLOOKUP(Table4[[#This Row],[رقم امر الشغل]],table5,10,0),"") -> 
BW128: =IFERROR(VLOOKUP(Table4[[#This Row],[رقم امر الشغل]],table5,9,0),"") ->  | BX128: =IFERROR(VLOOKUP(Table4[[#This Row],[رقم امر الشغل]],table5,10,0),"") -> 
BW129: =IFERROR(VLOOKUP(Table4[[#This Row],[رقم امر الشغل]],table5,9,0),"") ->  | BX129: =IFERROR(VLOOKUP(Table4[[#This Row],[رقم امر الشغل]],table5,10,0),"") -> 
BW130: =IFERROR(VLOOKUP(Table4[[#This Row],[رقم امر الشغل]],table5,9,0),"") ->  | BX130: =IFERROR(VLOOKUP(Table4[[#This Row],[رقم امر الشغل]],table5,10,0),"") -> 
BW131: =IFERROR(VLOOKUP(Table4[[#This Row],[رقم امر الشغل]],table5,9,0),"") ->  | BX131: =IFERROR(VLOOKUP(Table4[[#This Row],[رقم امر الشغل]],table5,10,0),"") -> 
BW132: =IFERROR(VLOOKUP(Table4[[#This Row],[رقم امر الشغل]],table5,9,0),"") ->  | BX132: =IFERROR(VLOOKUP(Table4[[#This Row],[رقم امر الشغل]],table5,10,0),"") -> 
BW133: =IFERROR(VLOOKUP(Table4[[#This Row],[رقم امر الشغل]],table5,9,0),"") ->  | BX133: =IFERROR(VLOOKUP(Table4[[#This Row],[رقم امر الشغل]],table5,10,0),"") -> 
BW134: =IFERROR(VLOOKUP(Table4[[#This Row],[رقم امر الشغل]],table5,9,0),"") ->  | BX134: =IFERROR(VLOOKUP(Table4[[#This Row],[رقم امر الشغل]],table5,10,0),"") -> 
BW135: =IFERROR(VLOOKUP(Table4[[#This Row],[رقم امر الشغل]],table5,9,0),"") ->  | BX135: =IFERROR(VLOOKUP(Table4[[#This Row],[رقم امر الشغل]],table5,10,0),"") -> 
BW136: =IFERROR(VLOOKUP(Table4[[#This Row],[رقم امر الشغل]],table5,9,0),"") ->  | BX136: =IFERROR(VLOOKUP(Table4[[#This Row],[رقم امر الشغل]],table5,10,0),"") -> 
BW137: =IFERROR(VLOOKUP(Table4[[#This Row],[رقم امر الشغل]],table5,9,0),"") ->  | BX137: =IFERROR(VLOOKUP(Table4[[#This Row],[رقم امر الشغل]],table5,10,0),"") -> 
BW138: =IFERROR(VLOOKUP(Table4[[#This Row],[رقم امر الشغل]],table5,9,0),"") ->  | BX138: =IFERROR(VLOOKUP(Table4[[#This Row],[رقم امر الشغل]],table5,10,0),"") -> 
BW139: =IFERROR(VLOOKUP(Table4[[#This Row],[رقم امر الشغل]],table5,9,0),"") ->  | BX139: =IFERROR(VLOOKUP(Table4[[#This Row],[رقم امر الشغل]],table5,10,0),"") -> 
BW140: =IFERROR(VLOOKUP(Table4[[#This Row],[رقم امر الشغل]],table5,9,0),"") ->  | BX140: =IFERROR(VLOOKUP(Table4[[#This Row],[رقم امر الشغل]],table5,10,0),"") -> 
BW141: =IFERROR(VLOOKUP(Table4[[#This Row],[رقم امر الشغل]],table5,9,0),"") ->  | BX141: =IFERROR(VLOOKUP(Table4[[#This Row],[رقم امر الشغل]],table5,10,0),"") -> 
BW142: =IFERROR(VLOOKUP(Table4[[#This Row],[رقم امر الشغل]],table5,9,0),"") ->  | BX142: =IFERROR(VLOOKUP(Table4[[#This Row],[رقم امر الشغل]],table5,10,0),"") -> 
BW143: =IFERROR(VLOOKUP(Table4[[#This Row],[رقم امر الشغل]],table5,9,0),"") ->  | BX143: =IFERROR(VLOOKUP(Table4[[#This Row],[رقم امر الشغل]],table5,10,0),"") -> 
BW144: =IFERROR(VLOOKUP(Table4[[#This Row],[رقم امر الشغل]],table5,9,0),"") ->  | BX144: =IFERROR(VLOOKUP(Table4[[#This Row],[رقم امر الشغل]],table5,10,0),"") -> 
BW145: =IFERROR(VLOOKUP(Table4[[#This Row],[رقم امر الشغل]],table5,9,0),"") ->  | BX145: =IFERROR(VLOOKUP(Table4[[#This Row],[رقم امر الشغل]],table5,10,0),"") -> 
BW146: =IFERROR(VLOOKUP(Table4[[#This Row],[رقم امر الشغل]],table5,9,0),"") ->  | BX146: =IFERROR(VLOOKUP(Table4[[#This Row],[رقم امر الشغل]],table5,10,0),"") -> 
BW147: =IFERROR(VLOOKUP(Table4[[#This Row],[رقم امر الشغل]],table5,9,0),"") ->  | BX147: =IFERROR(VLOOKUP(Table4[[#This Row],[رقم امر الشغل]],table5,10,0),"") -> 
BW148: =IFERROR(VLOOKUP(Table4[[#This Row],[رقم امر الشغل]],table5,9,0),"") ->  | BX148: =IFERROR(VLOOKUP(Table4[[#This Row],[رقم امر الشغل]],table5,10,0),"") -> 
BW149: =IFERROR(VLOOKUP(Table4[[#This Row],[رقم امر الشغل]],table5,9,0),"") ->  | BX149: =IFERROR(VLOOKUP(Table4[[#This Row],[رقم امر الشغل]],table5,10,0),"") -> 
BW150: =IFERROR(VLOOKUP(Table4[[#This Row],[رقم امر الشغل]],table5,9,0),"") ->  | BX150: =IFERROR(VLOOKUP(Table4[[#This Row],[رقم امر الشغل]],table5,10,0),"") -> 
BW151: =IFERROR(VLOOKUP(Table4[[#This Row],[رقم امر الشغل]],table5,9,0),"") ->  | BX151: =IFERROR(VLOOKUP(Table4[[#This Row],[رقم امر الشغل]],table5,10,0),"") -> 
BW152: =IFERROR(VLOOKUP(Table4[[#This Row],[رقم امر الشغل]],table5,9,0),"") ->  | BX152: =IFERROR(VLOOKUP(Table4[[#This Row],[رقم امر الشغل]],table5,10,0),"") -> 
BW153: =IFERROR(VLOOKUP(Table4[[#This Row],[رقم امر الشغل]],table5,9,0),"") ->  | BX153: =IFERROR(VLOOKUP(Table4[[#This Row],[رقم امر الشغل]],table5,10,0),"") -> 
BW154: =IFERROR(VLOOKUP(Table4[[#This Row],[رقم امر الشغل]],table5,9,0),"") ->  | BX154: =IFERROR(VLOOKUP(Table4[[#This Row],[رقم امر الشغل]],table5,10,0),"") -> 
BW155: =IFERROR(VLOOKUP(Table4[[#This Row],[رقم امر الشغل]],table5,9,0),"") ->  | BX155: =IFERROR(VLOOKUP(Table4[[#This Row],[رقم امر الشغل]],table5,10,0),"") -> 
BW156: =IFERROR(VLOOKUP(Table4[[#This Row],[رقم امر الشغل]],table5,9,0),"") ->  | BX156: =IFERROR(VLOOKUP(Table4[[#This Row],[رقم امر الشغل]],table5,10,0),"") -> 
BW157: =IFERROR(VLOOKUP(Table4[[#This Row],[رقم امر الشغل]],table5,9,0),"") ->  | BX157: =IFERROR(VLOOKUP(Table4[[#This Row],[رقم امر الشغل]],table5,10,0),"") -> 
BW158: =IFERROR(VLOOKUP(Table4[[#This Row],[رقم امر الشغل]],table5,9,0),"") ->  | BX158: =IFERROR(VLOOKUP(Table4[[#This Row],[رقم امر الشغل]],table5,10,0),"") ->  | BY158: =IFERROR((BW158-BX158),"") -> 
BW159: =IFERROR(VLOOKUP(Table4[[#This Row],[رقم امر الشغل]],table5,9,0),"") ->  | BX159: =IFERROR(VLOOKUP(Table4[[#This Row],[رقم امر الشغل]],table5,10,0),"") -> 
BW160: =IFERROR(VLOOKUP(Table4[[#This Row],[رقم امر الشغل]],table5,9,0),"") ->  | BX160: =IFERROR(VLOOKUP(Table4[[#This Row],[رقم امر الشغل]],table5,10,0),"") -> 
BW161: =IFERROR(VLOOKUP(Table4[[#This Row],[رقم امر الشغل]],table5,9,0),"") ->  | BX161: =IFERROR(VLOOKUP(Table4[[#This Row],[رقم امر الشغل]],table5,10,0),"") -> 
BW162: =IFERROR(VLOOKUP(Table4[[#This Row],[رقم امر الشغل]],table5,9,0),"") ->  | BX162: =IFERROR(VLOOKUP(Table4[[#This Row],[رقم امر الشغل]],table5,10,0),"") -> 
BW163: =IFERROR(VLOOKUP(Table4[[#This Row],[رقم امر الشغل]],table5,9,0),"") ->  | BX163: =IFERROR(VLOOKUP(Table4[[#This Row],[رقم امر الشغل]],table5,10,0),"") -> 
BW164: =IFERROR(VLOOKUP(Table4[[#This Row],[رقم امر الشغل]],table5,9,0),"") ->  | BX164: =IFERROR(VLOOKUP(Table4[[#This Row],[رقم امر الشغل]],table5,10,0),"") -> 
BW165: =IFERROR(VLOOKUP(Table4[[#This Row],[رقم امر الشغل]],table5,9,0),"") ->  | BX165: =IFERROR(VLOOKUP(Table4[[#This Row],[رقم امر الشغل]],table5,10,0),"") -> 
BW166: =IFERROR(VLOOKUP(Table4[[#This Row],[رقم امر الشغل]],table5,9,0),"") ->  | BX166: =IFERROR(VLOOKUP(Table4[[#This Row],[رقم امر الشغل]],table5,10,0),"") -> 
BW167: =IFERROR(VLOOKUP(Table4[[#This Row],[رقم امر الشغل]],table5,9,0),"") ->  | BX167: =IFERROR(VLOOKUP(Table4[[#This Row],[رقم امر الشغل]],table5,10,0),"") -> 
BW168: =IFERROR(VLOOKUP(Table4[[#This Row],[رقم امر الشغل]],table5,9,0),"") ->  | BX168: =IFERROR(VLOOKUP(Table4[[#This Row],[رقم امر الشغل]],table5,10,0),"") -> 
BW169: =IFERROR(VLOOKUP(Table4[[#This Row],[رقم امر الشغل]],table5,9,0),"") ->  | BX169: =IFERROR(VLOOKUP(Table4[[#This Row],[رقم امر الشغل]],table5,10,0),"") -> 
BW170: =IFERROR(VLOOKUP(Table4[[#This Row],[رقم امر الشغل]],table5,9,0),"") ->  | BX170: =IFERROR(VLOOKUP(Table4[[#This Row],[رقم امر الشغل]],table5,10,0),"") -> 
BW171: =IFERROR(VLOOKUP(Table4[[#This Row],[رقم امر الشغل]],table5,9,0),"") ->  | BX171: =IFERROR(VLOOKUP(Table4[[#This Row],[رقم امر الشغل]],table5,10,0),"") -> 
BW172: =IFERROR(VLOOKUP(Table4[[#This Row],[رقم امر الشغل]],table5,9,0),"") ->  | BX172: =IFERROR(VLOOKUP(Table4[[#This Row],[رقم امر الشغل]],table5,10,0),"") -> 
BW173: =IFERROR(VLOOKUP(Table4[[#This Row],[رقم امر الشغل]],table5,9,0),"") ->  | BX173: =IFERROR(VLOOKUP(Table4[[#This Row],[رقم امر الشغل]],table5,10,0),"") -> 
BW174: =IFERROR(VLOOKUP(Table4[[#This Row],[رقم امر الشغل]],table5,9,0),"") ->  | BX174: =IFERROR(VLOOKUP(Table4[[#This Row],[رقم امر الشغل]],table5,10,0),"") -> 
BW175: =IFERROR(VLOOKUP(Table4[[#This Row],[رقم امر الشغل]],table5,9,0),"") ->  | BX175: =IFERROR(VLOOKUP(Table4[[#This Row],[رقم امر الشغل]],table5,10,0),"") -> 
BW176: =IFERROR(VLOOKUP(Table4[[#This Row],[رقم امر الشغل]],table5,9,0),"") ->  | BX176: =IFERROR(VLOOKUP(Table4[[#This Row],[رقم امر الشغل]],table5,10,0),"") -> 
BW177: =IFERROR(VLOOKUP(Table4[[#This Row],[رقم امر الشغل]],table5,9,0),"") ->  | BX177: =IFERROR(VLOOKUP(Table4[[#This Row],[رقم امر الشغل]],table5,10,0),"") -> 
BW178: =IFERROR(VLOOKUP(Table4[[#This Row],[رقم امر الشغل]],table5,9,0),"") ->  | BX178: =IFERROR(VLOOKUP(Table4[[#This Row],[رقم امر الشغل]],table5,10,0),"") -> 
BW179: =IFERROR(VLOOKUP(Table4[[#This Row],[رقم امر الشغل]],table5,9,0),"") ->  | BX179: =IFERROR(VLOOKUP(Table4[[#This Row],[رقم امر الشغل]],table5,10,0),"") -> 
BW180: =IFERROR(VLOOKUP(Table4[[#This Row],[رقم امر الشغل]],table5,9,0),"") ->  | BX180: =IFERROR(VLOOKUP(Table4[[#This Row],[رقم امر الشغل]],table5,10,0),"") -> 
BW181: =IFERROR(VLOOKUP(Table4[[#This Row],[رقم امر الشغل]],table5,9,0),"") ->  | BX181: =IFERROR(VLOOKUP(Table4[[#This Row],[رقم امر الشغل]],table5,10,0),"") -> 
BW182: =IFERROR(VLOOKUP(Table4[[#This Row],[رقم امر الشغل]],table5,9,0),"") ->  | BX182: =IFERROR(VLOOKUP(Table4[[#This Row],[رقم امر الشغل]],table5,10,0),"") -> 
BW183: =IFERROR(VLOOKUP(Table4[[#This Row],[رقم امر الشغل]],table5,9,0),"") ->  | BX183: =IFERROR(VLOOKUP(Table4[[#This Row],[رقم امر الشغل]],table5,10,0),"") -> 
BW184: =IFERROR(VLOOKUP(Table4[[#This Row],[رقم امر الشغل]],table5,9,0),"") ->  | BX184: =IFERROR(VLOOKUP(Table4[[#This Row],[رقم امر الشغل]],table5,10,0),"") -> 
BW185: =IFERROR(VLOOKUP(Table4[[#This Row],[رقم امر الشغل]],table5,9,0),"") ->  | BX185: =IFERROR(VLOOKUP(Table4[[#This Row],[رقم امر الشغل]],table5,10,0),"") -> 
BW186: =IFERROR(VLOOKUP(Table4[[#This Row],[رقم امر الشغل]],table5,9,0),"") ->  | BX186: =IFERROR(VLOOKUP(Table4[[#This Row],[رقم امر الشغل]],table5,10,0),"") -> 
BW187: =IFERROR(VLOOKUP(Table4[[#This Row],[رقم امر الشغل]],table5,9,0),"") ->  | BX187: =IFERROR(VLOOKUP(Table4[[#This Row],[رقم امر الشغل]],table5,10,0),"") -> 
BW188: =IFERROR(VLOOKUP(Table4[[#This Row],[رقم امر الشغل]],table5,9,0),"") ->  | BX188: =IFERROR(VLOOKUP(Table4[[#This Row],[رقم امر الشغل]],table5,10,0),"") -> 
BW189: =IFERROR(VLOOKUP(Table4[[#This Row],[رقم امر الشغل]],table5,9,0),"") ->  | BX189: =IFERROR(VLOOKUP(Table4[[#This Row],[رقم امر الشغل]],table5,10,0),"") -> 
BW190: =IFERROR(VLOOKUP(Table4[[#This Row],[رقم امر الشغل]],table5,9,0),"") ->  | BX190: =IFERROR(VLOOKUP(Table4[[#This Row],[رقم امر الشغل]],table5,10,0),"") -> 
BW191: =IFERROR(VLOOKUP(Table4[[#This Row],[رقم امر الشغل]],table5,9,0),"") ->  | BX191: =IFERROR(VLOOKUP(Table4[[#This Row],[رقم امر الشغل]],table5,10,0),"") -> 
BW192: =IFERROR(VLOOKUP(Table4[[#This Row],[رقم امر الشغل]],table5,9,0),"") ->  | BX192: =IFERROR(VLOOKUP(Table4[[#This Row],[رقم امر الشغل]],table5,10,0),"") -> 
BW193: =IFERROR(VLOOKUP(Table4[[#This Row],[رقم امر الشغل]],table5,9,0),"") ->  | BX193: =IFERROR(VLOOKUP(Table4[[#This Row],[رقم امر الشغل]],table5,10,0),"") -> 
BW194: =IFERROR(VLOOKUP(Table4[[#This Row],[رقم امر الشغل]],table5,9,0),"") ->  | BX194: =IFERROR(VLOOKUP(Table4[[#This Row],[رقم امر الشغل]],table5,10,0),"") -> 
BW195: =IFERROR(VLOOKUP(Table4[[#This Row],[رقم امر الشغل]],table5,9,0),"") ->  | BX195: =IFERROR(VLOOKUP(Table4[[#This Row],[رقم امر الشغل]],table5,10,0),"") -> 
BW196: =IFERROR(VLOOKUP(Table4[[#This Row],[رقم امر الشغل]],table5,9,0),"") ->  | BX196: =IFERROR(VLOOKUP(Table4[[#This Row],[رقم امر الشغل]],table5,10,0),"") -> 
BW197: =IFERROR(VLOOKUP(Table4[[#This Row],[رقم امر الشغل]],table5,9,0),"") ->  | BX197: =IFERROR(VLOOKUP(Table4[[#This Row],[رقم امر الشغل]],table5,10,0),"") -> 
BW198: =IFERROR(VLOOKUP(Table4[[#This Row],[رقم امر الشغل]],table5,9,0),"") ->  | BX198: =IFERROR(VLOOKUP(Table4[[#This Row],[رقم امر الشغل]],table5,10,0),"") -> 
BW199: =IFERROR(VLOOKUP(Table4[[#This Row],[رقم امر الشغل]],table5,9,0),"") ->  | BX199: =IFERROR(VLOOKUP(Table4[[#This Row],[رقم امر الشغل]],table5,10,0),"") -> 
BW200: =IFERROR(VLOOKUP(Table4[[#This Row],[رقم امر الشغل]],table5,9,0),"") ->  | BX200: =IFERROR(VLOOKUP(Table4[[#This Row],[رقم امر الشغل]],table5,10,0),"") -> 
BW201: =IFERROR(VLOOKUP(Table4[[#This Row],[رقم امر الشغل]],table5,9,0),"") ->  | BX201: =IFERROR(VLOOKUP(Table4[[#This Row],[رقم امر الشغل]],table5,10,0),"") -> 
... 126 more rows

Sheet التسليمات
AE1: Data | AF1: =TODAY()-43830 -> 56
A3: مسلسل | B3: الشهر | C3: التاريخ | D3: نوع الاذن | E3: رقم الاذن | F3: رقم اذن العميل | G3: رقم امر الشغل | H3: اسم العميل | I3: اسم المصنع | J3: اسم المنتج | K3: النوع | L3: الكميه | M3: مرتجع | N3: صافي المبيعات | O3: سعر استرشادي | P3: السعر | Q3: سعر الصرف | R3: الاجمالي | S3: السيستم | T3: الفرق | U3: فورم | V3: زنكات | W3: نقل | X3: خصم مسموح به | Y3: الاجمالي | Z3: الضريبه القيمه المضافه | AA3: الاجمالي بعد القيمه المضافه | AB3: خصم واضافه | AC3: صافي المبيعات | AD3: الاجمالي العام | AE3: اجمالي الوحدات
A4: =IF(C4<>"",MAX($A$1:A3)+1,"") -> 1 | B4: =MONTH(C4) -> 1 | C4: 2020-01-05 | E4: 5890 | F4: =IF($H4="انترناشيونال باك","",0) -> 0 | G4: 1909-12-23 | H4: سمير | I4: السعودي | J4: حمص | K4: =IFERROR(VLOOKUP($G4,table3,51,0),0) -> 0 | L4: 1417 | N4: =L4-M4 -> 1417 | O4: =IFERROR(VLOOKUP($G4,table3,67,0),"") ->  | P4: 23.5 | Q4: 1 | R4: =IFERROR((P4*Q4)*N4,"") -> 33299.5 | S4: 33299.5 | T4: =R4-S4 -> 0 | Y4: =R4+U4+V4+W4-X4 -> 33299.5 | Z4: =(IF($D4="ضريبي",$R4*0.14,0)) -> 0 | AA4: =Z4+Y4 -> 33299.5 | AC4: =AA4-AB4 -> 33299.5 | AD4: =IFERROR(AC4,"") -> 33299.5 | AE4: =N4 -> 1417
A5: =IF(C5<>"",MAX($A$1:A4)+1,"") -> 2 | B5: 1 | C5: 2020-01-06 | E5: 5891 | F5: 0 | G5: 2 | H5: سيد | I5: اليمني | J5: سوداني | K5: 0 | L5: 1 | N5: =L5-M5 -> 1 | P5: 0 | Q5: 1 | R5: =IFERROR((P5*Q5)*N5,"") -> 0 | T5: =R5-S5 -> 0 | Y5: =R5+U5+V5+W5-X5 -> 0 | Z5: =(IF($D5="ضريبي",$R5*0.14,0)) -> 0 | AA5: =Z5+Y5 -> 0 | AC5: =AA5-AB5 -> 0 | AD5: =IFERROR(AC5+AD4,"") -> 33299.5 | AE5: =AE4+N5 -> 1418
A6: =IF(C6<>"",MAX($A$1:A5)+1,"") -> 3 | B6: 1 | C6: 2020-01-07 | D6: ضريبي | E6: 5892 | F6: 0 | G6: 3649 | H6: مسعود | I6: السوداني | J6: لب | K6: 0 | L6: =5250-93 -> 5157 | M6: 75 | N6: 5082 | P6: 4 | Q6: 1 | R6: 20328 | T6: 20328 | Y6: 20328 | Z6: 2845.92 | AA6: 23173.92 | AC6: =AA6-AB6 -> 23173.92 | AD6: =IFERROR(AC6+AD5,"") -> 56473.42 | AE6: =AE5+N6 -> 6500
A7: =IF(C7<>"",MAX($A$1:A6)+1,"") -> 4 | B7: 1 | C7: 2020-01-07 | E7: 5893 | F7: 0 | G7: 3655 | H7: سمير | I7: السعودي | J7: حمص | K7: 0 | L7: 40000 | N7: 40000 | P7: 0.03 | Q7: 1 | R7: 1200 | T7: 1200 | Y7: 1200 | Z7: 0 | AA7: 1200 | AC7: 1200 | AD7: =IFERROR(AC7+AD6,"") -> 57673.42 | AE7: 46500
A8: =IF(C8<>"",MAX($A$1:A7)+1,"") -> 5 | B8: 1 | C8: 2020-01-08 | E8: 5894 | F8: 0 | G8: 3650 | H8: سيد | I8: اليمني | J8: سوداني | K8: 0 | L8: 99 | N8: 99 | O8: 1.25 | P8: 1.35 | Q8: 1 | R8: 133.65 | T8: 133.65 | X8: 3.65 | Y8: 130 | Z8: 0 | AA8: 130 | AC8: 130 | AD8: 57803.42 | AE8: 46599
A9: =IF(C9<>"",MAX($A$1:A8)+1,"") -> 6 | B9: 1 | C9: 2020-01-13 | E9: 5903 | F9: 0 | G9: 3 | H9: مسعود | I9: السوداني | J9: لب | K9: 0 | L9: 1 | N9: 1 | O9: 3 | P9: 0 | Q9: 1 | R9: 0 | T9: 0 | Y9: 0 | Z9: 0 | AA9: 0 | AC9: 0 | AD9: =IFERROR(AC9+#REF!,"") ->  | AE9: =#REF!+N9 -> 
A10: =IF(C10<>"",MAX($A$1:A9)+1,"") -> 7 | B10: 2 | C10: 2020-02-05 | E10: 5958 | F10: 4460 | G10: 3692 | H10: سمير | I10: السعودي | J10: حمص | K10: =IFERROR(VLOOKUP($G10,table3,51,0),0) -> 0 | L10: 140 | N10: =L10-M10 -> 140 | O10: =IFERROR(VLOOKUP($G10,table3,67,0),"") ->  | P10: 23.5 | Q10: 1 | R10: =IFERROR((P10*Q10)*N10,"") -> 3290 | S10: 3290 | T10: =R10-S10 -> 0 | Y10: =IFERROR(R10+U10+V10+W10-X10,"") -> 3290 | Z10: =(IF($D10="ضريبي",$R10*0.14,0)) -> 0 | AA10: =IFERROR(Z10+Y10,"") -> 3290 | AC10: =IFERROR(AA10-AB10,"") -> 3290 | AD10: =IFERROR(AC10+#REF!,"") ->  | AE10: =#REF!+N10 -> 
A11: =IF(C11<>"",MAX($A$1:A10)+1,"") -> 8 | B11: 2 | C11: 2020-02-16 | E11: 5978 | F11: =IF($H11="انترناشيونال باك","",0) -> 0 | G11: 3715 | H11: سيد | I11: اليمني | J11: سوداني | K11: =IFERROR(VLOOKUP($G11,table3,51,0),0) -> 0 | L11: 1400 | N11: =L11-M11 -> 1400 | O11: =IFERROR(VLOOKUP($G11,table3,67,0),"") ->  | P11: 23.5 | Q11: 1 | R11: =IFERROR((P11*Q11)*N11,"") -> 32900 | T11: =IFERROR((R11-S11),"") -> 32900 | Y11: =IFERROR(R11+U11+V11+W11-X11,"") -> 32900 | Z11: =(IF($D11="ضريبي",$R11*0.14,0)) -> 0 | AA11: =IFERROR(Z11+Y11,"") -> 32900 | AC11: =IFERROR(AA11-AB11,"") -> 32900 | AD11: =IFERROR(AC11+#REF!,"") ->  | AE11: =#REF!+N11 -> 
A12: =IF(C12<>"",MAX($A$1:A11)+1,"") -> 9 | B12: 2 | C12: 2020-02-16 | E12: 5979 | F12: 0 | G12: 6 | H12: مسعود | I12: السوداني | J12: لب | K12: 0 | L12: 5 | N12: 5 | P12: 75 | Q12: 1 | R12: 375 | T12: 375 | Y12: 375 | Z12: 0 | AA12: 375 | AC12: 375 | AD12: =IFERROR(AC12+AD11,"") ->  | AE12: =AE11+N12 -> 
A13: =IF(C13<>"",MAX($A$1:A12)+1,"") -> 10 | B13: 2 | C13: 2020-02-16 | E13: 5980 | F13: 0 | G13: 3687 | H13: سمير | I13: السعودي | J13: حمص | K13: 0 | L13: 7753 | N13: 7753 | P13: 3.05 | Q13: 1 | R13: 23646.65 | T13: 23646.65 | Y13: 23646.65 | Z13: 0 | AA13: 23646.65 | AC13: 23646.65
A14: =IF(C14<>"",MAX($A$1:A13)+1,"") -> 11 | B14: 2 | C14: 2020-02-17 | D14: ضريبي | E14: 5981 | F14: 0 | G14: 3716 | H14: سيد | I14: اليمني | J14: سوداني | K14: 0 | L14: 6000 | N14: 6000 | P14: 4 | Q14: 1 | R14: 24000 | T14: 24000 | Y14: 24000 | Z14: 3360 | AA14: 27360 | AC14: 27360
A15: =IF(C15<>"",MAX($A$1:A14)+1,"") -> 12 | B15: 2 | C15: 2020-02-17 | E15: 5982 | F15: 0 | G15: 3715 | H15: مسعود | I15: السوداني | J15: لب | K15: 0 | L15: 716 | N15: 716 | P15: 23.5 | Q15: 1 | R15: 16826 | T15: 16826 | Y15: 16826 | Z15: 0 | AA15: 16826 | AC15: 16826
A16: =IF(C16<>"",MAX($A$1:A15)+1,"") -> 13 | B16: 2 | C16: 2020-02-17 | E16: 5982 | F16: 0 | G16: 3714 | H16: سمير | I16: السعودي | J16: حمص | K16: 0 | L16: 420 | N16: 420 | P16: 34.5 | Q16: 1 | R16: 14490 | T16: 14490 | Y16: 14490 | Z16: 0 | AA16: 14490 | AC16: 14490
A17: =IF(C17<>"",MAX($A$1:A16)+1,"") -> 14 | B17: 2 | C17: 2020-02-18 | E17: 5983 | F17: 0 | G17: 6 | H17: سيد | I17: اليمني | J17: سوداني | K17: 0 | L17: 20 | N17: 20 | P17: 75 | Q17: 1 | R17: 1500 | T17: 1500 | Y17: 1500 | Z17: 0 | AA17: 1500 | AC17: 1500
A18: =IF(C18<>"",MAX($A$1:A17)+1,"") -> 15 | B18: 2 | C18: 2020-02-19 | E18: 5984 | F18: 0 | G18: 2 | H18: مسعود | I18: السوداني | J18: لب | K18: 0 | L18: 4 | N18: 4 | P18: 0 | Q18: 1 | R18: 0 | T18: 0 | Y18: 0 | Z18: 0 | AA18: 0 | AC18: 0

Sheet كشف حساب عميل
A1: اسم العميل | B1: سمير | E1: نقوم باختيار اسم العميل من هنا
A2: من تاريخ | B2: 2020-01-01 | E2: مدين | G2: دائن | I2: الرصيد | M2: =Sheet1!$B$5:$B$12 -> 
A3: الي تاريخ | B3: 2020-02-15 | E3: =SUM(R4:R10000) -> 37789.5 | G3: =SUM(T6:T10000) -> 1200 | I3: =E3-G3 -> 36589.5
A5: مسلسل | B5: الشهر | C5: التاريخ | D5: نوع الاذن | E5: رقم الاذن | F5: رقم اذن العميل | G5: رقم امر الشغل | H5: اسم العميل | I5: اسم المصنع | J5: اسم المنتج | K5: النوع | L5: الكميه | M5: مرتجع | N5: صافي المبيعات | O5: سعر استرشادي | P5: السعر | Q5: سعر الصرف | R5: الاجمالي | S5: السيستم | T5: الفرق | U5: فورم | V5: زنكات | W5: نقل | X5: خصم مسموح به | Y5: الاجمالي | Z5: الضريبه القيمه المضافه | AA5: الاجمالي بعد القيمه المضافه | AB5: خصم واضافه | AC5: صافي المبيعات
A6: =IF(C6<>"",MAX($A$1:A5)+1,"") -> 1 | B6: =MONTH(C6) -> 1 | C6: 2020-01-05 | E6: 5890 | F6: =IF($H6="انترناشيونال باك","",0) -> 0 | G6: 1909-12-23 | H6: سمير | I6: السعودي | J6: حمص | K6: =IFERROR(VLOOKUP($G6,table3,51,0),0) -> 0 | L6: 1417 | N6: =L6-M6 -> 1417 | O6: =IFERROR(VLOOKUP($G6,table3,67,0),"") ->  | P6: 23.5 | Q6: 1 | R6: =IFERROR((P6*Q6)*N6,"") -> 33299.5 | S6: 33299.5 | T6: =R6-S6 -> 0 | Y6: =R6+U6+V6+W6-X6 -> 33299.5 | Z6: =(IF($D6="ضريبي",$R6*0.14,0)) -> 0 | AA6: =Z6+Y6 -> 33299.5 | AC6: =AA6-AB6 -> 33299.5
A7: =IF(C7<>"",MAX($A$1:A6)+1,"") -> 2 | B7: 1 | C7: 2020-01-07 | E7: 5893 | F7: 0 | G7: 3655 | H7: سمير | I7: السعودي | J7: حمص | K7: 0 | L7: 40000 | N7: =L7-M7 -> 40000 | P7: 0.03 | Q7: 1 | R7: =IFERROR((P7*Q7)*N7,"") -> 1200 | T7: =R7-S7 -> 1200 | Y7: =R7+U7+V7+W7-X7 -> 1200 | Z7: =(IF($D7="ضريبي",$R7*0.14,0)) -> 0 | AA7: =Z7+Y7 -> 1200 | AC7: =AA7-AB7 -> 1200
A8: =IF(C8<>"",MAX($A$1:A7)+1,"") -> 3 | B8: 2 | C8: 2020-02-05 | E8: 5958 | F8: 4460 | G8: 3692 | H8: سمير | I8: السعودي | J8: حمص | K8: 0 | L8: 140 | N8: 140 | P8: 23.5 | Q8: 1 | R8: 3290 | S8: 3290 | T8: 0 | Y8: =IFERROR(R8+U8+V8+W8-X8,"") -> 3290 | Z8: 0 | AA8: =IFERROR(Z8+Y8,"") -> 3290 | AC8: =IFERROR(AA8-AB8,"") -> 3290

Sheet الطباعه وطبقه حمايه
A1: 1 | B1: 2 | C1: 3 | D1: 4 | E1: 5 | F1: 6 | G1: 7 | H1: 8 | I1: 9 | J1: 10 | K1: 11 | L1: 12 | M1: 13 | N1: 14 | O1: 15 | P1: 16 | Q1: 17 | R1: 18 | S1: 19 | T1: 20
A3: مسلسل | B3: رقم امر الشغل | C3: الصنف | E3: التاريخ | F3: زنكات | G3: اسم العميل | H3: اسم المصنع | I3: اسم المنتج | J3: عدد الالوان | K3: اسم المورد | L3: طول | M3: عرض | N3: الكميه | O3: الفرق | P3: اجمالي الكميه | Q3: عدد الشيتات | R3: الكميه الموردة | S3: الفرق | T3: اجمالي المورد | U3: السعر | V3: الحد الادني | W3: الاجمالي | X3: زنكات | Y3: الخصم | Z3: اجمالي | AA3: دفعات | AB3: الاجمالي العام | AC3: اجمالي مرحل | AD3: حساب المورد | AE3: الفرق
A4: =IF(I4<>"",MAX($A$3:A3)+1,"") -> 1 | B4: 3628 | C4: =IFERROR(VLOOKUP($K4,#REF!,5,0),"غير مسجل") -> غير مسجل | E4: 2020-01-01 | F4: 6 | G4: =IFERROR(VLOOKUP($B4,table3,5,0),"غير مسجل") -> غير مسجل | H4: =IFERROR(VLOOKUP($B4,table3,4,0),"غير مسجل") -> غير مسجل | I4: =IFERROR(VLOOKUP($B4,table3,3,0),"غير مسجل") -> غير مسجل | J4: =IFERROR(VLOOKUP($B4,table3,32,0),"غير مسجل") -> غير مسجل | K4: وحيد | L4: =IFERROR(VLOOKUP($B4,table3,10,0),"غير مسجل") -> غير مسجل | M4: =IFERROR(VLOOKUP($B4,table3,11,0),"غير مسجل") -> غير مسجل | N4: 2000 | P4: =N4+O4 -> 2000 | Q4: =IFERROR(VLOOKUP($I4,table2,17,0),"") ->  | R4: =SUMIFS(التسليمات!$N:$N,التسليمات!$G:$G,B4) -> 0 | T4: =IFERROR(($R4*$Q4)+$S4,"") ->  | U4: =IFERROR(VLOOKUP($K4,#REF!,3,0),"غير مسجل") -> غير مسجل | V4: =IFERROR(VLOOKUP($K4,#REF!,2,0),"غير مسجل") -> غير مسجل | W4: =IF($C4="طباعه ",IF($V4>$P4,$V4*VLOOKUP($K4,#REF!,3,0),$P4*VLOOKUP($K4,#REF!,3,0)),IF($C4="يوفي ",($L4*$M4*$P4*10/7)*VLOOKUP($K4,#REF!,3,0),"غير مسجل")) -> غير مسجل | X4: =IF($C4="طباعه ",VLOOKUP(K4,#REF!,4,0)*F4,"0") -> 0 | Z4: =IFERROR(W4+X4-Y4,"0") -> 0 | AB4: =Z4-AA4 -> 0 | AC4: =SUMIFS($AB$4:AB4,$K$4:K4,K4) -> 0 | AE4: =AB4-AD4 -> 0
A5: =IF(I5<>"",MAX($A$3:A4)+1,"") -> 2 | B5: 3628 | C5: =IFERROR(VLOOKUP($K5,#REF!,5,0),"غير مسجل") -> غير مسجل | E5: 2020-01-01 | G5: غير مسجل | H5: غير مسجل | I5: غير مسجل | J5: غير مسجل | K5: ابو اليزيد | L5: غير مسجل | M5: غير مسجل | N5: 2000 | P5: =N5+O5 -> 2000 | R5: =SUMIFS(التسليمات!$N:$N,التسليمات!$G:$G,B5) -> 0 | U5: =IFERROR(VLOOKUP($K5,#REF!,3,0),"غير مسجل") -> غير مسجل | V5: =IFERROR(VLOOKUP($K5,#REF!,2,0),"غير مسجل") -> غير مسجل | W5: =IF($C5="طباعه ",IF($V5>$P5,$V5*VLOOKUP($K5,#REF!,3,0),$P5*VLOOKUP($K5,#REF!,3,0)),IF($C5="يوفي ",($L5*$M5*$P5*10/7)*VLOOKUP($K5,#REF!,3,0),"غير مسجل")) -> غير مسجل | X5: =IF($C5="طباعه ",VLOOKUP(K5,#REF!,4,0)*F5,"0") -> 0 | Y5: -10 | Z5: =IFERROR(W5+X5-Y5,"0") -> 0 | AB5: =Z5-AA5 -> 0 | AC5: =SUMIFS($AB$4:AB5,$K$4:K5,K5) -> 0 | AE5: =AB5-AD5 -> 0
A6: =IF(I6<>"",MAX($A$3:A5)+1,"") -> 3 | B6: 3666 | C6: =IFERROR(VLOOKUP($K6,#REF!,5,0),"غير مسجل") -> غير مسجل | E6: 2020-01-01 | F6: 6 | G6: غير مسجل | H6: غير مسجل | I6: غير مسجل | J6: غير مسجل | K6: وحيد | L6: غير مسجل | M6: غير مسجل | N6: 2000 | P6: 2000 | R6: =SUMIFS(التسليمات!$N:$N,التسليمات!$G:$G,B6) -> 0 | U6: =IFERROR(VLOOKUP($K6,#REF!,3,0),"غير مسجل") -> غير مسجل | V6: =IFERROR(VLOOKUP($K6,#REF!,2,0),"غير مسجل") -> غير مسجل | W6: =IF($C6="طباعه ",IF($V6>$P6,$V6*VLOOKUP($K6,#REF!,3,0),$P6*VLOOKUP($K6,#REF!,3,0)),IF($C6="يوفي ",($L6*$M6*$P6*10/7)*VLOOKUP($K6,#REF!,3,0),"غير مسجل")) -> غير مسجل | X6: =IF($C6="طباعه ",VLOOKUP(K6,#REF!,4,0)*F6,"0") -> 0 | Z6: 0 | AB6: =Z6-AA6 -> 0 | AC6: =SUMIFS($AB$4:AB6,$K$4:K6,K6) -> 0 | AE6: 0
A7: =IF(I7<>"",MAX($A$3:A6)+1,"") -> 4 | B7: 3666 | C7: =IFERROR(VLOOKUP($K7,#REF!,5,0),"غير مسجل") -> غير مسجل | E7: 2020-01-01 | G7: غير مسجل | H7: غير مسجل | I7: غير مسجل | J7: غير مسجل | K7: ابو اليزيد | L7: غير مسجل | M7: غير مسجل | N7: 2150 | P7: 2150 | R7: =SUMIFS(التسليمات!$N:$N,التسليمات!$G:$G,B7) -> 0 | U7: =IFERROR(VLOOKUP($K7,#REF!,3,0),"غير مسجل") -> غير مسجل | V7: =IFERROR(VLOOKUP($K7,#REF!,2,0),"غير مسجل") -> غير مسجل | W7: =IF($C7="طباعه ",IF($V7>$P7,$V7*VLOOKUP($K7,#REF!,3,0),$P7*VLOOKUP($K7,#REF!,3,0)),IF($C7="يوفي ",($L7*$M7*$P7*10/7)*VLOOKUP($K7,#REF!,3,0),"غير مسجل")) -> غير مسجل | X7: =IF($C7="طباعه ",VLOOKUP(K7,#REF!,4,0)*F7,"0") -> 0 | Z7: 0 | AB7: 0 | AC7: =SUMIFS($AB$4:AB7,$K$4:K7,K7) -> 0 | AE7: 0
A8: =IF(I8<>"",MAX($A$3:A7)+1,"") -> 5 | B8: 3682 | C8: =IFERROR(VLOOKUP($K8,#REF!,5,0),"غير مسجل") -> غير مسجل | E8: 2020-01-01 | F8: 6 | G8: غير مسجل | H8: غير مسجل | I8: غير مسجل | J8: غير مسجل | K8: وحيد | L8: غير مسجل | M8: غير مسجل | N8: 1500 | P8: 1500 | R8: =SUMIFS(التسليمات!$N:$N,التسليمات!$G:$G,B8) -> 0 | U8: =IFERROR(VLOOKUP($K8,#REF!,3,0),"غير مسجل") -> غير مسجل | V8: =IFERROR(VLOOKUP($K8,#REF!,2,0),"غير مسجل") -> غير مسجل | W8: =IF($C8="طباعه ",IF($V8>$P8,$V8*VLOOKUP($K8,#REF!,3,0),$P8*VLOOKUP($K8,#REF!,3,0)),IF($C8="يوفي ",($L8*$M8*$P8*10/7)*VLOOKUP($K8,#REF!,3,0),"غير مسجل")) -> غير مسجل | X8: =IF($C8="طباعه ",VLOOKUP(K8,#REF!,4,0)*F8,"0") -> 0 | Z8: 0 | AB8: 0 | AC8: =SUMIFS($AB$4:AB8,$K$4:K8,K8) -> 0 | AE8: 0
A9: =IF(I9<>"",MAX($A$3:A8)+1,"") -> 6 | B9: 3682 | C9: =IFERROR(VLOOKUP($K9,#REF!,5,0),"غير مسجل") -> غير مسجل | E9: 2020-01-01 | G9: غير مسجل | H9: غير مسجل | I9: غير مسجل | J9: غير مسجل | K9: اسبوت يوفي - الراوي | L9: غير مسجل | M9: غير مسجل | N9: 1626 | P9: 1626 | R9: =SUMIFS(التسليمات!$N:$N,التسليمات!$G:$G,B9) -> 0 | U9: =IFERROR(VLOOKUP($K9,#REF!,3,0),"غير مسجل") -> غير مسجل | V9: =IFERROR(VLOOKUP($K9,#REF!,2,0),"غير مسجل") -> غير مسجل | W9: =IF($C9="طباعه ",IF($V9>$P9,$V9*VLOOKUP($K9,#REF!,3,0),$P9*VLOOKUP($K9,#REF!,3,0)),IF($C9="يوفي ",($L9*$M9*$P9*10/7)*VLOOKUP($K9,#REF!,3,0),"غير مسجل")) -> غير مسجل | X9: =IF($C9="طباعه ",VLOOKUP(K9,#REF!,4,0)*F9,"0") -> 0 | Z9: 0 | AB9: 0 | AC9: =SUMIFS($AB$4:AB9,$K$4:K9,K9) -> 0 | AE9: 0
A10: =IF(I10<>"",MAX($A$3:A9)+1,"") -> 7 | B10: 3682.1 | C10: =IFERROR(VLOOKUP($K10,#REF!,5,0),"غير مسجل") -> غير مسجل | E10: 2020-01-01 | F10: 6 | G10: غير مسجل | H10: غير مسجل | I10: غير مسجل | J10: غير مسجل | K10: وحيد | L10: غير مسجل | M10: غير مسجل | N10: 1500 | P10: 1500 | R10: =SUMIFS(التسليمات!$N:$N,التسليمات!$G:$G,B10) -> 0 | U10: =IFERROR(VLOOKUP($K10,#REF!,3,0),"غير مسجل") -> غير مسجل | V10: =IFERROR(VLOOKUP($K10,#REF!,2,0),"غير مسجل") -> غير مسجل | W10: =IF($C10="طباعه ",IF($V10>$P10,$V10*VLOOKUP($K10,#REF!,3,0),$P10*VLOOKUP($K10,#REF!,3,0)),IF($C10="يوفي ",($L10*$M10*$P10*10/7)*VLOOKUP($K10,#REF!,3,0),"غير مسجل")) -> غير مسجل | X10: =IF($C10="طباعه ",VLOOKUP(K10,#REF!,4,0)*F10,"0") -> 0 | Z10: 0 | AB10: 0 | AC10: =SUMIFS($AB$4:AB10,$K$4:K10,K10) -> 0 | AE10: 0
A11: =IF(I11<>"",MAX($A$3:A10)+1,"") -> 8 | B11: 3682.1 | C11: =IFERROR(VLOOKUP($K11,#REF!,5,0),"غير مسجل") -> غير مسجل | E11: 2020-01-01 | G11: غير مسجل | H11: غير مسجل | I11: غير مسجل | J11: غير مسجل | K11: اسبوت يوفي - الراوي | L11: غير مسجل | M11: غير مسجل | N11: 1580 | P11: 1580 | R11: =SUMIFS(التسليمات!$N:$N,التسليمات!$G:$G,B11) -> 0 | U11: =IFERROR(VLOOKUP($K11,#REF!,3,0),"غير مسجل") -> غير مسجل | V11: =IFERROR(VLOOKUP($K11,#REF!,2,0),"غير مسجل") -> غير مسجل | W11: =IF($C11="طباعه ",IF($V11>$P11,$V11*VLOOKUP($K11,#REF!,3,0),$P11*VLOOKUP($K11,#REF!,3,0)),IF($C11="يوفي ",($L11*$M11*$P11*10/7)*VLOOKUP($K11,#REF!,3,0),"غير مسجل")) -> غير مسجل | X11: =IF($C11="طباعه ",VLOOKUP(K11,#REF!,4,0)*F11,"0") -> 0 | Z11: 0 | AB11: 0 | AC11: =SUMIFS($AB$4:AB11,$K$4:K11,K11) -> 0 | AE11: 0
A12: =IF(I12<>"",MAX($A$3:A11)+1,"") -> 9 | B12: 3682.2 | C12: =IFERROR(VLOOKUP($K12,#REF!,5,0),"غير مسجل") -> غير مسجل | E12: 2020-01-01 | F12: 6 | G12: غير مسجل | H12: غير مسجل | I12: غير مسجل | J12: غير مسجل | K12: وحيد | L12: غير مسجل | M12: غير مسجل | N12: 1500 | P12: 1500 | R12: =SUMIFS(التسليمات!$N:$N,التسليمات!$G:$G,B12) -> 0 | U12: =IFERROR(VLOOKUP($K12,#REF!,3,0),"غير مسجل") -> غير مسجل | V12: =IFERROR(VLOOKUP($K12,#REF!,2,0),"غير مسجل") -> غير مسجل | W12: =IF($C12="طباعه ",IF($V12>$P12,$V12*VLOOKUP($K12,#REF!,3,0),$P12*VLOOKUP($K12,#REF!,3,0)),IF($C12="يوفي ",($L12*$M12*$P12*10/7)*VLOOKUP($K12,#REF!,3,0),"غير مسجل")) -> غير مسجل | X12: =IF($C12="طباعه ",VLOOKUP(K12,#REF!,4,0)*F12,"0") -> 0 | Z12: 0 | AB12: 0 | AC12: =SUMIFS($AB$4:AB12,$K$4:K12,K12) -> 0 | AE12: 0
A13: =IF(I13<>"",MAX($A$3:A12)+1,"") -> 10 | B13: 3682.2 | C13: =IFERROR(VLOOKUP($K13,#REF!,5,0),"غير مسجل") -> غير مسجل | E13: 2020-01-01 | G13: غير مسجل | H13: غير مسجل | I13: غير مسجل | J13: غير مسجل | K13: اسبوت يوفي - الراوي | L13: غير مسجل | M13: غير مسجل | N13: 1628 | P13: 1628 | R13: =SUMIFS(التسليمات!$N:$N,التسليمات!$G:$G,B13) -> 0 | U13: =IFERROR(VLOOKUP($K13,#REF!,3,0),"غير مسجل") -> غير مسجل | V13: =IFERROR(VLOOKUP($K13,#REF!,2,0),"غير مسجل") -> غير مسجل | W13: =IF($C13="طباعه ",IF($V13>$P13,$V13*VLOOKUP($K13,#REF!,3,0),$P13*VLOOKUP($K13,#REF!,3,0)),IF($C13="يوفي ",($L13*$M13*$P13*10/7)*VLOOKUP($K13,#REF!,3,0),"غير مسجل")) -> غير مسجل | X13: =IF($C13="طباعه ",VLOOKUP(K13,#REF!,4,0)*F13,"0") -> 0 | Z13: 0 | AB13: 0 | AC13: =SUMIFS($AB$4:AB13,$K$4:K13,K13) -> 0 | AE13: 0
A14: =IF(I14<>"",MAX($A$3:A13)+1,"") -> 11 | B14: 3682.3 | C14: =IFERROR(VLOOKUP($K14,#REF!,5,0),"غير مسجل") -> غير مسجل | E14: 2020-01-01 | F14: 6 | G14: غير مسجل | H14: غير مسجل | I14: غير مسجل | J14: غير مسجل | K14: وحيد | L14: غير مسجل | M14: غير مسجل | N14: 1500 | P14: 1500 | R14: =SUMIFS(التسليمات!$N:$N,التسليمات!$G:$G,B14) -> 0 | U14: =IFERROR(VLOOKUP($K14,#REF!,3,0),"غير مسجل") -> غير مسجل | V14: =IFERROR(VLOOKUP($K14,#REF!,2,0),"غير مسجل") -> غير مسجل | W14: =IF($C14="طباعه ",IF($V14>$P14,$V14*VLOOKUP($K14,#REF!,3,0),$P14*VLOOKUP($K14,#REF!,3,0)),IF($C14="يوفي ",($L14*$M14*$P14*10/7)*VLOOKUP($K14,#REF!,3,0),"غير مسجل")) -> غير مسجل | X14: =IF($C14="طباعه ",VLOOKUP(K14,#REF!,4,0)*F14,"0") -> 0 | Z14: 0 | AB14: 0 | AC14: =SUMIFS($AB$4:AB14,$K$4:K14,K14) -> 0 | AE14: 0
A15: =IF(I15<>"",MAX($A$3:A14)+1,"") -> 12 | B15: 3682.3 | C15: =IFERROR(VLOOKUP($K15,#REF!,5,0),"غير مسجل") -> غير مسجل | E15: 2020-01-01 | G15: غير مسجل | H15: غير مسجل | I15: غير مسجل | J15: غير مسجل | K15: اسبوت يوفي - الراوي | L15: غير مسجل | M15: غير مسجل | N15: 1668 | P15: 1668 | R15: =SUMIFS(التسليمات!$N:$N,التسليمات!$G:$G,B15) -> 0 | U15: =IFERROR(VLOOKUP($K15,#REF!,3,0),"غير مسجل") -> غير مسجل | V15: =IFERROR(VLOOKUP($K15,#REF!,2,0),"غير مسجل") -> غير مسجل | W15: =IF($C15="طباعه ",IF($V15>$P15,$V15*VLOOKUP($K15,#REF!,3,0),$P15*VLOOKUP($K15,#REF!,3,0)),IF($C15="يوفي ",($L15*$M15*$P15*10/7)*VLOOKUP($K15,#REF!,3,0),"غير مسجل")) -> غير مسجل | X15: =IF($C15="طباعه ",VLOOKUP(K15,#REF!,4,0)*F15,"0") -> 0 | Z15: 0 | AB15: 0 | AC15: =SUMIFS($AB$4:AB15,$K$4:K15,K15) -> 0 | AE15: 0
A16: =IF(I16<>"",MAX($A$3:A15)+1,"") -> 13 | B16: 3682.4 | C16: =IFERROR(VLOOKUP($K16,#REF!,5,0),"غير مسجل") -> غير مسجل | E16: 2020-01-01 | F16: 6 | G16: غير مسجل | H16: غير مسجل | I16: غير مسجل | J16: غير مسجل | K16: وحيد | L16: غير مسجل | M16: غير مسجل | N16: 1500 | P16: 1500 | R16: =SUMIFS(التسليمات!$N:$N,التسليمات!$G:$G,B16) -> 0 | U16: =IFERROR(VLOOKUP($K16,#REF!,3,0),"غير مسجل") -> غير مسجل | V16: =IFERROR(VLOOKUP($K16,#REF!,2,0),"غير مسجل") -> غير مسجل | W16: =IF($C16="طباعه ",IF($V16>$P16,$V16*VLOOKUP($K16,#REF!,3,0),$P16*VLOOKUP($K16,#REF!,3,0)),IF($C16="يوفي ",($L16*$M16*$P16*10/7)*VLOOKUP($K16,#REF!,3,0),"غير مسجل")) -> غير مسجل | X16: =IF($C16="طباعه ",VLOOKUP(K16,#REF!,4,0)*F16,"0") -> 0 | Z16: 0 | AB16: 0 | AC16: =SUMIFS($AB$4:AB16,$K$4:K16,K16) -> 0 | AE16: 0
A17: =IF(I17<>"",MAX($A$3:A16)+1,"") -> 14 | B17: 3682.4 | C17: =IFERROR(VLOOKUP($K17,#REF!,5,0),"غير مسجل") -> غير مسجل | E17: 2020-01-01 | G17: غير مسجل | H17: غير مسجل | I17: غير مسجل | J17: غير مسجل | K17: اسبوت يوفي - الراوي | L17: غير مسجل | M17: غير مسجل | N17: 1644 | O17: 54 | P17: 1698 | R17: =SUMIFS(التسليمات!$N:$N,التسليمات!$G:$G,B17) -> 0 | U17: =IFERROR(VLOOKUP($K17,#REF!,3,0),"غير مسجل") -> غير مسجل | V17: =IFERROR(VLOOKUP($K17,#REF!,2,0),"غير مسجل") -> غير مسجل | W17: =IF($C17="طباعه ",IF($V17>$P17,$V17*VLOOKUP($K17,#REF!,3,0),$P17*VLOOKUP($K17,#REF!,3,0)),IF($C17="يوفي ",($L17*$M17*$P17*10/7)*VLOOKUP($K17,#REF!,3,0),"غير مسجل")) -> غير مسجل | X17: =IF($C17="طباعه ",VLOOKUP(K17,#REF!,4,0)*F17,"0") -> 0 | Z17: =IFERROR(W17+X17-Y17,"0") -> 0 | AB17: =Z17-AA17 -> 0 | AC17: =SUMIFS($AB$4:AB17,$K$4:K17,K17) -> 0 | AE17: =AB17-AD17 -> 0
A18: =IF(I18<>"",MAX($A$3:A17)+1,"") -> 15 | B18: 3681 | C18: =IFERROR(VLOOKUP($K18,#REF!,5,0),"غير مسجل") -> غير مسجل | E18: 2020-01-01 | F18: 6 | G18: غير مسجل | H18: غير مسجل | I18: غير مسجل | J18: غير مسجل | K18: وحيد | L18: غير مسجل | M18: غير مسجل | N18: 2550 | P18: 2550 | R18: =SUMIFS(التسليمات!$N:$N,التسليمات!$G:$G,B18) -> 0 | U18: =IFERROR(VLOOKUP($K18,#REF!,3,0),"غير مسجل") -> غير مسجل | V18: =IFERROR(VLOOKUP($K18,#REF!,2,0),"غير مسجل") -> غير مسجل | W18: =IF($C18="طباعه ",IF($V18>$P18,$V18*VLOOKUP($K18,#REF!,3,0),$P18*VLOOKUP($K18,#REF!,3,0)),IF($C18="يوفي ",($L18*$M18*$P18*10/7)*VLOOKUP($K18,#REF!,3,0),"غير مسجل")) -> غير مسجل | X18: =IF($C18="طباعه ",VLOOKUP(K18,#REF!,4,0)*F18,"0") -> 0 | Z18: 0 | AA18: 10000 | AB18: -10000 | AC18: =SUMIFS($AB$4:AB18,$K$4:K18,K18) -> -10000 | AE18: -10000
A19: =IF(I19<>"",MAX($A$3:A18)+1,"") -> 16 | B19: 3681 | C19: =IFERROR(VLOOKUP($K19,#REF!,5,0),"غير مسجل") -> غير مسجل | E19: 2020-01-01 | G19: غير مسجل | H19: غير مسجل | I19: غير مسجل | J19: غير مسجل | K19: اسبوت يوفي - الراوي | L19: =IFERROR(VLOOKUP($B19,table3,10,0),"غير مسجل") -> غير مسجل | M19: غير مسجل | N19: 1650 | P19: 1650 | R19: =SUMIFS(التسليمات!$N:$N,التسليمات!$G:$G,B19) -> 0 | U19: =IFERROR(VLOOKUP($K19,#REF!,3,0),"غير مسجل") -> غير مسجل | V19: =IFERROR(VLOOKUP($K19,#REF!,2,0),"غير مسجل") -> غير مسجل | W19: =IF($C19="طباعه ",IF($V19>$P19,$V19*VLOOKUP($K19,#REF!,3,0),$P19*VLOOKUP($K19,#REF!,3,0)),IF($C19="يوفي ",($L19*$M19*$P19*10/7)*VLOOKUP($K19,#REF!,3,0),"غير مسجل")) -> غير مسجل | X19: =IF($C19="طباعه ",VLOOKUP(K19,#REF!,4,0)*F19,"0") -> 0 | Z19: 0 | AB19: 0 | AC19: =SUMIFS($AB$4:AB19,$K$4:K19,K19) -> 0 | AE19: 0
A20: =IF(I20<>"",MAX($A$3:A19)+1,"") -> 17 | B20: 3681 | C20: =IFERROR(VLOOKUP($K20,#REF!,5,0),"غير مسجل") -> غير مسجل | E20: 2020-01-01 | F20: 6 | G20: غير مسجل | H20: غير مسجل | I20: غير مسجل | J20: غير مسجل | K20: وحيد | L20: غير مسجل | M20: غير مسجل | N20: 2550 | P20: 2550 | R20: =SUMIFS(التسليمات!$N:$N,التسليمات!$G:$G,B20) -> 0 | U20: =IFERROR(VLOOKUP($K20,#REF!,3,0),"غير مسجل") -> غير مسجل | V20: =IFERROR(VLOOKUP($K20,#REF!,2,0),"غير مسجل") -> غير مسجل | W20: =IF($C20="طباعه ",IF($V20>$P20,$V20*VLOOKUP($K20,#REF!,3,0),$P20*VLOOKUP($K20,#REF!,3,0)),IF($C20="يوفي ",($L20*$M20*$P20*10/7)*VLOOKUP($K20,#REF!,3,0),"غير مسجل")) -> غير مسجل | X20: =IF($C20="طباعه ",VLOOKUP(K20,#REF!,4,0)*F20,"0") -> 0 | Z20: 0 | AA20: 20000 | AB20: -20000 | AC20: =SUMIFS($AB$4:AB20,$K$4:K20,K20) -> -30000 | AE20: -20000
A21: =IF(I21<>"",MAX($A$3:A20)+1,"") -> 18 | B21: 3681 | C21: =IFERROR(VLOOKUP($K21,#REF!,5,0),"غير مسجل") -> غير مسجل | D21: 898 | E21: 2020-01-01 | G21: غير مسجل | H21: غير مسجل | I21: غير مسجل | J21: غير مسجل | K21: ابو اليزيد | L21: =IFERROR(VLOOKUP($B21,table3,10,0),"غير مسجل") -> غير مسجل | M21: غير مسجل | N21: 3120 | O21: 130 | P21: 3250 | R21: =SUMIFS(التسليمات!$N:$N,التسليمات!$G:$G,B21) -> 0 | U21: =IFERROR(VLOOKUP($K21,#REF!,3,0),"غير مسجل") -> غير مسجل | V21: =IFERROR(VLOOKUP($K21,#REF!,2,0),"غير مسجل") -> غير مسجل | W21: =IF($C21="طباعه ",IF($V21>$P21,$V21*VLOOKUP($K21,#REF!,3,0),$P21*VLOOKUP($K21,#REF!,3,0)),IF($C21="يوفي ",($L21*$M21*$P21*10/7)*VLOOKUP($K21,#REF!,3,0),"غير مسجل")) -> غير مسجل | X21: =IF($C21="طباعه ",VLOOKUP(K21,#REF!,4,0)*F21,"0") -> 0 | Y21: 5 | Z21: 0 | AB21: 0 | AC21: =SUMIFS($AB$4:AB21,$K$4:K21,K21) -> 0 | AE21: 0
A22: =IF(I22<>"",MAX($A$3:A21)+1,"") -> 19 | B22: 3674 | C22: =IFERROR(VLOOKUP($K22,#REF!,5,0),"غير مسجل") -> غير مسجل | E22: 2020-01-01 | F22: 6 | G22: غير مسجل | H22: غير مسجل | I22: غير مسجل | J22: غير مسجل | K22: وحيد | L22: غير مسجل | M22: غير مسجل | N22: 1500 | P22: 1500 | R22: =SUMIFS(التسليمات!$N:$N,التسليمات!$G:$G,B22) -> 0 | U22: =IFERROR(VLOOKUP($K22,#REF!,3,0),"غير مسجل") -> غير مسجل | V22: =IFERROR(VLOOKUP($K22,#REF!,2,0),"غير مسجل") -> غير مسجل | W22: =IF($C22="طباعه ",IF($V22>$P22,$V22*VLOOKUP($K22,#REF!,3,0),$P22*VLOOKUP($K22,#REF!,3,0)),IF($C22="يوفي ",($L22*$M22*$P22*10/7)*VLOOKUP($K22,#REF!,3,0),"غير مسجل")) -> غير مسجل | X22: =IF($C22="طباعه ",VLOOKUP(K22,#REF!,4,0)*F22,"0") -> 0 | Z22: 0 | AB22: 0 | AC22: =SUMIFS($AB$4:AB22,$K$4:K22,K22) -> -30000 | AE22: 0
A23: =IF(I23<>"",MAX($A$3:A22)+1,"") -> 20 | B23: 3674 | C23: =IFERROR(VLOOKUP($K23,#REF!,5,0),"غير مسجل") -> غير مسجل | E23: 2020-01-01 | G23: غير مسجل | H23: غير مسجل | I23: غير مسجل | J23: غير مسجل | K23: اسبوت يوفي - الراوي | L23: غير مسجل | M23: غير مسجل | N23: 1625 | O23: 25 | P23: 1650 | R23: =SUMIFS(التسليمات!$N:$N,التسليمات!$G:$G,B23) -> 0 | U23: =IFERROR(VLOOKUP($K23,#REF!,3,0),"غير مسجل") -> غير مسجل | V23: =IFERROR(VLOOKUP($K23,#REF!,2,0),"غير مسجل") -> غير مسجل | W23: =IF($C23="طباعه ",IF($V23>$P23,$V23*VLOOKUP($K23,#REF!,3,0),$P23*VLOOKUP($K23,#REF!,3,0)),IF($C23="يوفي ",($L23*$M23*$P23*10/7)*VLOOKUP($K23,#REF!,3,0),"غير مسجل")) -> غير مسجل | X23: =IF($C23="طباعه ",VLOOKUP(K23,#REF!,4,0)*F23,"0") -> 0 | Z23: 0 | AB23: 0 | AC23: =SUMIFS($AB$4:AB23,$K$4:K23,K23) -> 0 | AE23: 0
A24: =IF(I24<>"",MAX($A$3:A23)+1,"") -> 21 | B24: 3674 | C24: =IFERROR(VLOOKUP($K24,#REF!,5,0),"غير مسجل") -> غير مسجل | E24: 2020-01-01 | F24: 6 | G24: غير مسجل | H24: غير مسجل | I24: غير مسجل | J24: غير مسجل | K24: وحيد | L24: غير مسجل | M24: غير مسجل | N24: 1500 | P24: 1500 | R24: =SUMIFS(التسليمات!$N:$N,التسليمات!$G:$G,B24) -> 0 | U24: =IFERROR(VLOOKUP($K24,#REF!,3,0),"غير مسجل") -> غير مسجل | V24: =IFERROR(VLOOKUP($K24,#REF!,2,0),"غير مسجل") -> غير مسجل | W24: =IF($C24="طباعه ",IF($V24>$P24,$V24*VLOOKUP($K24,#REF!,3,0),$P24*VLOOKUP($K24,#REF!,3,0)),IF($C24="يوفي ",($L24*$M24*$P24*10/7)*VLOOKUP($K24,#REF!,3,0),"غير مسجل")) -> غير مسجل | X24: =IF($C24="طباعه ",VLOOKUP(K24,#REF!,4,0)*F24,"0") -> 0 | Z24: 0 | AB24: 0 | AC24: =SUMIFS($AB$4:AB24,$K$4:K24,K24) -> -30000 | AE24: 0
A25: =IF(I25<>"",MAX($A$3:A24)+1,"") -> 22 | B25: 3674 | C25: =IFERROR(VLOOKUP($K25,#REF!,5,0),"غير مسجل") -> غير مسجل | E25: 2020-01-01 | G25: غير مسجل | H25: غير مسجل | I25: غير مسجل | J25: غير مسجل | K25: اسبوت يوفي - الراوي | L25: غير مسجل | M25: غير مسجل | N25: 1625 | O25: 25 | P25: 1650 | R25: =SUMIFS(التسليمات!$N:$N,التسليمات!$G:$G,B25) -> 0 | U25: =IFERROR(VLOOKUP($K25,#REF!,3,0),"غير مسجل") -> غير مسجل | V25: =IFERROR(VLOOKUP($K25,#REF!,2,0),"غير مسجل") -> غير مسجل | W25: =IF($C25="طباعه ",IF($V25>$P25,$V25*VLOOKUP($K25,#REF!,3,0),$P25*VLOOKUP($K25,#REF!,3,0)),IF($C25="يوفي ",($L25*$M25*$P25*10/7)*VLOOKUP($K25,#REF!,3,0),"غير مسجل")) -> غير مسجل | X25: =IF($C25="طباعه ",VLOOKUP(K25,#REF!,4,0)*F25,"0") -> 0 | Z25: 0 | AB25: 0 | AC25: =SUMIFS($AB$4:AB25,$K$4:K25,K25) -> 0 | AE25: 0
A26: =IF(I26<>"",MAX($A$3:A25)+1,"") -> 23 | B26: 3669 | C26: =IFERROR(VLOOKUP($K26,#REF!,5,0),"غير مسجل") -> غير مسجل | E26: 2020-01-01 | G26: غير مسجل | H26: غير مسجل | I26: غير مسجل | J26: غير مسجل | K26: وحيد | L26: غير مسجل | M26: غير مسجل | N26: 1500 | P26: 1500 | R26: =SUMIFS(التسليمات!$N:$N,التسليمات!$G:$G,B26) -> 0 | U26: =IFERROR(VLOOKUP($K26,#REF!,3,0),"غير مسجل") -> غير مسجل | V26: =IFERROR(VLOOKUP($K26,#REF!,2,0),"غير مسجل") -> غير مسجل | W26: =IF($C26="طباعه ",IF($V26>$P26,$V26*VLOOKUP($K26,#REF!,3,0),$P26*VLOOKUP($K26,#REF!,3,0)),IF($C26="يوفي ",($L26*$M26*$P26*10/7)*VLOOKUP($K26,#REF!,3,0),"غير مسجل")) -> غير مسجل | X26: =IF($C26="طباعه ",VLOOKUP(K26,#REF!,4,0)*F26,"0") -> 0 | Z26: 0 | AB26: 0 | AC26: =SUMIFS($AB$4:AB26,$K$4:K26,K26) -> -30000 | AE26: 0
A27: =IF(I27<>"",MAX($A$3:A26)+1,"") -> 24 | B27: 3669 | C27: =IFERROR(VLOOKUP($K27,#REF!,5,0),"غير مسجل") -> غير مسجل | E27: 2020-01-01 | G27: غير مسجل | H27: غير مسجل | I27: غير مسجل | J27: غير مسجل | K27: ابو اليزيد | L27: غير مسجل | M27: غير مسجل | N27: 2000 | P27: 2000 | R27: =SUMIFS(التسليمات!$N:$N,التسليمات!$G:$G,B27) -> 0 | U27: =IFERROR(VLOOKUP($K27,#REF!,3,0),"غير مسجل") -> غير مسجل | V27: =IFERROR(VLOOKUP($K27,#REF!,2,0),"غير مسجل") -> غير مسجل | W27: =IF($C27="طباعه ",IF($V27>$P27,$V27*VLOOKUP($K27,#REF!,3,0),$P27*VLOOKUP($K27,#REF!,3,0)),IF($C27="يوفي ",($L27*$M27*$P27*10/7)*VLOOKUP($K27,#REF!,3,0),"غير مسجل")) -> غير مسجل | X27: =IF($C27="طباعه ",VLOOKUP(K27,#REF!,4,0)*F27,"0") -> 0 | Y27: -6 | Z27: 0 | AB27: 0 | AC27: =SUMIFS($AB$4:AB27,$K$4:K27,K27) -> 0 | AE27: 0
A28: =IF(I28<>"",MAX($A$3:A27)+1,"") -> 25 | B28: 3671 | C28: =IFERROR(VLOOKUP($K28,#REF!,5,0),"غير مسجل") -> غير مسجل | E28: 2020-01-01 | F28: 6 | G28: غير مسجل | H28: غير مسجل | I28: غير مسجل | J28: غير مسجل | K28: وحيد | L28: غير مسجل | M28: غير مسجل | N28: 4000 | P28: 4000 | R28: =SUMIFS(التسليمات!$N:$N,التسليمات!$G:$G,B28) -> 0 | U28: =IFERROR(VLOOKUP($K28,#REF!,3,0),"غير مسجل") -> غير مسجل | V28: =IFERROR(VLOOKUP($K28,#REF!,2,0),"غير مسجل") -> غير مسجل | W28: =IF($C28="طباعه ",IF($V28>$P28,$V28*VLOOKUP($K28,#REF!,3,0),$P28*VLOOKUP($K28,#REF!,3,0)),IF($C28="يوفي ",($L28*$M28*$P28*10/7)*VLOOKUP($K28,#REF!,3,0),"غير مسجل")) -> غير مسجل | X28: =IF($C28="طباعه ",VLOOKUP(K28,#REF!,4,0)*F28,"0") -> 0 | Z28: 0 | AB28: 0 | AC28: =SUMIFS($AB$4:AB28,$K$4:K28,K28) -> -30000 | AE28: 0
A29: =IF(I29<>"",MAX($A$3:A28)+1,"") -> 26 | B29: 3671 | C29: =IFERROR(VLOOKUP($K29,#REF!,5,0),"غير مسجل") -> غير مسجل | D29: 898 | E29: 2020-01-01 | G29: غير مسجل | H29: غير مسجل | I29: غير مسجل | J29: غير مسجل | K29: ابو اليزيد | L29: غير مسجل | M29: غير مسجل | N29: 4000 | O29: 200 | P29: 4200 | R29: =SUMIFS(التسليمات!$N:$N,التسليمات!$G:$G,B29) -> 0 | U29: =IFERROR(VLOOKUP($K29,#REF!,3,0),"غير مسجل") -> غير مسجل | V29: =IFERROR(VLOOKUP($K29,#REF!,2,0),"غير مسجل") -> غير مسجل | W29: =IF($C29="طباعه ",IF($V29>$P29,$V29*VLOOKUP($K29,#REF!,3,0),$P29*VLOOKUP($K29,#REF!,3,0)),IF($C29="يوفي ",($L29*$M29*$P29*10/7)*VLOOKUP($K29,#REF!,3,0),"غير مسجل")) -> غير مسجل | X29: =IF($C29="طباعه ",VLOOKUP(K29,#REF!,4,0)*F29,"0") -> 0 | Y29: 1.45 | Z29: 0 | AA29: 7598 | AB29: -7598 | AC29: =SUMIFS($AB$4:AB29,$K$4:K29,K29) -> -7598 | AE29: -7598
A30: =IF(I30<>"",MAX($A$3:A29)+1,"") -> 27 | B30: 3670 | C30: =IFERROR(VLOOKUP($K30,#REF!,5,0),"غير مسجل") -> غير مسجل | E30: 2020-01-01 | F30: 6 | G30: غير مسجل | H30: غير مسجل | I30: غير مسجل | J30: غير مسجل | K30: وحيد | L30: غير مسجل | M30: غير مسجل | N30: 5000 | P30: 5000 | R30: =SUMIFS(التسليمات!$N:$N,التسليمات!$G:$G,B30) -> 0 | U30: =IFERROR(VLOOKUP($K30,#REF!,3,0),"غير مسجل") -> غير مسجل | V30: =IFERROR(VLOOKUP($K30,#REF!,2,0),"غير مسجل") -> غير مسجل | W30: =IF($C30="طباعه ",IF($V30>$P30,$V30*VLOOKUP($K30,#REF!,3,0),$P30*VLOOKUP($K30,#REF!,3,0)),IF($C30="يوفي ",($L30*$M30*$P30*10/7)*VLOOKUP($K30,#REF!,3,0),"غير مسجل")) -> غير مسجل | X30: =IF($C30="طباعه ",VLOOKUP(K30,#REF!,4,0)*F30,"0") -> 0 | Z30: 0 | AB30: 0 | AC30: =SUMIFS($AB$4:AB30,$K$4:K30,K30) -> -30000 | AE30: 0
A31: =IF(I31<>"",MAX($A$3:A30)+1,"") -> 28 | B31: 3670 | C31: =IFERROR(VLOOKUP($K31,#REF!,5,0),"غير مسجل") -> غير مسجل | E31: 2020-01-01 | G31: غير مسجل | H31: غير مسجل | I31: غير مسجل | J31: غير مسجل | K31: ابو اليزيد | L31: غير مسجل | M31: غير مسجل | N31: 5000 | P31: 5000 | R31: =SUMIFS(التسليمات!$N:$N,التسليمات!$G:$G,B31) -> 0 | U31: =IFERROR(VLOOKUP($K31,#REF!,3,0),"غير مسجل") -> غير مسجل | V31: =IFERROR(VLOOKUP($K31,#REF!,2,0),"غير مسجل") -> غير مسجل | W31: =IF($C31="طباعه ",IF($V31>$P31,$V31*VLOOKUP($K31,#REF!,3,0),$P31*VLOOKUP($K31,#REF!,3,0)),IF($C31="يوفي ",($L31*$M31*$P31*10/7)*VLOOKUP($K31,#REF!,3,0),"غير مسجل")) -> غير مسجل | X31: =IF($C31="طباعه ",VLOOKUP(K31,#REF!,4,0)*F31,"0") -> 0 | Z31: 0 | AB31: 0 | AC31: =SUMIFS($AB$4:AB31,$K$4:K31,K31) -> -7598 | AE31: 0
A32: =IF(I32<>"",MAX($A$3:A31)+1,"") -> 29 | B32: 3670.1 | C32: =IFERROR(VLOOKUP($K32,#REF!,5,0),"غير مسجل") -> غير مسجل | E32: 2020-01-01 | F32: 3 | G32: غير مسجل | H32: غير مسجل | I32: غير مسجل | J32: غير مسجل | K32: وحيد | L32: غير مسجل | M32: غير مسجل | N32: 5000 | P32: 5000 | R32: =SUMIFS(التسليمات!$N:$N,التسليمات!$G:$G,B32) -> 0 | U32: =IFERROR(VLOOKUP($K32,#REF!,3,0),"غير مسجل") -> غير مسجل | V32: =IFERROR(VLOOKUP($K32,#REF!,2,0),"غير مسجل") -> غير مسجل | W32: =IF($C32="طباعه ",IF($V32>$P32,$V32*VLOOKUP($K32,#REF!,3,0),$P32*VLOOKUP($K32,#REF!,3,0)),IF($C32="يوفي ",($L32*$M32*$P32*10/7)*VLOOKUP($K32,#REF!,3,0),"غير مسجل")) -> غير مسجل | X32: =IF($C32="طباعه ",VLOOKUP(K32,#REF!,4,0)*F32,"0") -> 0 | Z32: 0 | AB32: 0 | AC32: =SUMIFS($AB$4:AB32,$K$4:K32,K32) -> -30000 | AE32: 0
A33: =IF(I33<>"",MAX($A$3:A32)+1,"") -> 30 | B33: 3670.1 | C33: =IFERROR(VLOOKUP($K33,#REF!,5,0),"غير مسجل") -> غير مسجل | E33: 2020-01-01 | G33: غير مسجل | H33: غير مسجل | I33: غير مسجل | J33: غير مسجل | K33: ابو اليزيد | L33: غير مسجل | M33: غير مسجل | N33: 5000 | P33: 5000 | R33: =SUMIFS(التسليمات!$N:$N,التسليمات!$G:$G,B33) -> 0 | U33: =IFERROR(VLOOKUP($K33,#REF!,3,0),"غير مسجل") -> غير مسجل | V33: =IFERROR(VLOOKUP($K33,#REF!,2,0),"غير مسجل") -> غير مسجل | W33: =IF($C33="طباعه ",IF($V33>$P33,$V33*VLOOKUP($K33,#REF!,3,0),$P33*VLOOKUP($K33,#REF!,3,0)),IF($C33="يوفي ",($L33*$M33*$P33*10/7)*VLOOKUP($K33,#REF!,3,0),"غير مسجل")) -> غير مسجل | X33: =IF($C33="طباعه ",VLOOKUP(K33,#REF!,4,0)*F33,"0") -> 0 | Z33: 0 | AB33: 0 | AC33: =SUMIFS($AB$4:AB33,$K$4:K33,K33) -> -7598 | AE33: 0
A34: =IF(I34<>"",MAX($A$3:A33)+1,"") -> 31 | B34: 3670.2 | C34: =IFERROR(VLOOKUP($K34,#REF!,5,0),"غير مسجل") -> غير مسجل | E34: 2020-01-01 | G34: غير مسجل | H34: غير مسجل | I34: غير مسجل | J34: غير مسجل | K34: وحيد | L34: غير مسجل | M34: غير مسجل | N34: 5000 | P34: 5000 | R34: =SUMIFS(التسليمات!$N:$N,التسليمات!$G:$G,B34) -> 0 | U34: =IFERROR(VLOOKUP($K34,#REF!,3,0),"غير مسجل") -> غير مسجل | V34: =IFERROR(VLOOKUP($K34,#REF!,2,0),"غير مسجل") -> غير مسجل | W34: =IF($C34="طباعه ",IF($V34>$P34,$V34*VLOOKUP($K34,#REF!,3,0),$P34*VLOOKUP($K34,#REF!,3,0)),IF($C34="يوفي ",($L34*$M34*$P34*10/7)*VLOOKUP($K34,#REF!,3,0),"غير مسجل")) -> غير مسجل | X34: =IF($C34="طباعه ",VLOOKUP(K34,#REF!,4,0)*F34,"0") -> 0 | Z34: 0 | AB34: 0 | AC34: =SUMIFS($AB$4:AB34,$K$4:K34,K34) -> -30000 | AE34: 0
A35: =IF(I35<>"",MAX($A$3:A34)+1,"") -> 32 | B35: 3670.2 | C35: =IFERROR(VLOOKUP($K35,#REF!,5,0),"غير مسجل") -> غير مسجل | E35: 2020-01-01 | G35: غير مسجل | H35: غير مسجل | I35: غير مسجل | J35: غير مسجل | K35: ابو اليزيد | L35: غير مسجل | M35: غير مسجل | N35: 5000 | P35: 5000 | R35: =SUMIFS(التسليمات!$N:$N,التسليمات!$G:$G,B35) -> 0 | U35: =IFERROR(VLOOKUP($K35,#REF!,3,0),"غير مسجل") -> غير مسجل | V35: =IFERROR(VLOOKUP($K35,#REF!,2,0),"غير مسجل") -> غير مسجل | W35: =IF($C35="طباعه ",IF($V35>$P35,$V35*VLOOKUP($K35,#REF!,3,0),$P35*VLOOKUP($K35,#REF!,3,0)),IF($C35="يوفي ",($L35*$M35*$P35*10/7)*VLOOKUP($K35,#REF!,3,0),"غير مسجل")) -> غير مسجل | X35: =IF($C35="طباعه ",VLOOKUP(K35,#REF!,4,0)*F35,"0") -> 0 | Y35: -7.5 | Z35: 0 | AA35: 1900 | AB35: -1900 | AC35: =SUMIFS($AB$4:AB35,$K$4:K35,K35) -> -9498 | AE35: -1900
A36: =IF(I36<>"",MAX($A$3:A35)+1,"") -> 33 | B36: 3683 | C36: =IFERROR(VLOOKUP($K36,#REF!,5,0),"غير مسجل") -> غير مسجل | E36: 2020-01-01 | F36: 6 | G36: غير مسجل | H36: غير مسجل | I36: غير مسجل | J36: غير مسجل | K36: وحيد | L36: غير مسجل | M36: غير مسجل | N36: 6000 | P36: 6000 | R36: =SUMIFS(التسليمات!$N:$N,التسليمات!$G:$G,B36) -> 0 | U36: =IFERROR(VLOOKUP($K36,#REF!,3,0),"غير مسجل") -> غير مسجل | V36: =IFERROR(VLOOKUP($K36,#REF!,2,0),"غير مسجل") -> غير مسجل | W36: =IF($C36="طباعه ",IF($V36>$P36,$V36*VLOOKUP($K36,#REF!,3,0),$P36*VLOOKUP($K36,#REF!,3,0)),IF($C36="يوفي ",($L36*$M36*$P36*10/7)*VLOOKUP($K36,#REF!,3,0),"غير مسجل")) -> غير مسجل | X36: =IF($C36="طباعه ",VLOOKUP(K36,#REF!,4,0)*F36,"0") -> 0 | Z36: 0 | AA36: 20000 | AB36: -20000 | AC36: =SUMIFS($AB$4:AB36,$K$4:K36,K36) -> -50000 | AE36: -20000
A37: =IF(I37<>"",MAX($A$3:A36)+1,"") -> 34 | B37: 3683 | C37: =IFERROR(VLOOKUP($K37,#REF!,5,0),"غير مسجل") -> غير مسجل | E37: 2020-01-01 | G37: غير مسجل | H37: غير مسجل | I37: غير مسجل | J37: غير مسجل | K37: الفاباك | L37: غير مسجل | M37: غير مسجل | P37: 0 | R37: =SUMIFS(التسليمات!$N:$N,التسليمات!$G:$G,B37) -> 0 | U37: =IFERROR(VLOOKUP($K37,#REF!,3,0),"غير مسجل") -> غير مسجل | V37: =IFERROR(VLOOKUP($K37,#REF!,2,0),"غير مسجل") -> غير مسجل | W37: =IF($C37="طباعه ",IF($V37>$P37,$V37*VLOOKUP($K37,#REF!,3,0),$P37*VLOOKUP($K37,#REF!,3,0)),IF($C37="يوفي ",($L37*$M37*$P37*10/7)*VLOOKUP($K37,#REF!,3,0),"غير مسجل")) -> غير مسجل | X37: =IF($C37="طباعه ",VLOOKUP(K37,#REF!,4,0)*F37,"0") -> 0 | Z37: 0 | AB37: 0 | AC37: =SUMIFS($AB$4:AB37,$K$4:K37,K37) -> 0 | AE37: 0
A38: =IF(I38<>"",MAX($A$3:A37)+1,"") -> 35 | B38: 3683.1 | C38: =IFERROR(VLOOKUP($K38,#REF!,5,0),"غير مسجل") -> غير مسجل | E38: 2020-01-01 | F38: 6 | G38: غير مسجل | H38: غير مسجل | I38: غير مسجل | J38: غير مسجل | K38: وحيد | L38: غير مسجل | M38: غير مسجل | N38: 6000 | P38: 6000 | R38: =SUMIFS(التسليمات!$N:$N,التسليمات!$G:$G,B38) -> 0 | U38: =IFERROR(VLOOKUP($K38,#REF!,3,0),"غير مسجل") -> غير مسجل | V38: =IFERROR(VLOOKUP($K38,#REF!,2,0),"غير مسجل") -> غير مسجل | W38: =IF($C38="طباعه ",IF($V38>$P38,$V38*VLOOKUP($K38,#REF!,3,0),$P38*VLOOKUP($K38,#REF!,3,0)),IF($C38="يوفي ",($L38*$M38*$P38*10/7)*VLOOKUP($K38,#REF!,3,0),"غير مسجل")) -> غير مسجل | X38: =IF($C38="طباعه ",VLOOKUP(K38,#REF!,4,0)*F38,"0") -> 0 | Z38: 0 | AB38: 0 | AC38: =SUMIFS($AB$4:AB38,$K$4:K38,K38) -> -50000 | AE38: 0
A39: =IF(I39<>"",MAX($A$3:A38)+1,"") -> 36 | B39: 3683.1 | C39: =IFERROR(VLOOKUP($K39,#REF!,5,0),"غير مسجل") -> غير مسجل | E39: 2020-01-01 | G39: غير مسجل | H39: غير مسجل | I39: غير مسجل | J39: غير مسجل | K39: الفاباك | L39: غير مسجل | M39: غير مسجل | P39: 0 | R39: =SUMIFS(التسليمات!$N:$N,التسليمات!$G:$G,B39) -> 0 | U39: =IFERROR(VLOOKUP($K39,#REF!,3,0),"غير مسجل") -> غير مسجل | V39: =IFERROR(VLOOKUP($K39,#REF!,2,0),"غير مسجل") -> غير مسجل | W39: =IF($C39="طباعه ",IF($V39>$P39,$V39*VLOOKUP($K39,#REF!,3,0),$P39*VLOOKUP($K39,#REF!,3,0)),IF($C39="يوفي ",($L39*$M39*$P39*10/7)*VLOOKUP($K39,#REF!,3,0),"غير مسجل")) -> غير مسجل | X39: =IF($C39="طباعه ",VLOOKUP(K39,#REF!,4,0)*F39,"0") -> 0 | Z39: 0 | AB39: 0 | AC39: =SUMIFS($AB$4:AB39,$K$4:K39,K39) -> 0 | AE39: 0
A40: =IF(I40<>"",MAX($A$3:A39)+1,"") -> 37 | B40: 3683.2 | C40: =IFERROR(VLOOKUP($K40,#REF!,5,0),"غير مسجل") -> غير مسجل | E40: 2020-01-01 | F40: 6 | G40: غير مسجل | H40: غير مسجل | I40: غير مسجل | J40: غير مسجل | K40: وحيد | L40: غير مسجل | M40: غير مسجل | N40: 6000 | P40: 6000 | R40: =SUMIFS(التسليمات!$N:$N,التسليمات!$G:$G,B40) -> 0 | U40: =IFERROR(VLOOKUP($K40,#REF!,3,0),"غير مسجل") -> غير مسجل | V40: =IFERROR(VLOOKUP($K40,#REF!,2,0),"غير مسجل") -> غير مسجل | W40: =IF($C40="طباعه ",IF($V40>$P40,$V40*VLOOKUP($K40,#REF!,3,0),$P40*VLOOKUP($K40,#REF!,3,0)),IF($C40="يوفي ",($L40*$M40*$P40*10/7)*VLOOKUP($K40,#REF!,3,0),"غير مسجل")) -> غير مسجل | X40: =IF($C40="طباعه ",VLOOKUP(K40,#REF!,4,0)*F40,"0") -> 0 | Z40: 0 | AA40: 5655 | AB40: -5655 | AC40: =SUMIFS($AB$4:AB40,$K$4:K40,K40) -> -55655 | AE40: -5655
A41: =IF(I41<>"",MAX($A$3:A40)+1,"") -> 38 | B41: 3683.2 | C41: =IFERROR(VLOOKUP($K41,#REF!,5,0),"غير مسجل") -> غير مسجل | E41: 2020-01-01 | G41: غير مسجل | H41: غير مسجل | I41: غير مسجل | J41: غير مسجل | K41: الفاباك | L41: غير مسجل | M41: غير مسجل | P41: 0 | R41: =SUMIFS(التسليمات!$N:$N,التسليمات!$G:$G,B41) -> 0 | U41: =IFERROR(VLOOKUP($K41,#REF!,3,0),"غير مسجل") -> غير مسجل | V41: =IFERROR(VLOOKUP($K41,#REF!,2,0),"غير مسجل") -> غير مسجل | W41: =IF($C41="طباعه ",IF($V41>$P41,$V41*VLOOKUP($K41,#REF!,3,0),$P41*VLOOKUP($K41,#REF!,3,0)),IF($C41="يوفي ",($L41*$M41*$P41*10/7)*VLOOKUP($K41,#REF!,3,0),"غير مسجل")) -> غير مسجل | X41: =IF($C41="طباعه ",VLOOKUP(K41,#REF!,4,0)*F41,"0") -> 0 | Z41: 0 | AB41: 0 | AC41: =SUMIFS($AB$4:AB41,$K$4:K41,K41) -> 0 | AE41: 0
A42: =IF(I42<>"",MAX($A$3:A41)+1,"") -> 39 | B42: 3693 | C42: =IFERROR(VLOOKUP($K42,#REF!,5,0),"غير مسجل") -> غير مسجل | E42: 2020-01-01 | F42: 6 | G42: غير مسجل | H42: غير مسجل | I42: غير مسجل | J42: غير مسجل | K42: فريندز - علاء | L42: غير مسجل | M42: غير مسجل | N42: 3000 | O42: 184 | P42: 3184 | R42: =SUMIFS(التسليمات!$N:$N,التسليمات!$G:$G,B42) -> 0 | U42: =IFERROR(VLOOKUP($K42,#REF!,3,0),"غير مسجل") -> غير مسجل | V42: =IFERROR(VLOOKUP($K42,#REF!,2,0),"غير مسجل") -> غير مسجل | W42: =IF($C42="طباعه ",IF($V42>$P42,$V42*VLOOKUP($K42,#REF!,3,0),$P42*VLOOKUP($K42,#REF!,3,0)),IF($C42="يوفي ",($L42*$M42*$P42*10/7)*VLOOKUP($K42,#REF!,3,0),"غير مسجل")) -> غير مسجل | X42: =IF($C42="طباعه ",VLOOKUP(K42,#REF!,4,0)*F42,"0") -> 0 | Z42: 0 | AB42: 0 | AC42: =SUMIFS($AB$4:AB42,$K$4:K42,K42) -> 0 | AE42: 0
A43: =IF(I43<>"",MAX($A$3:A42)+1,"") -> 40 | B43: 3693 | C43: =IFERROR(VLOOKUP($K43,#REF!,5,0),"غير مسجل") -> غير مسجل | E43: 2020-01-01 | G43: غير مسجل | H43: غير مسجل | I43: غير مسجل | J43: غير مسجل | K43: اسبوت يوفي - الراوي | L43: غير مسجل | M43: غير مسجل | N43: 3000 | O43: 184 | P43: 3184 | R43: =SUMIFS(التسليمات!$N:$N,التسليمات!$G:$G,B43) -> 0 | S43: 0 | U43: =IFERROR(VLOOKUP($K43,#REF!,3,0),"غير مسجل") -> غير مسجل | V43: =IFERROR(VLOOKUP($K43,#REF!,2,0),"غير مسجل") -> غير مسجل | W43: =IF($C43="طباعه ",IF($V43>$P43,$V43*VLOOKUP($K43,#REF!,3,0),$P43*VLOOKUP($K43,#REF!,3,0)),IF($C43="يوفي ",($L43*$M43*$P43*10/7)*VLOOKUP($K43,#REF!,3,0),"غير مسجل")) -> غير مسجل | X43: =IF($C43="طباعه ",VLOOKUP(K43,#REF!,4,0)*F43,"0") -> 0 | Z43: 0 | AB43: 0 | AC43: =SUMIFS($AB$4:AB43,$K$4:K43,K43) -> 0 | AE43: 0
A44: =IF(I44<>"",MAX($A$3:A43)+1,"") -> 41 | B44: 3693.1 | C44: =IFERROR(VLOOKUP($K44,#REF!,5,0),"غير مسجل") -> غير مسجل | E44: 2020-01-01 | G44: غير مسجل | H44: غير مسجل | I44: غير مسجل | J44: غير مسجل | K44: فريندز - علاء | L44: غير مسجل | M44: غير مسجل | N44: 3000 | O44: 222 | P44: 3222 | R44: =SUMIFS(التسليمات!$N:$N,التسليمات!$G:$G,B44) -> 0 | U44: =IFERROR(VLOOKUP($K44,#REF!,3,0),"غير مسجل") -> غير مسجل | V44: =IFERROR(VLOOKUP($K44,#REF!,2,0),"غير مسجل") -> غير مسجل | W44: =IF($C44="طباعه ",IF($V44>$P44,$V44*VLOOKUP($K44,#REF!,3,0),$P44*VLOOKUP($K44,#REF!,3,0)),IF($C44="يوفي ",($L44*$M44*$P44*10/7)*VLOOKUP($K44,#REF!,3,0),"غير مسجل")) -> غير مسجل | X44: =IF($C44="طباعه ",VLOOKUP(K44,#REF!,4,0)*F44,"0") -> 0 | Z44: 0 | AB44: 0 | AC44: =SUMIFS($AB$4:AB44,$K$4:K44,K44) -> 0 | AE44: 0
A45: =IF(I45<>"",MAX($A$3:A44)+1,"") -> 42 | B45: 3693.1 | C45: =IFERROR(VLOOKUP($K45,#REF!,5,0),"غير مسجل") -> غير مسجل | E45: 2020-01-01 | G45: غير مسجل | H45: غير مسجل | I45: غير مسجل | J45: غير مسجل | K45: اسبوت يوفي - الراوي | L45: غير مسجل | M45: غير مسجل | N45: 3000 | O45: 222 | P45: 3222 | R45: =SUMIFS(التسليمات!$N:$N,التسليمات!$G:$G,B45) -> 0 | S45: 0 | U45: =IFERROR(VLOOKUP($K45,#REF!,3,0),"غير مسجل") -> غير مسجل | V45: =IFERROR(VLOOKUP($K45,#REF!,2,0),"غير مسجل") -> غير مسجل | W45: =IF($C45="طباعه ",IF($V45>$P45,$V45*VLOOKUP($K45,#REF!,3,0),$P45*VLOOKUP($K45,#REF!,3,0)),IF($C45="يوفي ",($L45*$M45*$P45*10/7)*VLOOKUP($K45,#REF!,3,0),"غير مسجل")) -> غير مسجل | X45: =IF($C45="طباعه ",VLOOKUP(K45,#REF!,4,0)*F45,"0") -> 0 | Z45: 0 | AB45: 0 | AC45: =SUMIFS($AB$4:AB45,$K$4:K45,K45) -> 0 | AE45: 0
A46: =IF(I46<>"",MAX($A$3:A45)+1,"") -> 43 | B46: 3693.2 | C46: =IFERROR(VLOOKUP($K46,#REF!,5,0),"غير مسجل") -> غير مسجل | E46: 2020-01-01 | G46: غير مسجل | H46: غير مسجل | I46: غير مسجل | J46: غير مسجل | K46: فريندز - علاء | L46: غير مسجل | M46: غير مسجل | N46: 3000 | O46: =304+290 -> 594 | P46: 3594 | R46: =SUMIFS(التسليمات!$N:$N,التسليمات!$G:$G,B46) -> 0 | U46: =IFERROR(VLOOKUP($K46,#REF!,3,0),"غير مسجل") -> غير مسجل | V46: =IFERROR(VLOOKUP($K46,#REF!,2,0),"غير مسجل") -> غير مسجل | W46: =IF($C46="طباعه ",IF($V46>$P46,$V46*VLOOKUP($K46,#REF!,3,0),$P46*VLOOKUP($K46,#REF!,3,0)),IF($C46="يوفي ",($L46*$M46*$P46*10/7)*VLOOKUP($K46,#REF!,3,0),"غير مسجل")) -> غير مسجل | X46: =IF($C46="طباعه ",VLOOKUP(K46,#REF!,4,0)*F46,"0") -> 0 | Z46: 0 | AA46: 6860 | AB46: -6860 | AC46: =SUMIFS($AB$4:AB46,$K$4:K46,K46) -> -6860 | AE46: -6860
A47: =IF(I47<>"",MAX($A$3:A46)+1,"") -> 44 | B47: 3693.2 | C47: =IFERROR(VLOOKUP($K47,#REF!,5,0),"غير مسجل") -> غير مسجل | E47: 2020-01-01 | G47: غير مسجل | H47: غير مسجل | I47: غير مسجل | J47: غير مسجل | K47: اسبوت يوفي - الراوي | L47: غير مسجل | M47: غير مسجل | N47: 3000 | O47: 294 | P47: 3294 | R47: =SUMIFS(التسليمات!$N:$N,التسليمات!$G:$G,B47) -> 0 | U47: =IFERROR(VLOOKUP($K47,#REF!,3,0),"غير مسجل") -> غير مسجل | V47: =IFERROR(VLOOKUP($K47,#REF!,2,0),"غير مسجل") -> غير مسجل | W47: =IF($C47="طباعه ",IF($V47>$P47,$V47*VLOOKUP($K47,#REF!,3,0),$P47*VLOOKUP($K47,#REF!,3,0)),IF($C47="يوفي ",($L47*$M47*$P47*10/7)*VLOOKUP($K47,#REF!,3,0),"غير مسجل")) -> غير مسجل | X47: =IF($C47="طباعه ",VLOOKUP(K47,#REF!,4,0)*F47,"0") -> 0 | Y47: -27.225 | Z47: 0 | AA47: 5149 | AB47: -5149 | AC47: =SUMIFS($AB$4:AB47,$K$4:K47,K47) -> -5149 | AE47: -5149
A48: =IF(I48<>"",MAX($A$3:A47)+1,"") -> 45 | B48: 3643 | C48: =IFERROR(VLOOKUP($K48,#REF!,5,0),"غير مسجل") -> غير مسجل | E48: 2020-01-01 | G48: غير مسجل | H48: غير مسجل | I48: غير مسجل | J48: غير مسجل | K48: ابو اليزيد | L48: غير مسجل | M48: غير مسجل | N48: 1700 | P48: 1700 | R48: =SUMIFS(التسليمات!$N:$N,التسليمات!$G:$G,B48) -> 0 | U48: =IFERROR(VLOOKUP($K48,#REF!,3,0),"غير مسجل") -> غير مسجل | V48: =IFERROR(VLOOKUP($K48,#REF!,2,0),"غير مسجل") -> غير مسجل | W48: =IF($C48="طباعه ",IF($V48>$P48,$V48*VLOOKUP($K48,#REF!,3,0),$P48*VLOOKUP($K48,#REF!,3,0)),IF($C48="يوفي ",($L48*$M48*$P48*10/7)*VLOOKUP($K48,#REF!,3,0),"غير مسجل")) -> غير مسجل | X48: =IF($C48="طباعه ",VLOOKUP(K48,#REF!,4,0)*F48,"0") -> 0 | Y48: -0.8 | Z48: 0 | AB48: 0 | AC48: =SUMIFS($AB$4:AB48,$K$4:K48,K48) -> -9498 | AE48: 0
A49: =IF(I49<>"",MAX($A$3:A48)+1,"") -> 46 | B49: 3693 | C49: =IFERROR(VLOOKUP($K49,#REF!,5,0),"غير مسجل") -> غير مسجل | E49: 2020-01-01 | G49: غير مسجل | H49: غير مسجل | I49: غير مسجل | J49: غير مسجل | K49: ابو اليزيد | L49: غير مسجل | M49: غير مسجل | N49: 3184 | P49: 3184 | R49: =SUMIFS(التسليمات!$N:$N,التسليمات!$G:$G,B49) -> 0 | U49: =IFERROR(VLOOKUP($K49,#REF!,3,0),"غير مسجل") -> غير مسجل | V49: =IFERROR(VLOOKUP($K49,#REF!,2,0),"غير مسجل") -> غير مسجل | W49: =IF($C49="طباعه ",IF($V49>$P49,$V49*VLOOKUP($K49,#REF!,3,0),$P49*VLOOKUP($K49,#REF!,3,0)),IF($C49="يوفي ",($L49*$M49*$P49*10/7)*VLOOKUP($K49,#REF!,3,0),"غير مسجل")) -> غير مسجل | X49: =IF($C49="طباعه ",VLOOKUP(K49,#REF!,4,0)*F49,"0") -> 0 | Z49: 0 | AB49: 0 | AC49: =SUMIFS($AB$4:AB49,$K$4:K49,K49) -> -9498 | AE49: 0
A50: =IF(I50<>"",MAX($A$3:A49)+1,"") -> 47 | B50: 3693.1 | C50: =IFERROR(VLOOKUP($K50,#REF!,5,0),"غير مسجل") -> غير مسجل | E50: 2020-01-01 | G50: غير مسجل | H50: غير مسجل | I50: غير مسجل | J50: غير مسجل | K50: ابو اليزيد | L50: غير مسجل | M50: غير مسجل | N50: 2116 | P50: 2116 | R50: =SUMIFS(التسليمات!$N:$N,التسليمات!$G:$G,B50) -> 0 | U50: =IFERROR(VLOOKUP($K50,#REF!,3,0),"غير مسجل") -> غير مسجل | V50: =IFERROR(VLOOKUP($K50,#REF!,2,0),"غير مسجل") -> غير مسجل | W50: =IF($C50="طباعه ",IF($V50>$P50,$V50*VLOOKUP($K50,#REF!,3,0),$P50*VLOOKUP($K50,#REF!,3,0)),IF($C50="يوفي ",($L50*$M50*$P50*10/7)*VLOOKUP($K50,#REF!,3,0),"غير مسجل")) -> غير مسجل | X50: =IF($C50="طباعه ",VLOOKUP(K50,#REF!,4,0)*F50,"0") -> 0 | Y50: -122.3 | Z50: 0 | AB50: 0 | AC50: =SUMIFS($AB$4:AB50,$K$4:K50,K50) -> -9498 | AE50: 0
A51: =IF(I51<>"",MAX($A$3:A50)+1,"") -> 48 | B51: 3693.2 | C51: =IFERROR(VLOOKUP($K51,#REF!,5,0),"غير مسجل") -> غير مسجل | E51: 2020-01-01 | G51: غير مسجل | H51: غير مسجل | I51: غير مسجل | J51: غير مسجل | K51: ابو اليزيد | L51: غير مسجل | M51: غير مسجل | N51: 0 | P51: 0 | R51: =SUMIFS(التسليمات!$N:$N,التسليمات!$G:$G,B51) -> 0 | U51: =IFERROR(VLOOKUP($K51,#REF!,3,0),"غير مسجل") -> غير مسجل | V51: =IFERROR(VLOOKUP($K51,#REF!,2,0),"غير مسجل") -> غير مسجل | W51: =IF($C51="طباعه ",IF($V51>$P51,$V51*VLOOKUP($K51,#REF!,3,0),$P51*VLOOKUP($K51,#REF!,3,0)),IF($C51="يوفي ",($L51*$M51*$P51*10/7)*VLOOKUP($K51,#REF!,3,0),"غير مسجل")) -> غير مسجل | X51: =IF($C51="طباعه ",VLOOKUP(K51,#REF!,4,0)*F51,"0") -> 0 | Z51: 0 | AB51: 0 | AC51: =SUMIFS($AB$4:AB51,$K$4:K51,K51) -> -9498 | AE51: 0
A52: =IF(I52<>"",MAX($A$3:A51)+1,"") -> 49 | B52: 3612 | C52: =IFERROR(VLOOKUP($K52,#REF!,5,0),"غير مسجل") -> غير مسجل | E52: 2020-01-01 | G52: غير مسجل | H52: غير مسجل | I52: غير مسجل | J52: غير مسجل | K52: ابو اليزيد | L52: غير مسجل | M52: غير مسجل | N52: 3000 | O52: 50 | P52: 3050 | R52: =SUMIFS(التسليمات!$N:$N,التسليمات!$G:$G,B52) -> 0 | U52: =IFERROR(VLOOKUP($K52,#REF!,3,0),"غير مسجل") -> غير مسجل | V52: =IFERROR(VLOOKUP($K52,#REF!,2,0),"غير مسجل") -> غير مسجل | W52: =IF($C52="طباعه ",IF($V52>$P52,$V52*VLOOKUP($K52,#REF!,3,0),$P52*VLOOKUP($K52,#REF!,3,0)),IF($C52="يوفي ",($L52*$M52*$P52*10/7)*VLOOKUP($K52,#REF!,3,0),"غير مسجل")) -> غير مسجل | X52: =IF($C52="طباعه ",VLOOKUP(K52,#REF!,4,0)*F52,"0") -> 0 | Y52: -331.75 | Z52: 0 | AB52: 0 | AC52: =SUMIFS($AB$4:AB52,$K$4:K52,K52) -> -9498 | AE52: 0
A53: =IF(I53<>"",MAX($A$3:A52)+1,"") -> 50 | B53: 3612.1 | C53: =IFERROR(VLOOKUP($K53,#REF!,5,0),"غير مسجل") -> غير مسجل | E53: 2020-01-01 | G53: غير مسجل | H53: غير مسجل | I53: غير مسجل | J53: غير مسجل | K53: ابو اليزيد | L53: غير مسجل | M53: غير مسجل | N53: 3000 | O53: 50 | P53: 3050 | R53: =SUMIFS(التسليمات!$N:$N,التسليمات!$G:$G,B53) -> 0 | U53: =IFERROR(VLOOKUP($K53,#REF!,3,0),"غير مسجل") -> غير مسجل | V53: =IFERROR(VLOOKUP($K53,#REF!,2,0),"غير مسجل") -> غير مسجل | W53: =IF($C53="طباعه ",IF($V53>$P53,$V53*VLOOKUP($K53,#REF!,3,0),$P53*VLOOKUP($K53,#REF!,3,0)),IF($C53="يوفي ",($L53*$M53*$P53*10/7)*VLOOKUP($K53,#REF!,3,0),"غير مسجل")) -> غير مسجل | X53: =IF($C53="طباعه ",VLOOKUP(K53,#REF!,4,0)*F53,"0") -> 0 | Z53: 0 | AA53: 3508 | AB53: -3508 | AC53: =SUMIFS($AB$4:AB53,$K$4:K53,K53) -> -13006 | AE53: -3508
A54: =IF(I54<>"",MAX($A$3:A53)+1,"") -> 51 | C54: =IFERROR(VLOOKUP($K54,#REF!,5,0),"غير مسجل") -> غير مسجل | G54: غير مسجل | H54: غير مسجل | I54: غير مسجل | J54: غير مسجل | L54: غير مسجل | M54: غير مسجل | P54: 0 | R54: =SUMIFS(التسليمات!$N:$N,التسليمات!$G:$G,B54) -> 0 | U54: =IFERROR(VLOOKUP($K54,#REF!,3,0),"غير مسجل") -> غير مسجل | V54: =IFERROR(VLOOKUP($K54,#REF!,2,0),"غير مسجل") -> غير مسجل | W54: =IF($C54="طباعه ",IF($V54>$P54,$V54*VLOOKUP($K54,#REF!,3,0),$P54*VLOOKUP($K54,#REF!,3,0)),IF($C54="يوفي ",($L54*$M54*$P54*10/7)*VLOOKUP($K54,#REF!,3,0),"غير مسجل")) -> غير مسجل | X54: =IF($C54="طباعه ",VLOOKUP(K54,#REF!,4,0)*F54,"0") -> 0 | Z54: 0 | AB54: 0 | AC54: =SUMIFS($AB$4:AB54,$K$4:K54,K54) -> 0 | AE54: 0
A55: =IF(I55<>"",MAX($A$3:A54)+1,"") -> 52 | C55: =IFERROR(VLOOKUP($K55,#REF!,5,0),"غير مسجل") -> غير مسجل | G55: غير مسجل | H55: غير مسجل | I55: غير مسجل | J55: غير مسجل | L55: غير مسجل | M55: غير مسجل | P55: 0 | R55: =SUMIFS(التسليمات!$N:$N,التسليمات!$G:$G,B55) -> 0 | U55: =IFERROR(VLOOKUP($K55,#REF!,3,0),"غير مسجل") -> غير مسجل | V55: =IFERROR(VLOOKUP($K55,#REF!,2,0),"غير مسجل") -> غير مسجل | W55: =IF($C55="طباعه ",IF($V55>$P55,$V55*VLOOKUP($K55,#REF!,3,0),$P55*VLOOKUP($K55,#REF!,3,0)),IF($C55="يوفي ",($L55*$M55*$P55*10/7)*VLOOKUP($K55,#REF!,3,0),"غير مسجل")) -> غير مسجل | X55: =IF($C55="طباعه ",VLOOKUP(K55,#REF!,4,0)*F55,"0") -> 0 | Z55: 0 | AB55: 0 | AC55: =SUMIFS($AB$4:AB55,$K$4:K55,K55) -> 0 | AE55: 0
A56: =IF(I56<>"",MAX($A$3:A55)+1,"") -> 53 | C56: =IFERROR(VLOOKUP($K56,#REF!,5,0),"غير مسجل") -> غير مسجل | G56: غير مسجل | H56: غير مسجل | I56: غير مسجل | J56: غير مسجل | L56: غير مسجل | M56: غير مسجل | P56: 0 | R56: =SUMIFS(التسليمات!$N:$N,التسليمات!$G:$G,B56) -> 0 | U56: =IFERROR(VLOOKUP($K56,#REF!,3,0),"غير مسجل") -> غير مسجل | V56: =IFERROR(VLOOKUP($K56,#REF!,2,0),"غير مسجل") -> غير مسجل | W56: =IF($C56="طباعه ",IF($V56>$P56,$V56*VLOOKUP($K56,#REF!,3,0),$P56*VLOOKUP($K56,#REF!,3,0)),IF($C56="يوفي ",($L56*$M56*$P56*10/7)*VLOOKUP($K56,#REF!,3,0),"غير مسجل")) -> غير مسجل | X56: =IF($C56="طباعه ",VLOOKUP(K56,#REF!,4,0)*F56,"0") -> 0 | Z56: 0 | AB56: 0 | AC56: =SUMIFS($AB$4:AB56,$K$4:K56,K56) -> 0 | AE56: 0
A57: =IF(I57<>"",MAX($A$3:A56)+1,"") -> 54 | C57: =IFERROR(VLOOKUP($K57,#REF!,5,0),"غير مسجل") -> غير مسجل | G57: غير مسجل | H57: غير مسجل | I57: غير مسجل | J57: غير مسجل | L57: غير مسجل | M57: غير مسجل | P57: 0 | R57: =SUMIFS(التسليمات!$N:$N,التسليمات!$G:$G,B57) -> 0 | U57: =IFERROR(VLOOKUP($K57,#REF!,3,0),"غير مسجل") -> غير مسجل | V57: =IFERROR(VLOOKUP($K57,#REF!,2,0),"غير مسجل") -> غير مسجل | W57: =IF($C57="طباعه ",IF($V57>$P57,$V57*VLOOKUP($K57,#REF!,3,0),$P57*VLOOKUP($K57,#REF!,3,0)),IF($C57="يوفي ",($L57*$M57*$P57*10/7)*VLOOKUP($K57,#REF!,3,0),"غير مسجل")) -> غير مسجل | X57: =IF($C57="طباعه ",VLOOKUP(K57,#REF!,4,0)*F57,"0") -> 0 | Z57: 0 | AB57: 0 | AC57: =SUMIFS($AB$4:AB57,$K$4:K57,K57) -> 0 | AE57: 0
A58: =IF(I58<>"",MAX($A$3:A57)+1,"") -> 55 | C58: =IFERROR(VLOOKUP($K58,#REF!,5,0),"غير مسجل") -> غير مسجل | G58: غير مسجل | H58: غير مسجل | I58: غير مسجل | J58: غير مسجل | L58: غير مسجل | M58: غير مسجل | P58: 0 | R58: =SUMIFS(التسليمات!$N:$N,التسليمات!$G:$G,B58) -> 0 | U58: =IFERROR(VLOOKUP($K58,#REF!,3,0),"غير مسجل") -> غير مسجل | V58: =IFERROR(VLOOKUP($K58,#REF!,2,0),"غير مسجل") -> غير مسجل | W58: =IF($C58="طباعه ",IF($V58>$P58,$V58*VLOOKUP($K58,#REF!,3,0),$P58*VLOOKUP($K58,#REF!,3,0)),IF($C58="يوفي ",($L58*$M58*$P58*10/7)*VLOOKUP($K58,#REF!,3,0),"غير مسجل")) -> غير مسجل | X58: =IF($C58="طباعه ",VLOOKUP(K58,#REF!,4,0)*F58,"0") -> 0 | Z58: 0 | AB58: 0 | AC58: =SUMIFS($AB$4:AB58,$K$4:K58,K58) -> 0 | AE58: 0
A59: =IF(I59<>"",MAX($A$3:A58)+1,"") -> 56 | C59: =IFERROR(VLOOKUP($K59,#REF!,5,0),"غير مسجل") -> غير مسجل | G59: غير مسجل | H59: غير مسجل | I59: غير مسجل | J59: غير مسجل | L59: غير مسجل | M59: غير مسجل | P59: 0 | R59: =SUMIFS(التسليمات!$N:$N,التسليمات!$G:$G,B59) -> 0 | U59: =IFERROR(VLOOKUP($K59,#REF!,3,0),"غير مسجل") -> غير مسجل | V59: =IFERROR(VLOOKUP($K59,#REF!,2,0),"غير مسجل") -> غير مسجل | W59: =IF($C59="طباعه ",IF($V59>$P59,$V59*VLOOKUP($K59,#REF!,3,0),$P59*VLOOKUP($K59,#REF!,3,0)),IF($C59="يوفي ",($L59*$M59*$P59*10/7)*VLOOKUP($K59,#REF!,3,0),"غير مسجل")) -> غير مسجل | X59: =IF($C59="طباعه ",VLOOKUP(K59,#REF!,4,0)*F59,"0") -> 0 | Z59: 0 | AB59: 0 | AC59: =SUMIFS($AB$4:AB59,$K$4:K59,K59) -> 0 | AE59: 0
A60: =IF(I60<>"",MAX($A$3:A59)+1,"") -> 57 | C60: =IFERROR(VLOOKUP($K60,#REF!,5,0),"غير مسجل") -> غير مسجل | G60: غير مسجل | H60: غير مسجل | I60: غير مسجل | J60: غير مسجل | L60: غير مسجل | M60: غير مسجل | P60: 0 | R60: =SUMIFS(التسليمات!$N:$N,التسليمات!$G:$G,B60) -> 0 | U60: =IFERROR(VLOOKUP($K60,#REF!,3,0),"غير مسجل") -> غير مسجل | V60: =IFERROR(VLOOKUP($K60,#REF!,2,0),"غير مسجل") -> غير مسجل | W60: =IF($C60="طباعه ",IF($V60>$P60,$V60*VLOOKUP($K60,#REF!,3,0),$P60*VLOOKUP($K60,#REF!,3,0)),IF($C60="يوفي ",($L60*$M60*$P60*10/7)*VLOOKUP($K60,#REF!,3,0),"غير مسجل")) -> غير مسجل | X60: =IF($C60="طباعه ",VLOOKUP(K60,#REF!,4,0)*F60,"0") -> 0 | Z60: 0 | AB60: 0 | AC60: =SUMIFS($AB$4:AB60,$K$4:K60,K60) -> 0 | AE60: 0
A61: =IF(I61<>"",MAX($A$3:A60)+1,"") -> 58 | C61: =IFERROR(VLOOKUP($K61,#REF!,5,0),"غير مسجل") -> غير مسجل | G61: غير مسجل | H61: غير مسجل | I61: غير مسجل | J61: غير مسجل | L61: غير مسجل | M61: غير مسجل | P61: 0 | R61: =SUMIFS(التسليمات!$N:$N,التسليمات!$G:$G,B61) -> 0 | U61: =IFERROR(VLOOKUP($K61,#REF!,3,0),"غير مسجل") -> غير مسجل | V61: =IFERROR(VLOOKUP($K61,#REF!,2,0),"غير مسجل") -> غير مسجل | W61: =IF($C61="طباعه ",IF($V61>$P61,$V61*VLOOKUP($K61,#REF!,3,0),$P61*VLOOKUP($K61,#REF!,3,0)),IF($C61="يوفي ",($L61*$M61*$P61*10/7)*VLOOKUP($K61,#REF!,3,0),"غير مسجل")) -> غير مسجل | X61: =IF($C61="طباعه ",VLOOKUP(K61,#REF!,4,0)*F61,"0") -> 0 | Z61: 0 | AB61: 0 | AC61: =SUMIFS($AB$4:AB61,$K$4:K61,K61) -> 0 | AE61: 0
A62: =IF(I62<>"",MAX($A$3:A61)+1,"") -> 59 | C62: =IFERROR(VLOOKUP($K62,#REF!,5,0),"غير مسجل") -> غير مسجل | G62: غير مسجل | H62: غير مسجل | I62: غير مسجل | J62: غير مسجل | L62: غير مسجل | M62: غير مسجل | P62: 0 | R62: =SUMIFS(التسليمات!$N:$N,التسليمات!$G:$G,B62) -> 0 | U62: =IFERROR(VLOOKUP($K62,#REF!,3,0),"غير مسجل") -> غير مسجل | V62: =IFERROR(VLOOKUP($K62,#REF!,2,0),"غير مسجل") -> غير مسجل | W62: =IF($C62="طباعه ",IF($V62>$P62,$V62*VLOOKUP($K62,#REF!,3,0),$P62*VLOOKUP($K62,#REF!,3,0)),IF($C62="يوفي ",($L62*$M62*$P62*10/7)*VLOOKUP($K62,#REF!,3,0),"غير مسجل")) -> غير مسجل | X62: =IF($C62="طباعه ",VLOOKUP(K62,#REF!,4,0)*F62,"0") -> 0 | Z62: 0 | AB62: 0 | AC62: =SUMIFS($AB$4:AB62,$K$4:K62,K62) -> 0 | AE62: 0
A63: =IF(I63<>"",MAX($A$3:A62)+1,"") -> 60 | C63: =IFERROR(VLOOKUP($K63,#REF!,5,0),"غير مسجل") -> غير مسجل | G63: غير مسجل | H63: غير مسجل | I63: غير مسجل | J63: غير مسجل | L63: غير مسجل | M63: غير مسجل | P63: 0 | R63: =SUMIFS(التسليمات!$N:$N,التسليمات!$G:$G,B63) -> 0 | U63: =IFERROR(VLOOKUP($K63,#REF!,3,0),"غير مسجل") -> غير مسجل | V63: =IFERROR(VLOOKUP($K63,#REF!,2,0),"غير مسجل") -> غير مسجل | W63: =IF($C63="طباعه ",IF($V63>$P63,$V63*VLOOKUP($K63,#REF!,3,0),$P63*VLOOKUP($K63,#REF!,3,0)),IF($C63="يوفي ",($L63*$M63*$P63*10/7)*VLOOKUP($K63,#REF!,3,0),"غير مسجل")) -> غير مسجل | X63: =IF($C63="طباعه ",VLOOKUP(K63,#REF!,4,0)*F63,"0") -> 0 | Z63: 0 | AB63: 0 | AC63: =SUMIFS($AB$4:AB63,$K$4:K63,K63) -> 0 | AE63: 0
A64: =IF(I64<>"",MAX($A$3:A63)+1,"") -> 61 | C64: =IFERROR(VLOOKUP($K64,#REF!,5,0),"غير مسجل") -> غير مسجل | G64: غير مسجل | H64: غير مسجل | I64: غير مسجل | J64: غير مسجل | L64: غير مسجل | M64: غير مسجل | P64: 0 | R64: =SUMIFS(التسليمات!$N:$N,التسليمات!$G:$G,B64) -> 0 | U64: =IFERROR(VLOOKUP($K64,#REF!,3,0),"غير مسجل") -> غير مسجل | V64: =IFERROR(VLOOKUP($K64,#REF!,2,0),"غير مسجل") -> غير مسجل | W64: =IF($C64="طباعه ",IF($V64>$P64,$V64*VLOOKUP($K64,#REF!,3,0),$P64*VLOOKUP($K64,#REF!,3,0)),IF($C64="يوفي ",($L64*$M64*$P64*10/7)*VLOOKUP($K64,#REF!,3,0),"غير مسجل")) -> غير مسجل | X64: =IF($C64="طباعه ",VLOOKUP(K64,#REF!,4,0)*F64,"0") -> 0 | Z64: 0 | AB64: 0 | AC64: =SUMIFS($AB$4:AB64,$K$4:K64,K64) -> 0 | AE64: 0
A65: =IF(I65<>"",MAX($A$3:A64)+1,"") -> 62 | C65: =IFERROR(VLOOKUP($K65,#REF!,5,0),"غير مسجل") -> غير مسجل | G65: غير مسجل | H65: غير مسجل | I65: غير مسجل | J65: غير مسجل | L65: غير مسجل | M65: غير مسجل | P65: 0 | R65: =SUMIFS(التسليمات!$N:$N,التسليمات!$G:$G,B65) -> 0 | U65: =IFERROR(VLOOKUP($K65,#REF!,3,0),"غير مسجل") -> غير مسجل | V65: =IFERROR(VLOOKUP($K65,#REF!,2,0),"غير مسجل") -> غير مسجل | W65: =IF($C65="طباعه ",IF($V65>$P65,$V65*VLOOKUP($K65,#REF!,3,0),$P65*VLOOKUP($K65,#REF!,3,0)),IF($C65="يوفي ",($L65*$M65*$P65*10/7)*VLOOKUP($K65,#REF!,3,0),"غير مسجل")) -> غير مسجل | X65: =IF($C65="طباعه ",VLOOKUP(K65,#REF!,4,0)*F65,"0") -> 0 | Z65: 0 | AB65: 0 | AC65: =SUMIFS($AB$4:AB65,$K$4:K65,K65) -> 0 | AE65: 0
A66: =IF(I66<>"",MAX($A$3:A65)+1,"") -> 63 | C66: =IFERROR(VLOOKUP($K66,#REF!,5,0),"غير مسجل") -> غير مسجل | G66: غير مسجل | H66: غير مسجل | I66: غير مسجل | J66: غير مسجل | L66: غير مسجل | M66: غير مسجل | P66: 0 | R66: =SUMIFS(التسليمات!$N:$N,التسليمات!$G:$G,B66) -> 0 | U66: =IFERROR(VLOOKUP($K66,#REF!,3,0),"غير مسجل") -> غير مسجل | V66: =IFERROR(VLOOKUP($K66,#REF!,2,0),"غير مسجل") -> غير مسجل | W66: =IF($C66="طباعه ",IF($V66>$P66,$V66*VLOOKUP($K66,#REF!,3,0),$P66*VLOOKUP($K66,#REF!,3,0)),IF($C66="يوفي ",($L66*$M66*$P66*10/7)*VLOOKUP($K66,#REF!,3,0),"غير مسجل")) -> غير مسجل | X66: =IF($C66="طباعه ",VLOOKUP(K66,#REF!,4,0)*F66,"0") -> 0 | Z66: 0 | AB66: 0 | AC66: =SUMIFS($AB$4:AB66,$K$4:K66,K66) -> 0 | AE66: 0
A67: =IF(I67<>"",MAX($A$3:A66)+1,"") -> 64 | C67: =IFERROR(VLOOKUP($K67,#REF!,5,0),"غير مسجل") -> غير مسجل | G67: غير مسجل | H67: غير مسجل | I67: غير مسجل | J67: غير مسجل | L67: غير مسجل | M67: غير مسجل | P67: 0 | R67: =SUMIFS(التسليمات!$N:$N,التسليمات!$G:$G,B67) -> 0 | U67: =IFERROR(VLOOKUP($K67,#REF!,3,0),"غير مسجل") -> غير مسجل | V67: =IFERROR(VLOOKUP($K67,#REF!,2,0),"غير مسجل") -> غير مسجل | W67: =IF($C67="طباعه ",IF($V67>$P67,$V67*VLOOKUP($K67,#REF!,3,0),$P67*VLOOKUP($K67,#REF!,3,0)),IF($C67="يوفي ",($L67*$M67*$P67*10/7)*VLOOKUP($K67,#REF!,3,0),"غير مسجل")) -> غير مسجل | X67: =IF($C67="طباعه ",VLOOKUP(K67,#REF!,4,0)*F67,"0") -> 0 | Z67: 0 | AB67: 0 | AC67: =SUMIFS($AB$4:AB67,$K$4:K67,K67) -> 0 | AE67: 0
A68: =IF(I68<>"",MAX($A$3:A67)+1,"") -> 65 | C68: =IFERROR(VLOOKUP($K68,#REF!,5,0),"غير مسجل") -> غير مسجل | G68: =IFERROR(VLOOKUP($B68,table3,5,0),"غير مسجل") -> غير مسجل | H68: =IFERROR(VLOOKUP($B68,table3,4,0),"غير مسجل") -> غير مسجل | I68: =IFERROR(VLOOKUP($B68,table3,3,0),"غير مسجل") -> غير مسجل | J68: =IFERROR(VLOOKUP($B68,table3,32,0),"غير مسجل") -> غير مسجل | L68: =IFERROR(VLOOKUP($B68,table3,10,0),"غير مسجل") -> غير مسجل | M68: =IFERROR(VLOOKUP($B68,table3,11,0),"غير مسجل") -> غير مسجل | P68: 0 | Q68: =IFERROR(VLOOKUP($I68,table2,17,0),"") ->  | R68: =SUMIFS(التسليمات!$N:$N,التسليمات!$G:$G,B68) -> 0 | T68: =IFERROR(($R68*$Q68)+$S68,"") ->  | U68: =IFERROR(VLOOKUP($K68,#REF!,3,0),"غير مسجل") -> غير مسجل | V68: =IFERROR(VLOOKUP($K68,#REF!,2,0),"غير مسجل") -> غير مسجل | W68: =IF($C68="طباعه ",IF($V68>$P68,$V68*VLOOKUP($K68,#REF!,3,0),$P68*VLOOKUP($K68,#REF!,3,0)),IF($C68="يوفي ",($L68*$M68*$P68*10/7)*VLOOKUP($K68,#REF!,3,0),"غير مسجل")) -> غير مسجل | X68: =IF($C68="طباعه ",VLOOKUP(K68,#REF!,4,0)*F68,"0") -> 0 | Z68: 0 | AB68: 0 | AC68: =SUMIFS($AB$4:AB68,$K$4:K68,K68) -> 0 | AE68: 0
A69: =IF(I69<>"",MAX($A$3:A68)+1,"") -> 66 | C69: =IFERROR(VLOOKUP($K69,#REF!,5,0),"غير مسجل") -> غير مسجل | G69: غير مسجل | H69: غير مسجل | I69: غير مسجل | J69: غير مسجل | L69: غير مسجل | M69: غير مسجل | P69: =N69+O69 -> 0 | R69: =SUMIFS(التسليمات!$N:$N,التسليمات!$G:$G,B69) -> 0 | U69: =IFERROR(VLOOKUP($K69,#REF!,3,0),"غير مسجل") -> غير مسجل | V69: =IFERROR(VLOOKUP($K69,#REF!,2,0),"غير مسجل") -> غير مسجل | W69: =IF($C69="طباعه ",IF($V69>$P69,$V69*VLOOKUP($K69,#REF!,3,0),$P69*VLOOKUP($K69,#REF!,3,0)),IF($C69="يوفي ",($L69*$M69*$P69*10/7)*VLOOKUP($K69,#REF!,3,0),"غير مسجل")) -> غير مسجل | X69: =IF($C69="طباعه ",VLOOKUP(K69,#REF!,4,0)*F69,"0") -> 0 | Z69: 0 | AB69: 0 | AC69: =SUMIFS($AB$4:AB69,$K$4:K69,K69) -> 0 | AE69: 0
A70: =IF(I70<>"",MAX($A$3:A69)+1,"") -> 67 | C70: =IFERROR(VLOOKUP($K70,#REF!,5,0),"غير مسجل") -> غير مسجل | G70: غير مسجل | H70: غير مسجل | I70: غير مسجل | J70: غير مسجل | L70: غير مسجل | M70: غير مسجل | P70: 0 | R70: =SUMIFS(التسليمات!$N:$N,التسليمات!$G:$G,B70) -> 0 | U70: =IFERROR(VLOOKUP($K70,#REF!,3,0),"غير مسجل") -> غير مسجل | V70: =IFERROR(VLOOKUP($K70,#REF!,2,0),"غير مسجل") -> غير مسجل | W70: =IF($C70="طباعه ",IF($V70>$P70,$V70*VLOOKUP($K70,#REF!,3,0),$P70*VLOOKUP($K70,#REF!,3,0)),IF($C70="يوفي ",($L70*$M70*$P70*10/7)*VLOOKUP($K70,#REF!,3,0),"غير مسجل")) -> غير مسجل | X70: =IF($C70="طباعه ",VLOOKUP(K70,#REF!,4,0)*F70,"0") -> 0 | Z70: 0 | AB70: 0 | AC70: =SUMIFS($AB$4:AB70,$K$4:K70,K70) -> 0 | AE70: 0
A71: =IF(I71<>"",MAX($A$3:A70)+1,"") -> 68 | C71: =IFERROR(VLOOKUP($K71,#REF!,5,0),"غير مسجل") -> غير مسجل | G71: غير مسجل | H71: غير مسجل | I71: غير مسجل | J71: غير مسجل | L71: غير مسجل | M71: غير مسجل | P71: 0 | R71: =SUMIFS(التسليمات!$N:$N,التسليمات!$G:$G,B71) -> 0 | U71: =IFERROR(VLOOKUP($K71,#REF!,3,0),"غير مسجل") -> غير مسجل | V71: =IFERROR(VLOOKUP($K71,#REF!,2,0),"غير مسجل") -> غير مسجل | W71: =IF($C71="طباعه ",IF($V71>$P71,$V71*VLOOKUP($K71,#REF!,3,0),$P71*VLOOKUP($K71,#REF!,3,0)),IF($C71="يوفي ",($L71*$M71*$P71*10/7)*VLOOKUP($K71,#REF!,3,0),"غير مسجل")) -> غير مسجل | X71: =IF($C71="طباعه ",VLOOKUP(K71,#REF!,4,0)*F71,"0") -> 0 | Z71: 0 | AB71: 0 | AC71: =SUMIFS($AB$4:AB71,$K$4:K71,K71) -> 0 | AE71: 0
A72: =IF(I72<>"",MAX($A$3:A71)+1,"") -> 69 | C72: =IFERROR(VLOOKUP($K72,#REF!,5,0),"غير مسجل") -> غير مسجل | G72: غير مسجل | H72: غير مسجل | I72: غير مسجل | J72: غير مسجل | L72: غير مسجل | M72: غير مسجل | P72: 0 | R72: =SUMIFS(التسليمات!$N:$N,التسليمات!$G:$G,B72) -> 0 | U72: =IFERROR(VLOOKUP($K72,#REF!,3,0),"غير مسجل") -> غير مسجل | V72: =IFERROR(VLOOKUP($K72,#REF!,2,0),"غير مسجل") -> غير مسجل | W72: =IF($C72="طباعه ",IF($V72>$P72,$V72*VLOOKUP($K72,#REF!,3,0),$P72*VLOOKUP($K72,#REF!,3,0)),IF($C72="يوفي ",($L72*$M72*$P72*10/7)*VLOOKUP($K72,#REF!,3,0),"غير مسجل")) -> غير مسجل | X72: =IF($C72="طباعه ",VLOOKUP(K72,#REF!,4,0)*F72,"0") -> 0 | Z72: 0 | AB72: 0 | AC72: =SUMIFS($AB$4:AB72,$K$4:K72,K72) -> 0 | AE72: 0
A73: =IF(I73<>"",MAX($A$3:A72)+1,"") -> 70 | C73: =IFERROR(VLOOKUP($K73,#REF!,5,0),"غير مسجل") -> غير مسجل | G73: غير مسجل | H73: غير مسجل | I73: غير مسجل | J73: غير مسجل | L73: غير مسجل | M73: غير مسجل | P73: 0 | R73: =SUMIFS(التسليمات!$N:$N,التسليمات!$G:$G,B73) -> 0 | U73: =IFERROR(VLOOKUP($K73,#REF!,3,0),"غير مسجل") -> غير مسجل | V73: =IFERROR(VLOOKUP($K73,#REF!,2,0),"غير مسجل") -> غير مسجل | W73: =IF($C73="طباعه ",IF($V73>$P73,$V73*VLOOKUP($K73,#REF!,3,0),$P73*VLOOKUP($K73,#REF!,3,0)),IF($C73="يوفي ",($L73*$M73*$P73*10/7)*VLOOKUP($K73,#REF!,3,0),"غير مسجل")) -> غير مسجل | X73: =IF($C73="طباعه ",VLOOKUP(K73,#REF!,4,0)*F73,"0") -> 0 | Z73: 0 | AB73: 0 | AC73: =SUMIFS($AB$4:AB73,$K$4:K73,K73) -> 0 | AE73: 0
A74: =IF(I74<>"",MAX($A$3:A73)+1,"") -> 71 | C74: =IFERROR(VLOOKUP($K74,#REF!,5,0),"غير مسجل") -> غير مسجل | G74: غير مسجل | H74: غير مسجل | I74: غير مسجل | J74: غير مسجل | L74: غير مسجل | M74: غير مسجل | P74: 0 | R74: =SUMIFS(التسليمات!$N:$N,التسليمات!$G:$G,B74) -> 0 | U74: =IFERROR(VLOOKUP($K74,#REF!,3,0),"غير مسجل") -> غير مسجل | V74: =IFERROR(VLOOKUP($K74,#REF!,2,0),"غير مسجل") -> غير مسجل | W74: =IF($C74="طباعه ",IF($V74>$P74,$V74*VLOOKUP($K74,#REF!,3,0),$P74*VLOOKUP($K74,#REF!,3,0)),IF($C74="يوفي ",($L74*$M74*$P74*10/7)*VLOOKUP($K74,#REF!,3,0),"غير مسجل")) -> غير مسجل | X74: =IF($C74="طباعه ",VLOOKUP(K74,#REF!,4,0)*F74,"0") -> 0 | Z74: 0 | AB74: 0 | AC74: =SUMIFS($AB$4:AB74,$K$4:K74,K74) -> 0 | AE74: 0
A75: =IF(I75<>"",MAX($A$3:A74)+1,"") -> 72 | C75: =IFERROR(VLOOKUP($K75,#REF!,5,0),"غير مسجل") -> غير مسجل | G75: غير مسجل | H75: غير مسجل | I75: غير مسجل | J75: غير مسجل | L75: غير مسجل | M75: غير مسجل | P75: 0 | R75: =SUMIFS(التسليمات!$N:$N,التسليمات!$G:$G,B75) -> 0 | U75: =IFERROR(VLOOKUP($K75,#REF!,3,0),"غير مسجل") -> غير مسجل | V75: =IFERROR(VLOOKUP($K75,#REF!,2,0),"غير مسجل") -> غير مسجل | W75: =IF($C75="طباعه ",IF($V75>$P75,$V75*VLOOKUP($K75,#REF!,3,0),$P75*VLOOKUP($K75,#REF!,3,0)),IF($C75="يوفي ",($L75*$M75*$P75*10/7)*VLOOKUP($K75,#REF!,3,0),"غير مسجل")) -> غير مسجل | X75: =IF($C75="طباعه ",VLOOKUP(K75,#REF!,4,0)*F75,"0") -> 0 | Z75: 0 | AB75: 0 | AC75: =SUMIFS($AB$4:AB75,$K$4:K75,K75) -> 0 | AE75: 0
A76: =IF(I76<>"",MAX($A$3:A75)+1,"") -> 73 | C76: =IFERROR(VLOOKUP($K76,#REF!,5,0),"غير مسجل") -> غير مسجل | G76: غير مسجل | H76: غير مسجل | I76: غير مسجل | J76: غير مسجل | L76: غير مسجل | M76: غير مسجل | P76: 0 | R76: =SUMIFS(التسليمات!$N:$N,التسليمات!$G:$G,B76) -> 0 | U76: =IFERROR(VLOOKUP($K76,#REF!,3,0),"غير مسجل") -> غير مسجل | V76: =IFERROR(VLOOKUP($K76,#REF!,2,0),"غير مسجل") -> غير مسجل | W76: =IF($C76="طباعه ",IF($V76>$P76,$V76*VLOOKUP($K76,#REF!,3,0),$P76*VLOOKUP($K76,#REF!,3,0)),IF($C76="يوفي ",($L76*$M76*$P76*10/7)*VLOOKUP($K76,#REF!,3,0),"غير مسجل")) -> غير مسجل | X76: =IF($C76="طباعه ",VLOOKUP(K76,#REF!,4,0)*F76,"0") -> 0 | Z76: 0 | AB76: 0 | AC76: =SUMIFS($AB$4:AB76,$K$4:K76,K76) -> 0 | AE76: 0
A77: =IF(I77<>"",MAX($A$3:A76)+1,"") -> 74 | C77: =IFERROR(VLOOKUP($K77,#REF!,5,0),"غير مسجل") -> غير مسجل | G77: غير مسجل | H77: غير مسجل | I77: غير مسجل | J77: غير مسجل | L77: غير مسجل | M77: غير مسجل | P77: 0 | R77: =SUMIFS(التسليمات!$N:$N,التسليمات!$G:$G,B77) -> 0 | U77: =IFERROR(VLOOKUP($K77,#REF!,3,0),"غير مسجل") -> غير مسجل | V77: =IFERROR(VLOOKUP($K77,#REF!,2,0),"غير مسجل") -> غير مسجل | W77: =IF($C77="طباعه ",IF($V77>$P77,$V77*VLOOKUP($K77,#REF!,3,0),$P77*VLOOKUP($K77,#REF!,3,0)),IF($C77="يوفي ",($L77*$M77*$P77*10/7)*VLOOKUP($K77,#REF!,3,0),"غير مسجل")) -> غير مسجل | X77: =IF($C77="طباعه ",VLOOKUP(K77,#REF!,4,0)*F77,"0") -> 0 | Z77: 0 | AB77: 0 | AC77: =SUMIFS($AB$4:AB77,$K$4:K77,K77) -> 0 | AE77: 0
A78: =IF(I78<>"",MAX($A$3:A77)+1,"") -> 75 | C78: =IFERROR(VLOOKUP($K78,#REF!,5,0),"غير مسجل") -> غير مسجل | G78: غير مسجل | H78: غير مسجل | I78: غير مسجل | J78: غير مسجل | L78: غير مسجل | M78: غير مسجل | P78: 0 | R78: =SUMIFS(التسليمات!$N:$N,التسليمات!$G:$G,B78) -> 0 | U78: =IFERROR(VLOOKUP($K78,#REF!,3,0),"غير مسجل") -> غير مسجل | V78: =IFERROR(VLOOKUP($K78,#REF!,2,0),"غير مسجل") -> غير مسجل | W78: =IF($C78="طباعه ",IF($V78>$P78,$V78*VLOOKUP($K78,#REF!,3,0),$P78*VLOOKUP($K78,#REF!,3,0)),IF($C78="يوفي ",($L78*$M78*$P78*10/7)*VLOOKUP($K78,#REF!,3,0),"غير مسجل")) -> غير مسجل | X78: =IF($C78="طباعه ",VLOOKUP(K78,#REF!,4,0)*F78,"0") -> 0 | Z78: 0 | AB78: 0 | AC78: =SUMIFS($AB$4:AB78,$K$4:K78,K78) -> 0 | AE78: 0
A79: =IF(I79<>"",MAX($A$3:A78)+1,"") -> 76 | C79: =IFERROR(VLOOKUP($K79,#REF!,5,0),"غير مسجل") -> غير مسجل | G79: غير مسجل | H79: غير مسجل | I79: غير مسجل | J79: غير مسجل | L79: غير مسجل | M79: غير مسجل | P79: 0 | R79: =SUMIFS(التسليمات!$N:$N,التسليمات!$G:$G,B79) -> 0 | U79: =IFERROR(VLOOKUP($K79,#REF!,3,0),"غير مسجل") -> غير مسجل | V79: =IFERROR(VLOOKUP($K79,#REF!,2,0),"غير مسجل") -> غير مسجل | W79: =IF($C79="طباعه ",IF($V79>$P79,$V79*VLOOKUP($K79,#REF!,3,0),$P79*VLOOKUP($K79,#REF!,3,0)),IF($C79="يوفي ",($L79*$M79*$P79*10/7)*VLOOKUP($K79,#REF!,3,0),"غير مسجل")) -> غير مسجل | X79: =IF($C79="طباعه ",VLOOKUP(K79,#REF!,4,0)*F79,"0") -> 0 | Z79: 0 | AB79: 0 | AC79: =SUMIFS($AB$4:AB79,$K$4:K79,K79) -> 0 | AE79: 0
A80: =IF(I80<>"",MAX($A$3:A79)+1,"") -> 77 | C80: =IFERROR(VLOOKUP($K80,#REF!,5,0),"غير مسجل") -> غير مسجل | G80: غير مسجل | H80: غير مسجل | I80: غير مسجل | J80: غير مسجل | L80: غير مسجل | M80: غير مسجل | P80: 0 | R80: =SUMIFS(التسليمات!$N:$N,التسليمات!$G:$G,B80) -> 0 | U80: =IFERROR(VLOOKUP($K80,#REF!,3,0),"غير مسجل") -> غير مسجل | V80: =IFERROR(VLOOKUP($K80,#REF!,2,0),"غير مسجل") -> غير مسجل | W80: =IF($C80="طباعه ",IF($V80>$P80,$V80*VLOOKUP($K80,#REF!,3,0),$P80*VLOOKUP($K80,#REF!,3,0)),IF($C80="يوفي ",($L80*$M80*$P80*10/7)*VLOOKUP($K80,#REF!,3,0),"غير مسجل")) -> غير مسجل | X80: =IF($C80="طباعه ",VLOOKUP(K80,#REF!,4,0)*F80,"0") -> 0 | Z80: 0 | AB80: 0 | AC80: =SUMIFS($AB$4:AB80,$K$4:K80,K80) -> 0 | AE80: 0
A81: =IF(I81<>"",MAX($A$3:A80)+1,"") -> 78 | C81: =IFERROR(VLOOKUP($K81,#REF!,5,0),"غير مسجل") -> غير مسجل | G81: غير مسجل | H81: غير مسجل | I81: غير مسجل | J81: غير مسجل | L81: غير مسجل | M81: غير مسجل | P81: 0 | R81: =SUMIFS(التسليمات!$N:$N,التسليمات!$G:$G,B81) -> 0 | U81: =IFERROR(VLOOKUP($K81,#REF!,3,0),"غير مسجل") -> غير مسجل | V81: =IFERROR(VLOOKUP($K81,#REF!,2,0),"غير مسجل") -> غير مسجل | W81: =IF($C81="طباعه ",IF($V81>$P81,$V81*VLOOKUP($K81,#REF!,3,0),$P81*VLOOKUP($K81,#REF!,3,0)),IF($C81="يوفي ",($L81*$M81*$P81*10/7)*VLOOKUP($K81,#REF!,3,0),"غير مسجل")) -> غير مسجل | X81: =IF($C81="طباعه ",VLOOKUP(K81,#REF!,4,0)*F81,"0") -> 0 | Z81: =IFERROR(W81+X81-Y81,"0") -> 0 | AB81: =Z81-AA81 -> 0 | AC81: =SUMIFS($AB$4:AB81,$K$4:K81,K81) -> 0 | AE81: =AB81-AD81 -> 0
A82: =IF(I82<>"",MAX($A$3:A81)+1,"") -> 79 | C82: =IFERROR(VLOOKUP($K82,#REF!,5,0),"غير مسجل") -> غير مسجل | G82: غير مسجل | H82: غير مسجل | I82: غير مسجل | J82: غير مسجل | L82: غير مسجل | M82: غير مسجل | P82: 0 | R82: =SUMIFS(التسليمات!$N:$N,التسليمات!$G:$G,B82) -> 0 | U82: =IFERROR(VLOOKUP($K82,#REF!,3,0),"غير مسجل") -> غير مسجل | V82: =IFERROR(VLOOKUP($K82,#REF!,2,0),"غير مسجل") -> غير مسجل | W82: =IF($C82="طباعه ",IF($V82>$P82,$V82*VLOOKUP($K82,#REF!,3,0),$P82*VLOOKUP($K82,#REF!,3,0)),IF($C82="يوفي ",($L82*$M82*$P82*10/7)*VLOOKUP($K82,#REF!,3,0),"غير مسجل")) -> غير مسجل | X82: =IF($C82="طباعه ",VLOOKUP(K82,#REF!,4,0)*F82,"0") -> 0 | Z82: 0 | AB82: 0 | AC82: =SUMIFS($AB$4:AB82,$K$4:K82,K82) -> 0 | AE82: 0
A83: =IF(I83<>"",MAX($A$3:A82)+1,"") -> 80 | C83: =IFERROR(VLOOKUP($K83,#REF!,5,0),"غير مسجل") -> غير مسجل | G83: غير مسجل | H83: غير مسجل | I83: غير مسجل | J83: غير مسجل | L83: غير مسجل | M83: غير مسجل | P83: 0 | R83: =SUMIFS(التسليمات!$N:$N,التسليمات!$G:$G,B83) -> 0 | U83: =IFERROR(VLOOKUP($K83,#REF!,3,0),"غير مسجل") -> غير مسجل | V83: =IFERROR(VLOOKUP($K83,#REF!,2,0),"غير مسجل") -> غير مسجل | W83: =IF($C83="طباعه ",IF($V83>$P83,$V83*VLOOKUP($K83,#REF!,3,0),$P83*VLOOKUP($K83,#REF!,3,0)),IF($C83="يوفي ",($L83*$M83*$P83*10/7)*VLOOKUP($K83,#REF!,3,0),"غير مسجل")) -> غير مسجل | X83: =IF($C83="طباعه ",VLOOKUP(K83,#REF!,4,0)*F83,"0") -> 0 | Z83: 0 | AB83: 0 | AC83: =SUMIFS($AB$4:AB83,$K$4:K83,K83) -> 0 | AE83: 0
A84: =IF(I84<>"",MAX($A$3:A83)+1,"") -> 81 | C84: =IFERROR(VLOOKUP($K84,#REF!,5,0),"غير مسجل") -> غير مسجل | G84: غير مسجل | H84: غير مسجل | I84: غير مسجل | J84: غير مسجل | L84: غير مسجل | M84: غير مسجل | P84: 0 | R84: =SUMIFS(التسليمات!$N:$N,التسليمات!$G:$G,B84) -> 0 | U84: =IFERROR(VLOOKUP($K84,#REF!,3,0),"غير مسجل") -> غير مسجل | V84: =IFERROR(VLOOKUP($K84,#REF!,2,0),"غير مسجل") -> غير مسجل | W84: =IF($C84="طباعه ",IF($V84>$P84,$V84*VLOOKUP($K84,#REF!,3,0),$P84*VLOOKUP($K84,#REF!,3,0)),IF($C84="يوفي ",($L84*$M84*$P84*10/7)*VLOOKUP($K84,#REF!,3,0),"غير مسجل")) -> غير مسجل | X84: =IF($C84="طباعه ",VLOOKUP(K84,#REF!,4,0)*F84,"0") -> 0 | Z84: 0 | AB84: 0 | AC84: =SUMIFS($AB$4:AB84,$K$4:K84,K84) -> 0 | AE84: 0
A85: =IF(I85<>"",MAX($A$3:A84)+1,"") -> 82 | C85: =IFERROR(VLOOKUP($K85,#REF!,5,0),"غير مسجل") -> غير مسجل | G85: غير مسجل | H85: غير مسجل | I85: غير مسجل | J85: غير مسجل | L85: غير مسجل | M85: غير مسجل | P85: 0 | R85: =SUMIFS(التسليمات!$N:$N,التسليمات!$G:$G,B85) -> 0 | U85: =IFERROR(VLOOKUP($K85,#REF!,3,0),"غير مسجل") -> غير مسجل | V85: =IFERROR(VLOOKUP($K85,#REF!,2,0),"غير مسجل") -> غير مسجل | W85: =IF($C85="طباعه ",IF($V85>$P85,$V85*VLOOKUP($K85,#REF!,3,0),$P85*VLOOKUP($K85,#REF!,3,0)),IF($C85="يوفي ",($L85*$M85*$P85*10/7)*VLOOKUP($K85,#REF!,3,0),"غير مسجل")) -> غير مسجل | X85: =IF($C85="طباعه ",VLOOKUP(K85,#REF!,4,0)*F85,"0") -> 0 | Z85: 0 | AB85: 0 | AC85: =SUMIFS($AB$4:AB85,$K$4:K85,K85) -> 0 | AE85: 0
A86: =IF(I86<>"",MAX($A$3:A85)+1,"") -> 83 | C86: =IFERROR(VLOOKUP($K86,#REF!,5,0),"غير مسجل") -> غير مسجل | G86: غير مسجل | H86: غير مسجل | I86: غير مسجل | J86: غير مسجل | L86: غير مسجل | M86: غير مسجل | P86: 0 | R86: =SUMIFS(التسليمات!$N:$N,التسليمات!$G:$G,B86) -> 0 | U86: =IFERROR(VLOOKUP($K86,#REF!,3,0),"غير مسجل") -> غير مسجل | V86: =IFERROR(VLOOKUP($K86,#REF!,2,0),"غير مسجل") -> غير مسجل | W86: =IF($C86="طباعه ",IF($V86>$P86,$V86*VLOOKUP($K86,#REF!,3,0),$P86*VLOOKUP($K86,#REF!,3,0)),IF($C86="يوفي ",($L86*$M86*$P86*10/7)*VLOOKUP($K86,#REF!,3,0),"غير مسجل")) -> غير مسجل | X86: =IF($C86="طباعه ",VLOOKUP(K86,#REF!,4,0)*F86,"0") -> 0 | Z86: 0 | AB86: 0 | AC86: =SUMIFS($AB$4:AB86,$K$4:K86,K86) -> 0 | AE86: 0
A87: =IF(I87<>"",MAX($A$3:A86)+1,"") -> 84 | C87: =IFERROR(VLOOKUP($K87,#REF!,5,0),"غير مسجل") -> غير مسجل | G87: غير مسجل | H87: غير مسجل | I87: غير مسجل | J87: غير مسجل | L87: غير مسجل | M87: غير مسجل | P87: 0 | R87: =SUMIFS(التسليمات!$N:$N,التسليمات!$G:$G,B87) -> 0 | U87: =IFERROR(VLOOKUP($K87,#REF!,3,0),"غير مسجل") -> غير مسجل | V87: =IFERROR(VLOOKUP($K87,#REF!,2,0),"غير مسجل") -> غير مسجل | W87: =IF($C87="طباعه ",IF($V87>$P87,$V87*VLOOKUP($K87,#REF!,3,0),$P87*VLOOKUP($K87,#REF!,3,0)),IF($C87="يوفي ",($L87*$M87*$P87*10/7)*VLOOKUP($K87,#REF!,3,0),"غير مسجل")) -> غير مسجل | X87: =IF($C87="طباعه ",VLOOKUP(K87,#REF!,4,0)*F87,"0") -> 0 | Z87: 0 | AB87: 0 | AC87: =SUMIFS($AB$4:AB87,$K$4:K87,K87) -> 0 | AE87: 0
A88: =IF(I88<>"",MAX($A$3:A87)+1,"") -> 85 | C88: =IFERROR(VLOOKUP($K88,#REF!,5,0),"غير مسجل") -> غير مسجل | G88: غير مسجل | H88: غير مسجل | I88: غير مسجل | J88: غير مسجل | L88: غير مسجل | M88: غير مسجل | P88: 0 | R88: =SUMIFS(التسليمات!$N:$N,التسليمات!$G:$G,B88) -> 0 | U88: =IFERROR(VLOOKUP($K88,#REF!,3,0),"غير مسجل") -> غير مسجل | V88: =IFERROR(VLOOKUP($K88,#REF!,2,0),"غير مسجل") -> غير مسجل | W88: =IF($C88="طباعه ",IF($V88>$P88,$V88*VLOOKUP($K88,#REF!,3,0),$P88*VLOOKUP($K88,#REF!,3,0)),IF($C88="يوفي ",($L88*$M88*$P88*10/7)*VLOOKUP($K88,#REF!,3,0),"غير مسجل")) -> غير مسجل | X88: =IF($C88="طباعه ",VLOOKUP(K88,#REF!,4,0)*F88,"0") -> 0 | Z88: 0 | AB88: 0 | AC88: =SUMIFS($AB$4:AB88,$K$4:K88,K88) -> 0 | AE88: 0
A89: =IF(I89<>"",MAX($A$3:A88)+1,"") -> 86 | C89: =IFERROR(VLOOKUP($K89,#REF!,5,0),"غير مسجل") -> غير مسجل | G89: غير مسجل | H89: غير مسجل | I89: غير مسجل | J89: غير مسجل | L89: غير مسجل | M89: غير مسجل | P89: 0 | R89: =SUMIFS(التسليمات!$N:$N,التسليمات!$G:$G,B89) -> 0 | U89: =IFERROR(VLOOKUP($K89,#REF!,3,0),"غير مسجل") -> غير مسجل | V89: =IFERROR(VLOOKUP($K89,#REF!,2,0),"غير مسجل") -> غير مسجل | W89: =IF($C89="طباعه ",IF($V89>$P89,$V89*VLOOKUP($K89,#REF!,3,0),$P89*VLOOKUP($K89,#REF!,3,0)),IF($C89="يوفي ",($L89*$M89*$P89*10/7)*VLOOKUP($K89,#REF!,3,0),"غير مسجل")) -> غير مسجل | X89: =IF($C89="طباعه ",VLOOKUP(K89,#REF!,4,0)*F89,"0") -> 0 | Z89: 0 | AB89: 0 | AC89: =SUMIFS($AB$4:AB89,$K$4:K89,K89) -> 0 | AE89: 0
A90: =IF(I90<>"",MAX($A$3:A89)+1,"") -> 87 | C90: =IFERROR(VLOOKUP($K90,#REF!,5,0),"غير مسجل") -> غير مسجل | G90: غير مسجل | H90: غير مسجل | I90: غير مسجل | J90: غير مسجل | L90: غير مسجل | M90: غير مسجل | P90: 0 | R90: =SUMIFS(التسليمات!$N:$N,التسليمات!$G:$G,B90) -> 0 | U90: =IFERROR(VLOOKUP($K90,#REF!,3,0),"غير مسجل") -> غير مسجل | V90: =IFERROR(VLOOKUP($K90,#REF!,2,0),"غير مسجل") -> غير مسجل | W90: =IF($C90="طباعه ",IF($V90>$P90,$V90*VLOOKUP($K90,#REF!,3,0),$P90*VLOOKUP($K90,#REF!,3,0)),IF($C90="يوفي ",($L90*$M90*$P90*10/7)*VLOOKUP($K90,#REF!,3,0),"غير مسجل")) -> غير مسجل | X90: =IF($C90="طباعه ",VLOOKUP(K90,#REF!,4,0)*F90,"0") -> 0 | Z90: 0 | AB90: 0 | AC90: =SUMIFS($AB$4:AB90,$K$4:K90,K90) -> 0 | AE90: 0
A91: =IF(I91<>"",MAX($A$3:A90)+1,"") -> 88 | C91: =IFERROR(VLOOKUP($K91,#REF!,5,0),"غير مسجل") -> غير مسجل | G91: غير مسجل | H91: غير مسجل | I91: غير مسجل | J91: غير مسجل | L91: غير مسجل | M91: غير مسجل | P91: 0 | R91: =SUMIFS(التسليمات!$N:$N,التسليمات!$G:$G,B91) -> 0 | U91: =IFERROR(VLOOKUP($K91,#REF!,3,0),"غير مسجل") -> غير مسجل | V91: =IFERROR(VLOOKUP($K91,#REF!,2,0),"غير مسجل") -> غير مسجل | W91: =IF($C91="طباعه ",IF($V91>$P91,$V91*VLOOKUP($K91,#REF!,3,0),$P91*VLOOKUP($K91,#REF!,3,0)),IF($C91="يوفي ",($L91*$M91*$P91*10/7)*VLOOKUP($K91,#REF!,3,0),"غير مسجل")) -> غير مسجل | X91: =IF($C91="طباعه ",VLOOKUP(K91,#REF!,4,0)*F91,"0") -> 0 | Z91: 0 | AB91: 0 | AC91: =SUMIFS($AB$4:AB91,$K$4:K91,K91) -> 0 | AE91: 0
A92: =IF(I92<>"",MAX($A$3:A91)+1,"") -> 89 | C92: =IFERROR(VLOOKUP($K92,#REF!,5,0),"غير مسجل") -> غير مسجل | G92: غير مسجل | H92: غير مسجل | I92: غير مسجل | J92: غير مسجل | L92: غير مسجل | M92: غير مسجل | P92: 0 | R92: =SUMIFS(التسليمات!$N:$N,التسليمات!$G:$G,B92) -> 0 | U92: =IFERROR(VLOOKUP($K92,#REF!,3,0),"غير مسجل") -> غير مسجل | V92: =IFERROR(VLOOKUP($K92,#REF!,2,0),"غير مسجل") -> غير مسجل | W92: =IF($C92="طباعه ",IF($V92>$P92,$V92*VLOOKUP($K92,#REF!,3,0),$P92*VLOOKUP($K92,#REF!,3,0)),IF($C92="يوفي ",($L92*$M92*$P92*10/7)*VLOOKUP($K92,#REF!,3,0),"غير مسجل")) -> غير مسجل | X92: =IF($C92="طباعه ",VLOOKUP(K92,#REF!,4,0)*F92,"0") -> 0 | Z92: 0 | AB92: 0 | AC92: =SUMIFS($AB$4:AB92,$K$4:K92,K92) -> 0 | AE92: 0
A93: =IF(I93<>"",MAX($A$3:A92)+1,"") -> 90 | C93: =IFERROR(VLOOKUP($K93,#REF!,5,0),"غير مسجل") -> غير مسجل | G93: غير مسجل | H93: غير مسجل | I93: غير مسجل | J93: غير مسجل | L93: غير مسجل | M93: غير مسجل | P93: 0 | R93: =SUMIFS(التسليمات!$N:$N,التسليمات!$G:$G,B93) -> 0 | U93: =IFERROR(VLOOKUP($K93,#REF!,3,0),"غير مسجل") -> غير مسجل | V93: =IFERROR(VLOOKUP($K93,#REF!,2,0),"غير مسجل") -> غير مسجل | W93: =IF($C93="طباعه ",IF($V93>$P93,$V93*VLOOKUP($K93,#REF!,3,0),$P93*VLOOKUP($K93,#REF!,3,0)),IF($C93="يوفي ",($L93*$M93*$P93*10/7)*VLOOKUP($K93,#REF!,3,0),"غير مسجل")) -> غير مسجل | X93: =IF($C93="طباعه ",VLOOKUP(K93,#REF!,4,0)*F93,"0") -> 0 | Z93: 0 | AB93: 0 | AC93: =SUMIFS($AB$4:AB93,$K$4:K93,K93) -> 0 | AE93: 0
A94: =IF(I94<>"",MAX($A$3:A93)+1,"") -> 91 | C94: =IFERROR(VLOOKUP($K94,#REF!,5,0),"غير مسجل") -> غير مسجل | G94: غير مسجل | H94: غير مسجل | I94: غير مسجل | J94: غير مسجل | L94: غير مسجل | M94: غير مسجل | P94: 0 | R94: =SUMIFS(التسليمات!$N:$N,التسليمات!$G:$G,B94) -> 0 | U94: =IFERROR(VLOOKUP($K94,#REF!,3,0),"غير مسجل") -> غير مسجل | V94: =IFERROR(VLOOKUP($K94,#REF!,2,0),"غير مسجل") -> غير مسجل | W94: =IF($C94="طباعه ",IF($V94>$P94,$V94*VLOOKUP($K94,#REF!,3,0),$P94*VLOOKUP($K94,#REF!,3,0)),IF($C94="يوفي ",($L94*$M94*$P94*10/7)*VLOOKUP($K94,#REF!,3,0),"غير مسجل")) -> غير مسجل | X94: =IF($C94="طباعه ",VLOOKUP(K94,#REF!,4,0)*F94,"0") -> 0 | Z94: 0 | AB94: 0 | AC94: =SUMIFS($AB$4:AB94,$K$4:K94,K94) -> 0 | AE94: 0
A95: =IF(I95<>"",MAX($A$3:A94)+1,"") -> 92 | C95: =IFERROR(VLOOKUP($K95,#REF!,5,0),"غير مسجل") -> غير مسجل | G95: غير مسجل | H95: غير مسجل | I95: غير مسجل | J95: غير مسجل | L95: غير مسجل | M95: غير مسجل | P95: 0 | R95: =SUMIFS(التسليمات!$N:$N,التسليمات!$G:$G,B95) -> 0 | U95: =IFERROR(VLOOKUP($K95,#REF!,3,0),"غير مسجل") -> غير مسجل | V95: =IFERROR(VLOOKUP($K95,#REF!,2,0),"غير مسجل") -> غير مسجل | W95: =IF($C95="طباعه ",IF($V95>$P95,$V95*VLOOKUP($K95,#REF!,3,0),$P95*VLOOKUP($K95,#REF!,3,0)),IF($C95="يوفي ",($L95*$M95*$P95*10/7)*VLOOKUP($K95,#REF!,3,0),"غير مسجل")) -> غير مسجل | X95: =IF($C95="طباعه ",VLOOKUP(K95,#REF!,4,0)*F95,"0") -> 0 | Z95: 0 | AB95: 0 | AC95: =SUMIFS($AB$4:AB95,$K$4:K95,K95) -> 0 | AE95: 0
A96: =IF(I96<>"",MAX($A$3:A95)+1,"") -> 93 | C96: =IFERROR(VLOOKUP($K96,#REF!,5,0),"غير مسجل") -> غير مسجل | G96: غير مسجل | H96: غير مسجل | I96: غير مسجل | J96: غير مسجل | L96: غير مسجل | M96: غير مسجل | P96: 0 | R96: =SUMIFS(التسليمات!$N:$N,التسليمات!$G:$G,B96) -> 0 | U96: =IFERROR(VLOOKUP($K96,#REF!,3,0),"غير مسجل") -> غير مسجل | V96: =IFERROR(VLOOKUP($K96,#REF!,2,0),"غير مسجل") -> غير مسجل | W96: =IF($C96="طباعه ",IF($V96>$P96,$V96*VLOOKUP($K96,#REF!,3,0),$P96*VLOOKUP($K96,#REF!,3,0)),IF($C96="يوفي ",($L96*$M96*$P96*10/7)*VLOOKUP($K96,#REF!,3,0),"غير مسجل")) -> غير مسجل | X96: =IF($C96="طباعه ",VLOOKUP(K96,#REF!,4,0)*F96,"0") -> 0 | Z96: 0 | AB96: 0 | AC96: =SUMIFS($AB$4:AB96,$K$4:K96,K96) -> 0 | AE96: 0
A97: =IF(I97<>"",MAX($A$3:A96)+1,"") -> 94 | C97: =IFERROR(VLOOKUP($K97,#REF!,5,0),"غير مسجل") -> غير مسجل | G97: غير مسجل | H97: غير مسجل | I97: غير مسجل | J97: غير مسجل | L97: غير مسجل | M97: غير مسجل | P97: 0 | R97: =SUMIFS(التسليمات!$N:$N,التسليمات!$G:$G,B97) -> 0 | U97: =IFERROR(VLOOKUP($K97,#REF!,3,0),"غير مسجل") -> غير مسجل | V97: =IFERROR(VLOOKUP($K97,#REF!,2,0),"غير مسجل") -> غير مسجل | W97: =IF($C97="طباعه ",IF($V97>$P97,$V97*VLOOKUP($K97,#REF!,3,0),$P97*VLOOKUP($K97,#REF!,3,0)),IF($C97="يوفي ",($L97*$M97*$P97*10/7)*VLOOKUP($K97,#REF!,3,0),"غير مسجل")) -> غير مسجل | X97: =IF($C97="طباعه ",VLOOKUP(K97,#REF!,4,0)*F97,"0") -> 0 | Z97: 0 | AB97: 0 | AC97: =SUMIFS($AB$4:AB97,$K$4:K97,K97) -> 0 | AE97: 0
A98: =IF(I98<>"",MAX($A$3:A97)+1,"") -> 95 | C98: =IFERROR(VLOOKUP($K98,#REF!,5,0),"غير مسجل") -> غير مسجل | G98: غير مسجل | H98: غير مسجل | I98: غير مسجل | J98: غير مسجل | L98: غير مسجل | M98: غير مسجل | P98: 0 | R98: =SUMIFS(التسليمات!$N:$N,التسليمات!$G:$G,B98) -> 0 | U98: =IFERROR(VLOOKUP($K98,#REF!,3,0),"غير مسجل") -> غير مسجل | V98: =IFERROR(VLOOKUP($K98,#REF!,2,0),"غير مسجل") -> غير مسجل | W98: =IF($C98="طباعه ",IF($V98>$P98,$V98*VLOOKUP($K98,#REF!,3,0),$P98*VLOOKUP($K98,#REF!,3,0)),IF($C98="يوفي ",($L98*$M98*$P98*10/7)*VLOOKUP($K98,#REF!,3,0),"غير مسجل")) -> غير مسجل | X98: =IF($C98="طباعه ",VLOOKUP(K98,#REF!,4,0)*F98,"0") -> 0 | Z98: 0 | AB98: 0 | AC98: =SUMIFS($AB$4:AB98,$K$4:K98,K98) -> 0 | AE98: 0
A99: =IF(I99<>"",MAX($A$3:A98)+1,"") -> 96 | C99: =IFERROR(VLOOKUP($K99,#REF!,5,0),"غير مسجل") -> غير مسجل | G99: غير مسجل | H99: غير مسجل | I99: غير مسجل | J99: غير مسجل | L99: غير مسجل | M99: غير مسجل | P99: 0 | R99: =SUMIFS(التسليمات!$N:$N,التسليمات!$G:$G,B99) -> 0 | U99: =IFERROR(VLOOKUP($K99,#REF!,3,0),"غير مسجل") -> غير مسجل | V99: =IFERROR(VLOOKUP($K99,#REF!,2,0),"غير مسجل") -> غير مسجل | W99: =IF($C99="طباعه ",IF($V99>$P99,$V99*VLOOKUP($K99,#REF!,3,0),$P99*VLOOKUP($K99,#REF!,3,0)),IF($C99="يوفي ",($L99*$M99*$P99*10/7)*VLOOKUP($K99,#REF!,3,0),"غير مسجل")) -> غير مسجل | X99: =IF($C99="طباعه ",VLOOKUP(K99,#REF!,4,0)*F99,"0") -> 0 | Z99: 0 | AB99: 0 | AC99: =SUMIFS($AB$4:AB99,$K$4:K99,K99) -> 0 | AE99: 0
A100: =IF(I100<>"",MAX($A$3:A99)+1,"") -> 97 | C100: =IFERROR(VLOOKUP($K100,#REF!,5,0),"غير مسجل") -> غير مسجل | G100: غير مسجل | H100: غير مسجل | I100: غير مسجل | J100: غير مسجل | L100: غير مسجل | M100: غير مسجل | P100: 0 | R100: =SUMIFS(التسليمات!$N:$N,التسليمات!$G:$G,B100) -> 0 | U100: =IFERROR(VLOOKUP($K100,#REF!,3,0),"غير مسجل") -> غير مسجل | V100: =IFERROR(VLOOKUP($K100,#REF!,2,0),"غير مسجل") -> غير مسجل | W100: =IF($C100="طباعه ",IF($V100>$P100,$V100*VLOOKUP($K100,#REF!,3,0),$P100*VLOOKUP($K100,#REF!,3,0)),IF($C100="يوفي ",($L100*$M100*$P100*10/7)*VLOOKUP($K100,#REF!,3,0),"غير مسجل")) -> غير مسجل | X100: =IF($C100="طباعه ",VLOOKUP(K100,#REF!,4,0)*F100,"0") -> 0 | Z100: 0 | AB100: 0 | AC100: =SUMIFS($AB$4:AB100,$K$4:K100,K100) -> 0 | AE100: 0
A101: =IF(I101<>"",MAX($A$3:A100)+1,"") -> 98 | C101: =IFERROR(VLOOKUP($K101,#REF!,5,0),"غير مسجل") -> غير مسجل | G101: غير مسجل | H101: غير مسجل | I101: غير مسجل | J101: غير مسجل | L101: غير مسجل | M101: غير مسجل | P101: 0 | R101: =SUMIFS(التسليمات!$N:$N,التسليمات!$G:$G,B101) -> 0 | U101: =IFERROR(VLOOKUP($K101,#REF!,3,0),"غير مسجل") -> غير مسجل | V101: =IFERROR(VLOOKUP($K101,#REF!,2,0),"غير مسجل") -> غير مسجل | W101: =IF($C101="طباعه ",IF($V101>$P101,$V101*VLOOKUP($K101,#REF!,3,0),$P101*VLOOKUP($K101,#REF!,3,0)),IF($C101="يوفي ",($L101*$M101*$P101*10/7)*VLOOKUP($K101,#REF!,3,0),"غير مسجل")) -> غير مسجل | X101: =IF($C101="طباعه ",VLOOKUP(K101,#REF!,4,0)*F101,"0") -> 0 | Z101: 0 | AB101: 0 | AC101: =SUMIFS($AB$4:AB101,$K$4:K101,K101) -> 0 | AE101: 0
A102: =IF(I102<>"",MAX($A$3:A101)+1,"") -> 99 | C102: =IFERROR(VLOOKUP($K102,#REF!,5,0),"غير مسجل") -> غير مسجل | G102: غير مسجل | H102: غير مسجل | I102: غير مسجل | J102: غير مسجل | L102: غير مسجل | M102: غير مسجل | P102: 0 | R102: =SUMIFS(التسليمات!$N:$N,التسليمات!$G:$G,B102) -> 0 | U102: =IFERROR(VLOOKUP($K102,#REF!,3,0),"غير مسجل") -> غير مسجل | V102: =IFERROR(VLOOKUP($K102,#REF!,2,0),"غير مسجل") -> غير مسجل | W102: =IF($C102="طباعه ",IF($V102>$P102,$V102*VLOOKUP($K102,#REF!,3,0),$P102*VLOOKUP($K102,#REF!,3,0)),IF($C102="يوفي ",($L102*$M102*$P102*10/7)*VLOOKUP($K102,#REF!,3,0),"غير مسجل")) -> غير مسجل | X102: =IF($C102="طباعه ",VLOOKUP(K102,#REF!,4,0)*F102,"0") -> 0 | Z102: 0 | AB102: 0 | AC102: =SUMIFS($AB$4:AB102,$K$4:K102,K102) -> 0 | AE102: 0
A103: =IF(I103<>"",MAX($A$3:A102)+1,"") -> 100 | C103: =IFERROR(VLOOKUP($K103,#REF!,5,0),"غير مسجل") -> غير مسجل | G103: غير مسجل | H103: غير مسجل | I103: غير مسجل | J103: غير مسجل | L103: غير مسجل | M103: غير مسجل | P103: 0 | R103: =SUMIFS(التسليمات!$N:$N,التسليمات!$G:$G,B103) -> 0 | U103: =IFERROR(VLOOKUP($K103,#REF!,3,0),"غير مسجل") -> غير مسجل | V103: =IFERROR(VLOOKUP($K103,#REF!,2,0),"غير مسجل") -> غير مسجل | W103: =IF($C103="طباعه ",IF($V103>$P103,$V103*VLOOKUP($K103,#REF!,3,0),$P103*VLOOKUP($K103,#REF!,3,0)),IF($C103="يوفي ",($L103*$M103*$P103*10/7)*VLOOKUP($K103,#REF!,3,0),"غير مسجل")) -> غير مسجل | X103: =IF($C103="طباعه ",VLOOKUP(K103,#REF!,4,0)*F103,"0") -> 0 | Z103: 0 | AB103: 0 | AC103: =SUMIFS($AB$4:AB103,$K$4:K103,K103) -> 0 | AE103: 0
A104: =IF(I104<>"",MAX($A$3:A103)+1,"") -> 101 | C104: =IFERROR(VLOOKUP($K104,#REF!,5,0),"غير مسجل") -> غير مسجل | G104: غير مسجل | H104: غير مسجل | I104: غير مسجل | J104: غير مسجل | L104: غير مسجل | M104: غير مسجل | P104: 0 | R104: =SUMIFS(التسليمات!$N:$N,التسليمات!$G:$G,B104) -> 0 | U104: =IFERROR(VLOOKUP($K104,#REF!,3,0),"غير مسجل") -> غير مسجل | V104: =IFERROR(VLOOKUP($K104,#REF!,2,0),"غير مسجل") -> غير مسجل | W104: =IF($C104="طباعه ",IF($V104>$P104,$V104*VLOOKUP($K104,#REF!,3,0),$P104*VLOOKUP($K104,#REF!,3,0)),IF($C104="يوفي ",($L104*$M104*$P104*10/7)*VLOOKUP($K104,#REF!,3,0),"غير مسجل")) -> غير مسجل | X104: =IF($C104="طباعه ",VLOOKUP(K104,#REF!,4,0)*F104,"0") -> 0 | Z104: 0 | AB104: 0 | AC104: =SUMIFS($AB$4:AB104,$K$4:K104,K104) -> 0 | AE104: 0
A105: =IF(I105<>"",MAX($A$3:A104)+1,"") -> 102 | C105: =IFERROR(VLOOKUP($K105,#REF!,5,0),"غير مسجل") -> غير مسجل | G105: غير مسجل | H105: غير مسجل | I105: غير مسجل | J105: غير مسجل | L105: غير مسجل | M105: غير مسجل | P105: 0 | R105: =SUMIFS(التسليمات!$N:$N,التسليمات!$G:$G,B105) -> 0 | U105: =IFERROR(VLOOKUP($K105,#REF!,3,0),"غير مسجل") -> غير مسجل | V105: =IFERROR(VLOOKUP($K105,#REF!,2,0),"غير مسجل") -> غير مسجل | W105: =IF($C105="طباعه ",IF($V105>$P105,$V105*VLOOKUP($K105,#REF!,3,0),$P105*VLOOKUP($K105,#REF!,3,0)),IF($C105="يوفي ",($L105*$M105*$P105*10/7)*VLOOKUP($K105,#REF!,3,0),"غير مسجل")) -> غير مسجل | X105: =IF($C105="طباعه ",VLOOKUP(K105,#REF!,4,0)*F105,"0") -> 0 | Z105: 0 | AB105: 0 | AC105: =SUMIFS($AB$4:AB105,$K$4:K105,K105) -> 0 | AE105: 0
A106: =IF(I106<>"",MAX($A$3:A105)+1,"") -> 103 | C106: =IFERROR(VLOOKUP($K106,#REF!,5,0),"غير مسجل") -> غير مسجل | G106: غير مسجل | H106: غير مسجل | I106: غير مسجل | J106: غير مسجل | L106: غير مسجل | M106: غير مسجل | P106: 0 | R106: =SUMIFS(التسليمات!$N:$N,التسليمات!$G:$G,B106) -> 0 | U106: =IFERROR(VLOOKUP($K106,#REF!,3,0),"غير مسجل") -> غير مسجل | V106: =IFERROR(VLOOKUP($K106,#REF!,2,0),"غير مسجل") -> غير مسجل | W106: =IF($C106="طباعه ",IF($V106>$P106,$V106*VLOOKUP($K106,#REF!,3,0),$P106*VLOOKUP($K106,#REF!,3,0)),IF($C106="يوفي ",($L106*$M106*$P106*10/7)*VLOOKUP($K106,#REF!,3,0),"غير مسجل")) -> غير مسجل | X106: =IF($C106="طباعه ",VLOOKUP(K106,#REF!,4,0)*F106,"0") -> 0 | Z106: 0 | AB106: 0 | AC106: =SUMIFS($AB$4:AB106,$K$4:K106,K106) -> 0 | AE106: 0
A107: =IF(I107<>"",MAX($A$3:A106)+1,"") -> 104 | C107: =IFERROR(VLOOKUP($K107,#REF!,5,0),"غير مسجل") -> غير مسجل | G107: غير مسجل | H107: غير مسجل | I107: غير مسجل | J107: غير مسجل | L107: غير مسجل | M107: غير مسجل | P107: 0 | R107: =SUMIFS(التسليمات!$N:$N,التسليمات!$G:$G,B107) -> 0 | U107: =IFERROR(VLOOKUP($K107,#REF!,3,0),"غير مسجل") -> غير مسجل | V107: =IFERROR(VLOOKUP($K107,#REF!,2,0),"غير مسجل") -> غير مسجل | W107: =IF($C107="طباعه ",IF($V107>$P107,$V107*VLOOKUP($K107,#REF!,3,0),$P107*VLOOKUP($K107,#REF!,3,0)),IF($C107="يوفي ",($L107*$M107*$P107*10/7)*VLOOKUP($K107,#REF!,3,0),"غير مسجل")) -> غير مسجل | X107: =IF($C107="طباعه ",VLOOKUP(K107,#REF!,4,0)*F107,"0") -> 0 | Z107: 0 | AB107: 0 | AC107: =SUMIFS($AB$4:AB107,$K$4:K107,K107) -> 0 | AE107: 0
A108: =IF(I108<>"",MAX($A$3:A107)+1,"") -> 105 | C108: =IFERROR(VLOOKUP($K108,#REF!,5,0),"غير مسجل") -> غير مسجل | G108: غير مسجل | H108: غير مسجل | I108: غير مسجل | J108: غير مسجل | L108: غير مسجل | M108: غير مسجل | P108: 0 | R108: =SUMIFS(التسليمات!$N:$N,التسليمات!$G:$G,B108) -> 0 | U108: =IFERROR(VLOOKUP($K108,#REF!,3,0),"غير مسجل") -> غير مسجل | V108: =IFERROR(VLOOKUP($K108,#REF!,2,0),"غير مسجل") -> غير مسجل | W108: =IF($C108="طباعه ",IF($V108>$P108,$V108*VLOOKUP($K108,#REF!,3,0),$P108*VLOOKUP($K108,#REF!,3,0)),IF($C108="يوفي ",($L108*$M108*$P108*10/7)*VLOOKUP($K108,#REF!,3,0),"غير مسجل")) -> غير مسجل | X108: =IF($C108="طباعه ",VLOOKUP(K108,#REF!,4,0)*F108,"0") -> 0 | Z108: 0 | AB108: 0 | AC108: =SUMIFS($AB$4:AB108,$K$4:K108,K108) -> 0 | AE108: 0
A109: =IF(I109<>"",MAX($A$3:A108)+1,"") -> 106 | C109: =IFERROR(VLOOKUP($K109,#REF!,5,0),"غير مسجل") -> غير مسجل | G109: غير مسجل | H109: غير مسجل | I109: غير مسجل | J109: غير مسجل | L109: غير مسجل | M109: غير مسجل | P109: 0 | R109: =SUMIFS(التسليمات!$N:$N,التسليمات!$G:$G,B109) -> 0 | U109: =IFERROR(VLOOKUP($K109,#REF!,3,0),"غير مسجل") -> غير مسجل | V109: =IFERROR(VLOOKUP($K109,#REF!,2,0),"غير مسجل") -> غير مسجل | W109: =IF($C109="طباعه ",IF($V109>$P109,$V109*VLOOKUP($K109,#REF!,3,0),$P109*VLOOKUP($K109,#REF!,3,0)),IF($C109="يوفي ",($L109*$M109*$P109*10/7)*VLOOKUP($K109,#REF!,3,0),"غير مسجل")) -> غير مسجل | X109: =IF($C109="طباعه ",VLOOKUP(K109,#REF!,4,0)*F109,"0") -> 0 | Z109: 0 | AB109: 0 | AC109: =SUMIFS($AB$4:AB109,$K$4:K109,K109) -> 0 | AE109: 0
A110: =IF(I110<>"",MAX($A$3:A109)+1,"") -> 107 | C110: =IFERROR(VLOOKUP($K110,#REF!,5,0),"غير مسجل") -> غير مسجل | G110: غير مسجل | H110: غير مسجل | I110: غير مسجل | J110: غير مسجل | L110: غير مسجل | M110: غير مسجل | P110: 0 | R110: =SUMIFS(التسليمات!$N:$N,التسليمات!$G:$G,B110) -> 0 | U110: =IFERROR(VLOOKUP($K110,#REF!,3,0),"غير مسجل") -> غير مسجل | V110: =IFERROR(VLOOKUP($K110,#REF!,2,0),"غير مسجل") -> غير مسجل | W110: =IF($C110="طباعه ",IF($V110>$P110,$V110*VLOOKUP($K110,#REF!,3,0),$P110*VLOOKUP($K110,#REF!,3,0)),IF($C110="يوفي ",($L110*$M110*$P110*10/7)*VLOOKUP($K110,#REF!,3,0),"غير مسجل")) -> غير مسجل | X110: =IF($C110="طباعه ",VLOOKUP(K110,#REF!,4,0)*F110,"0") -> 0 | Z110: 0 | AB110: 0 | AC110: =SUMIFS($AB$4:AB110,$K$4:K110,K110) -> 0 | AE110: 0
A111: =IF(I111<>"",MAX($A$3:A110)+1,"") -> 108 | C111: =IFERROR(VLOOKUP($K111,#REF!,5,0),"غير مسجل") -> غير مسجل | G111: غير مسجل | H111: غير مسجل | I111: غير مسجل | J111: غير مسجل | L111: غير مسجل | M111: غير مسجل | P111: 0 | R111: =SUMIFS(التسليمات!$N:$N,التسليمات!$G:$G,B111) -> 0 | U111: =IFERROR(VLOOKUP($K111,#REF!,3,0),"غير مسجل") -> غير مسجل | V111: =IFERROR(VLOOKUP($K111,#REF!,2,0),"غير مسجل") -> غير مسجل | W111: =IF($C111="طباعه ",IF($V111>$P111,$V111*VLOOKUP($K111,#REF!,3,0),$P111*VLOOKUP($K111,#REF!,3,0)),IF($C111="يوفي ",($L111*$M111*$P111*10/7)*VLOOKUP($K111,#REF!,3,0),"غير مسجل")) -> غير مسجل | X111: =IF($C111="طباعه ",VLOOKUP(K111,#REF!,4,0)*F111,"0") -> 0 | Z111: 0 | AB111: 0 | AC111: =SUMIFS($AB$4:AB111,$K$4:K111,K111) -> 0 | AE111: 0
A112: =IF(I112<>"",MAX($A$3:A111)+1,"") -> 109 | C112: =IFERROR(VLOOKUP($K112,#REF!,5,0),"غير مسجل") -> غير مسجل | G112: غير مسجل | H112: غير مسجل | I112: غير مسجل | J112: غير مسجل | L112: غير مسجل | M112: غير مسجل | P112: 0 | R112: =SUMIFS(التسليمات!$N:$N,التسليمات!$G:$G,B112) -> 0 | U112: =IFERROR(VLOOKUP($K112,#REF!,3,0),"غير مسجل") -> غير مسجل | V112: =IFERROR(VLOOKUP($K112,#REF!,2,0),"غير مسجل") -> غير مسجل | W112: =IF($C112="طباعه ",IF($V112>$P112,$V112*VLOOKUP($K112,#REF!,3,0),$P112*VLOOKUP($K112,#REF!,3,0)),IF($C112="يوفي ",($L112*$M112*$P112*10/7)*VLOOKUP($K112,#REF!,3,0),"غير مسجل")) -> غير مسجل | X112: =IF($C112="طباعه ",VLOOKUP(K112,#REF!,4,0)*F112,"0") -> 0 | Z112: 0 | AB112: 0 | AC112: =SUMIFS($AB$4:AB112,$K$4:K112,K112) -> 0 | AE112: 0
A113: =IF(I113<>"",MAX($A$3:A112)+1,"") -> 110 | C113: =IFERROR(VLOOKUP($K113,#REF!,5,0),"غير مسجل") -> غير مسجل | G113: غير مسجل | H113: غير مسجل | I113: غير مسجل | J113: غير مسجل | L113: غير مسجل | M113: غير مسجل | P113: 0 | R113: =SUMIFS(التسليمات!$N:$N,التسليمات!$G:$G,B113) -> 0 | U113: =IFERROR(VLOOKUP($K113,#REF!,3,0),"غير مسجل") -> غير مسجل | V113: =IFERROR(VLOOKUP($K113,#REF!,2,0),"غير مسجل") -> غير مسجل | W113: =IF($C113="طباعه ",IF($V113>$P113,$V113*VLOOKUP($K113,#REF!,3,0),$P113*VLOOKUP($K113,#REF!,3,0)),IF($C113="يوفي ",($L113*$M113*$P113*10/7)*VLOOKUP($K113,#REF!,3,0),"غير مسجل")) -> غير مسجل | X113: =IF($C113="طباعه ",VLOOKUP(K113,#REF!,4,0)*F113,"0") -> 0 | Z113: 0 | AB113: 0 | AC113: =SUMIFS($AB$4:AB113,$K$4:K113,K113) -> 0 | AE113: 0
A114: =IF(I114<>"",MAX($A$3:A113)+1,"") -> 111 | C114: =IFERROR(VLOOKUP($K114,#REF!,5,0),"غير مسجل") -> غير مسجل | G114: غير مسجل | H114: غير مسجل | I114: غير مسجل | J114: غير مسجل | L114: غير مسجل | M114: غير مسجل | P114: 0 | R114: =SUMIFS(التسليمات!$N:$N,التسليمات!$G:$G,B114) -> 0 | U114: =IFERROR(VLOOKUP($K114,#REF!,3,0),"غير مسجل") -> غير مسجل | V114: =IFERROR(VLOOKUP($K114,#REF!,2,0),"غير مسجل") -> غير مسجل | W114: =IF($C114="طباعه ",IF($V114>$P114,$V114*VLOOKUP($K114,#REF!,3,0),$P114*VLOOKUP($K114,#REF!,3,0)),IF($C114="يوفي ",($L114*$M114*$P114*10/7)*VLOOKUP($K114,#REF!,3,0),"غير مسجل")) -> غير مسجل | X114: =IF($C114="طباعه ",VLOOKUP(K114,#REF!,4,0)*F114,"0") -> 0 | Z114: 0 | AB114: 0 | AC114: =SUMIFS($AB$4:AB114,$K$4:K114,K114) -> 0 | AE114: 0
A115: =IF(I115<>"",MAX($A$3:A114)+1,"") -> 112 | C115: =IFERROR(VLOOKUP($K115,#REF!,5,0),"غير مسجل") -> غير مسجل | G115: غير مسجل | H115: غير مسجل | I115: غير مسجل | J115: غير مسجل | L115: غير مسجل | M115: غير مسجل | P115: 0 | R115: =SUMIFS(التسليمات!$N:$N,التسليمات!$G:$G,B115) -> 0 | U115: =IFERROR(VLOOKUP($K115,#REF!,3,0),"غير مسجل") -> غير مسجل | V115: =IFERROR(VLOOKUP($K115,#REF!,2,0),"غير مسجل") -> غير مسجل | W115: =IF($C115="طباعه ",IF($V115>$P115,$V115*VLOOKUP($K115,#REF!,3,0),$P115*VLOOKUP($K115,#REF!,3,0)),IF($C115="يوفي ",($L115*$M115*$P115*10/7)*VLOOKUP($K115,#REF!,3,0),"غير مسجل")) -> غير مسجل | X115: =IF($C115="طباعه ",VLOOKUP(K115,#REF!,4,0)*F115,"0") -> 0 | Z115: 0 | AB115: 0 | AC115: =SUMIFS($AB$4:AB115,$K$4:K115,K115) -> 0 | AE115: 0
A116: =IF(I116<>"",MAX($A$3:A115)+1,"") -> 113 | C116: =IFERROR(VLOOKUP($K116,#REF!,5,0),"غير مسجل") -> غير مسجل | G116: غير مسجل | H116: غير مسجل | I116: غير مسجل | J116: غير مسجل | L116: غير مسجل | M116: غير مسجل | P116: 0 | R116: =SUMIFS(التسليمات!$N:$N,التسليمات!$G:$G,B116) -> 0 | U116: =IFERROR(VLOOKUP($K116,#REF!,3,0),"غير مسجل") -> غير مسجل | V116: =IFERROR(VLOOKUP($K116,#REF!,2,0),"غير مسجل") -> غير مسجل | W116: =IF($C116="طباعه ",IF($V116>$P116,$V116*VLOOKUP($K116,#REF!,3,0),$P116*VLOOKUP($K116,#REF!,3,0)),IF($C116="يوفي ",($L116*$M116*$P116*10/7)*VLOOKUP($K116,#REF!,3,0),"غير مسجل")) -> غير مسجل | X116: =IF($C116="طباعه ",VLOOKUP(K116,#REF!,4,0)*F116,"0") -> 0 | Z116: 0 | AB116: 0 | AC116: =SUMIFS($AB$4:AB116,$K$4:K116,K116) -> 0 | AE116: 0
A117: =IF(I117<>"",MAX($A$3:A116)+1,"") -> 114 | C117: =IFERROR(VLOOKUP($K117,#REF!,5,0),"غير مسجل") -> غير مسجل | G117: غير مسجل | H117: غير مسجل | I117: غير مسجل | J117: غير مسجل | L117: غير مسجل | M117: غير مسجل | P117: 0 | R117: =SUMIFS(التسليمات!$N:$N,التسليمات!$G:$G,B117) -> 0 | U117: =IFERROR(VLOOKUP($K117,#REF!,3,0),"غير مسجل") -> غير مسجل | V117: =IFERROR(VLOOKUP($K117,#REF!,2,0),"غير مسجل") -> غير مسجل | W117: =IF($C117="طباعه ",IF($V117>$P117,$V117*VLOOKUP($K117,#REF!,3,0),$P117*VLOOKUP($K117,#REF!,3,0)),IF($C117="يوفي ",($L117*$M117*$P117*10/7)*VLOOKUP($K117,#REF!,3,0),"غير مسجل")) -> غير مسجل | X117: =IF($C117="طباعه ",VLOOKUP(K117,#REF!,4,0)*F117,"0") -> 0 | Z117: 0 | AB117: 0 | AC117: =SUMIFS($AB$4:AB117,$K$4:K117,K117) -> 0 | AE117: 0
A118: =IF(I118<>"",MAX($A$3:A117)+1,"") -> 115 | C118: =IFERROR(VLOOKUP($K118,#REF!,5,0),"غير مسجل") -> غير مسجل | G118: غير مسجل | H118: غير مسجل | I118: غير مسجل | J118: غير مسجل | L118: غير مسجل | M118: غير مسجل | P118: 0 | R118: =SUMIFS(التسليمات!$N:$N,التسليمات!$G:$G,B118) -> 0 | U118: =IFERROR(VLOOKUP($K118,#REF!,3,0),"غير مسجل") -> غير مسجل | V118: =IFERROR(VLOOKUP($K118,#REF!,2,0),"غير مسجل") -> غير مسجل | W118: =IF($C118="طباعه ",IF($V118>$P118,$V118*VLOOKUP($K118,#REF!,3,0),$P118*VLOOKUP($K118,#REF!,3,0)),IF($C118="يوفي ",($L118*$M118*$P118*10/7)*VLOOKUP($K118,#REF!,3,0),"غير مسجل")) -> غير مسجل | X118: =IF($C118="طباعه ",VLOOKUP(K118,#REF!,4,0)*F118,"0") -> 0 | Z118: 0 | AB118: 0 | AC118: =SUMIFS($AB$4:AB118,$K$4:K118,K118) -> 0 | AE118: 0
A119: =IF(I119<>"",MAX($A$3:A118)+1,"") -> 116 | C119: =IFERROR(VLOOKUP($K119,#REF!,5,0),"غير مسجل") -> غير مسجل | G119: غير مسجل | H119: غير مسجل | I119: غير مسجل | J119: غير مسجل | L119: غير مسجل | M119: غير مسجل | P119: 0 | R119: =SUMIFS(التسليمات!$N:$N,التسليمات!$G:$G,B119) -> 0 | U119: =IFERROR(VLOOKUP($K119,#REF!,3,0),"غير مسجل") -> غير مسجل | V119: =IFERROR(VLOOKUP($K119,#REF!,2,0),"غير مسجل") -> غير مسجل | W119: =IF($C119="طباعه ",IF($V119>$P119,$V119*VLOOKUP($K119,#REF!,3,0),$P119*VLOOKUP($K119,#REF!,3,0)),IF($C119="يوفي ",($L119*$M119*$P119*10/7)*VLOOKUP($K119,#REF!,3,0),"غير مسجل")) -> غير مسجل | X119: =IF($C119="طباعه ",VLOOKUP(K119,#REF!,4,0)*F119,"0") -> 0 | Z119: 0 | AB119: 0 | AC119: =SUMIFS($AB$4:AB119,$K$4:K119,K119) -> 0 | AE119: 0
A120: =IF(I120<>"",MAX($A$3:A119)+1,"") -> 117 | C120: =IFERROR(VLOOKUP($K120,#REF!,5,0),"غير مسجل") -> غير مسجل | G120: غير مسجل | H120: غير مسجل | I120: غير مسجل | J120: غير مسجل | L120: غير مسجل | M120: غير مسجل | P120: 0 | R120: =SUMIFS(التسليمات!$N:$N,التسليمات!$G:$G,B120) -> 0 | U120: =IFERROR(VLOOKUP($K120,#REF!,3,0),"غير مسجل") -> غير مسجل | V120: =IFERROR(VLOOKUP($K120,#REF!,2,0),"غير مسجل") -> غير مسجل | W120: =IF($C120="طباعه ",IF($V120>$P120,$V120*VLOOKUP($K120,#REF!,3,0),$P120*VLOOKUP($K120,#REF!,3,0)),IF($C120="يوفي ",($L120*$M120*$P120*10/7)*VLOOKUP($K120,#REF!,3,0),"غير مسجل")) -> غير مسجل | X120: =IF($C120="طباعه ",VLOOKUP(K120,#REF!,4,0)*F120,"0") -> 0 | Z120: 0 | AB120: 0 | AC120: =SUMIFS($AB$4:AB120,$K$4:K120,K120) -> 0 | AE120: 0
A121: =IF(I121<>"",MAX($A$3:A120)+1,"") -> 118 | C121: =IFERROR(VLOOKUP($K121,#REF!,5,0),"غير مسجل") -> غير مسجل | G121: غير مسجل | H121: غير مسجل | I121: غير مسجل | J121: غير مسجل | L121: غير مسجل | M121: غير مسجل | P121: 0 | R121: =SUMIFS(التسليمات!$N:$N,التسليمات!$G:$G,B121) -> 0 | U121: =IFERROR(VLOOKUP($K121,#REF!,3,0),"غير مسجل") -> غير مسجل | V121: =IFERROR(VLOOKUP($K121,#REF!,2,0),"غير مسجل") -> غير مسجل | W121: =IF($C121="طباعه ",IF($V121>$P121,$V121*VLOOKUP($K121,#REF!,3,0),$P121*VLOOKUP($K121,#REF!,3,0)),IF($C121="يوفي ",($L121*$M121*$P121*10/7)*VLOOKUP($K121,#REF!,3,0),"غير مسجل")) -> غير مسجل | X121: =IF($C121="طباعه ",VLOOKUP(K121,#REF!,4,0)*F121,"0") -> 0 | Z121: 0 | AB121: 0 | AC121: =SUMIFS($AB$4:AB121,$K$4:K121,K121) -> 0 | AE121: 0
A122: =IF(I122<>"",MAX($A$3:A121)+1,"") -> 119 | C122: =IFERROR(VLOOKUP($K122,#REF!,5,0),"غير مسجل") -> غير مسجل | G122: غير مسجل | H122: غير مسجل | I122: غير مسجل | J122: غير مسجل | L122: غير مسجل | M122: غير مسجل | P122: 0 | R122: =SUMIFS(التسليمات!$N:$N,التسليمات!$G:$G,B122) -> 0 | U122: =IFERROR(VLOOKUP($K122,#REF!,3,0),"غير مسجل") -> غير مسجل | V122: =IFERROR(VLOOKUP($K122,#REF!,2,0),"غير مسجل") -> غير مسجل | W122: =IF($C122="طباعه ",IF($V122>$P122,$V122*VLOOKUP($K122,#REF!,3,0),$P122*VLOOKUP($K122,#REF!,3,0)),IF($C122="يوفي ",($L122*$M122*$P122*10/7)*VLOOKUP($K122,#REF!,3,0),"غير مسجل")) -> غير مسجل | X122: =IF($C122="طباعه ",VLOOKUP(K122,#REF!,4,0)*F122,"0") -> 0 | Z122: 0 | AB122: 0 | AC122: =SUMIFS($AB$4:AB122,$K$4:K122,K122) -> 0 | AE122: 0
A123: =IF(I123<>"",MAX($A$3:A122)+1,"") -> 120 | C123: =IFERROR(VLOOKUP($K123,#REF!,5,0),"غير مسجل") -> غير مسجل | G123: غير مسجل | H123: غير مسجل | I123: غير مسجل | J123: غير مسجل | L123: غير مسجل | M123: غير مسجل | P123: 0 | R123: =SUMIFS(التسليمات!$N:$N,التسليمات!$G:$G,B123) -> 0 | U123: =IFERROR(VLOOKUP($K123,#REF!,3,0),"غير مسجل") -> غير مسجل | V123: =IFERROR(VLOOKUP($K123,#REF!,2,0),"غير مسجل") -> غير مسجل | W123: =IF($C123="طباعه ",IF($V123>$P123,$V123*VLOOKUP($K123,#REF!,3,0),$P123*VLOOKUP($K123,#REF!,3,0)),IF($C123="يوفي ",($L123*$M123*$P123*10/7)*VLOOKUP($K123,#REF!,3,0),"غير مسجل")) -> غير مسجل | X123: =IF($C123="طباعه ",VLOOKUP(K123,#REF!,4,0)*F123,"0") -> 0 | Z123: 0 | AB123: 0 | AC123: =SUMIFS($AB$4:AB123,$K$4:K123,K123) -> 0 | AE123: 0
A124: =IF(I124<>"",MAX($A$3:A123)+1,"") -> 121 | C124: =IFERROR(VLOOKUP($K124,#REF!,5,0),"غير مسجل") -> غير مسجل | G124: غير مسجل | H124: غير مسجل | I124: غير مسجل | J124: غير مسجل | L124: غير مسجل | M124: غير مسجل | P124: 0 | R124: =SUMIFS(التسليمات!$N:$N,التسليمات!$G:$G,B124) -> 0 | U124: =IFERROR(VLOOKUP($K124,#REF!,3,0),"غير مسجل") -> غير مسجل | V124: =IFERROR(VLOOKUP($K124,#REF!,2,0),"غير مسجل") -> غير مسجل | W124: =IF($C124="طباعه ",IF($V124>$P124,$V124*VLOOKUP($K124,#REF!,3,0),$P124*VLOOKUP($K124,#REF!,3,0)),IF($C124="يوفي ",($L124*$M124*$P124*10/7)*VLOOKUP($K124,#REF!,3,0),"غير مسجل")) -> غير مسجل | X124: =IF($C124="طباعه ",VLOOKUP(K124,#REF!,4,0)*F124,"0") -> 0 | Z124: 0 | AB124: 0 | AC124: =SUMIFS($AB$4:AB124,$K$4:K124,K124) -> 0 | AE124: 0
A125: =IF(I125<>"",MAX($A$3:A124)+1,"") -> 122 | C125: =IFERROR(VLOOKUP($K125,#REF!,5,0),"غير مسجل") -> غير مسجل | G125: غير مسجل | H125: غير مسجل | I125: غير مسجل | J125: غير مسجل | L125: غير مسجل | M125: غير مسجل | P125: 0 | R125: =SUMIFS(التسليمات!$N:$N,التسليمات!$G:$G,B125) -> 0 | U125: =IFERROR(VLOOKUP($K125,#REF!,3,0),"غير مسجل") -> غير مسجل | V125: =IFERROR(VLOOKUP($K125,#REF!,2,0),"غير مسجل") -> غير مسجل | W125: =IF($C125="طباعه ",IF($V125>$P125,$V125*VLOOKUP($K125,#REF!,3,0),$P125*VLOOKUP($K125,#REF!,3,0)),IF($C125="يوفي ",($L125*$M125*$P125*10/7)*VLOOKUP($K125,#REF!,3,0),"غير مسجل")) -> غير مسجل | X125: =IF($C125="طباعه ",VLOOKUP(K125,#REF!,4,0)*F125,"0") -> 0 | Z125: 0 | AB125: 0 | AC125: =SUMIFS($AB$4:AB125,$K$4:K125,K125) -> 0 | AE125: 0
A126: =IF(I126<>"",MAX($A$3:A125)+1,"") -> 123 | C126: =IFERROR(VLOOKUP($K126,#REF!,5,0),"غير مسجل") -> غير مسجل | G126: غير مسجل | H126: غير مسجل | I126: غير مسجل | J126: غير مسجل | L126: غير مسجل | M126: غير مسجل | P126: 0 | R126: =SUMIFS(التسليمات!$N:$N,التسليمات!$G:$G,B126) -> 0 | U126: =IFERROR(VLOOKUP($K126,#REF!,3,0),"غير مسجل") -> غير مسجل | V126: =IFERROR(VLOOKUP($K126,#REF!,2,0),"غير مسجل") -> غير مسجل | W126: =IF($C126="طباعه ",IF($V126>$P126,$V126*VLOOKUP($K126,#REF!,3,0),$P126*VLOOKUP($K126,#REF!,3,0)),IF($C126="يوفي ",($L126*$M126*$P126*10/7)*VLOOKUP($K126,#REF!,3,0),"غير مسجل")) -> غير مسجل | X126: =IF($C126="طباعه ",VLOOKUP(K126,#REF!,4,0)*F126,"0") -> 0 | Z126: 0 | AB126: 0 | AC126: =SUMIFS($AB$4:AB126,$K$4:K126,K126) -> 0 | AE126: 0
A127: =IF(I127<>"",MAX($A$3:A126)+1,"") -> 124 | C127: =IFERROR(VLOOKUP($K127,#REF!,5,0),"غير مسجل") -> غير مسجل | G127: غير مسجل | H127: غير مسجل | I127: غير مسجل | J127: غير مسجل | L127: غير مسجل | M127: غير مسجل | P127: 0 | R127: =SUMIFS(التسليمات!$N:$N,التسليمات!$G:$G,B127) -> 0 | U127: =IFERROR(VLOOKUP($K127,#REF!,3,0),"غير مسجل") -> غير مسجل | V127: =IFERROR(VLOOKUP($K127,#REF!,2,0),"غير مسجل") -> غير مسجل | W127: =IF($C127="طباعه ",IF($V127>$P127,$V127*VLOOKUP($K127,#REF!,3,0),$P127*VLOOKUP($K127,#REF!,3,0)),IF($C127="يوفي ",($L127*$M127*$P127*10/7)*VLOOKUP($K127,#REF!,3,0),"غير مسجل")) -> غير مسجل | X127: =IF($C127="طباعه ",VLOOKUP(K127,#REF!,4,0)*F127,"0") -> 0 | Z127: 0 | AB127: 0 | AC127: =SUMIFS($AB$4:AB127,$K$4:K127,K127) -> 0 | AE127: 0
A128: =IF(I128<>"",MAX($A$3:A127)+1,"") -> 125 | C128: =IFERROR(VLOOKUP($K128,#REF!,5,0),"غير مسجل") -> غير مسجل | G128: غير مسجل | H128: غير مسجل | I128: غير مسجل | J128: غير مسجل | L128: غير مسجل | M128: غير مسجل | P128: 0 | R128: =SUMIFS(التسليمات!$N:$N,التسليمات!$G:$G,B128) -> 0 | U128: =IFERROR(VLOOKUP($K128,#REF!,3,0),"غير مسجل") -> غير مسجل | V128: =IFERROR(VLOOKUP($K128,#REF!,2,0),"غير مسجل") -> غير مسجل | W128: =IF($C128="طباعه ",IF($V128>$P128,$V128*VLOOKUP($K128,#REF!,3,0),$P128*VLOOKUP($K128,#REF!,3,0)),IF($C128="يوفي ",($L128*$M128*$P128*10/7)*VLOOKUP($K128,#REF!,3,0),"غير مسجل")) -> غير مسجل | X128: =IF($C128="طباعه ",VLOOKUP(K128,#REF!,4,0)*F128,"0") -> 0 | Z128: 0 | AB128: 0 | AC128: =SUMIFS($AB$4:AB128,$K$4:K128,K128) -> 0 | AE128: 0
A129: =IF(I129<>"",MAX($A$3:A128)+1,"") -> 126 | C129: =IFERROR(VLOOKUP($K129,#REF!,5,0),"غير مسجل") -> غير مسجل | G129: غير مسجل | H129: غير مسجل | I129: غير مسجل | J129: غير مسجل | L129: غير مسجل | M129: غير مسجل | P129: 0 | R129: =SUMIFS(التسليمات!$N:$N,التسليمات!$G:$G,B129) -> 0 | U129: =IFERROR(VLOOKUP($K129,#REF!,3,0),"غير مسجل") -> غير مسجل | V129: =IFERROR(VLOOKUP($K129,#REF!,2,0),"غير مسجل") -> غير مسجل | W129: =IF($C129="طباعه ",IF($V129>$P129,$V129*VLOOKUP($K129,#REF!,3,0),$P129*VLOOKUP($K129,#REF!,3,0)),IF($C129="يوفي ",($L129*$M129*$P129*10/7)*VLOOKUP($K129,#REF!,3,0),"غير مسجل")) -> غير مسجل | X129: =IF($C129="طباعه ",VLOOKUP(K129,#REF!,4,0)*F129,"0") -> 0 | Z129: 0 | AB129: 0 | AC129: =SUMIFS($AB$4:AB129,$K$4:K129,K129) -> 0 | AE129: 0
A130: =IF(I130<>"",MAX($A$3:A129)+1,"") -> 127 | C130: =IFERROR(VLOOKUP($K130,#REF!,5,0),"غير مسجل") -> غير مسجل | G130: غير مسجل | H130: غير مسجل | I130: غير مسجل | J130: غير مسجل | L130: غير مسجل | M130: غير مسجل | P130: 0 | R130: =SUMIFS(التسليمات!$N:$N,التسليمات!$G:$G,B130) -> 0 | U130: =IFERROR(VLOOKUP($K130,#REF!,3,0),"غير مسجل") -> غير مسجل | V130: =IFERROR(VLOOKUP($K130,#REF!,2,0),"غير مسجل") -> غير مسجل | W130: =IF($C130="طباعه ",IF($V130>$P130,$V130*VLOOKUP($K130,#REF!,3,0),$P130*VLOOKUP($K130,#REF!,3,0)),IF($C130="يوفي ",($L130*$M130*$P130*10/7)*VLOOKUP($K130,#REF!,3,0),"غير مسجل")) -> غير مسجل | X130: =IF($C130="طباعه ",VLOOKUP(K130,#REF!,4,0)*F130,"0") -> 0 | Z130: 0 | AB130: 0 | AC130: =SUMIFS($AB$4:AB130,$K$4:K130,K130) -> 0 | AE130: 0
A131: =IF(I131<>"",MAX($A$3:A130)+1,"") -> 128 | C131: =IFERROR(VLOOKUP($K131,#REF!,5,0),"غير مسجل") -> غير مسجل | G131: غير مسجل | H131: غير مسجل | I131: غير مسجل | J131: غير مسجل | L131: غير مسجل | M131: غير مسجل | P131: 0 | R131: =SUMIFS(التسليمات!$N:$N,التسليمات!$G:$G,B131) -> 0 | U131: =IFERROR(VLOOKUP($K131,#REF!,3,0),"غير مسجل") -> غير مسجل | V131: =IFERROR(VLOOKUP($K131,#REF!,2,0),"غير مسجل") -> غير مسجل | W131: =IF($C131="طباعه ",IF($V131>$P131,$V131*VLOOKUP($K131,#REF!,3,0),$P131*VLOOKUP($K131,#REF!,3,0)),IF($C131="يوفي ",($L131*$M131*$P131*10/7)*VLOOKUP($K131,#REF!,3,0),"غير مسجل")) -> غير مسجل | X131: =IF($C131="طباعه ",VLOOKUP(K131,#REF!,4,0)*F131,"0") -> 0 | Z131: 0 | AB131: 0 | AC131: =SUMIFS($AB$4:AB131,$K$4:K131,K131) -> 0 | AE131: 0
A132: =IF(I132<>"",MAX($A$3:A131)+1,"") -> 129 | C132: =IFERROR(VLOOKUP($K132,#REF!,5,0),"غير مسجل") -> غير مسجل | G132: =IFERROR(VLOOKUP($B132,table3,5,0),"غير مسجل") -> غير مسجل | H132: =IFERROR(VLOOKUP($B132,table3,4,0),"غير مسجل") -> غير مسجل | I132: =IFERROR(VLOOKUP($B132,table3,3,0),"غير مسجل") -> غير مسجل | J132: =IFERROR(VLOOKUP($B132,table3,32,0),"غير مسجل") -> غير مسجل | L132: =IFERROR(VLOOKUP($B132,table3,10,0),"غير مسجل") -> غير مسجل | M132: =IFERROR(VLOOKUP($B132,table3,11,0),"غير مسجل") -> غير مسجل | P132: 0 | Q132: =IFERROR(VLOOKUP($I132,table2,17,0),"") ->  | R132: =SUMIFS(التسليمات!$N:$N,التسليمات!$G:$G,B132) -> 0 | T132: =IFERROR(($R132*$Q132)+$S132,"") ->  | U132: =IFERROR(VLOOKUP($K132,#REF!,3,0),"غير مسجل") -> غير مسجل | V132: =IFERROR(VLOOKUP($K132,#REF!,2,0),"غير مسجل") -> غير مسجل | W132: =IF($C132="طباعه ",IF($V132>$P132,$V132*VLOOKUP($K132,#REF!,3,0),$P132*VLOOKUP($K132,#REF!,3,0)),IF($C132="يوفي ",($L132*$M132*$P132*10/7)*VLOOKUP($K132,#REF!,3,0),"غير مسجل")) -> غير مسجل | X132: =IF($C132="طباعه ",VLOOKUP(K132,#REF!,4,0)*F132,"0") -> 0 | Z132: 0 | AB132: 0 | AC132: =SUMIFS($AB$4:AB132,$K$4:K132,K132) -> 0 | AE132: 0
A133: =IF(I133<>"",MAX($A$3:A132)+1,"") -> 130 | C133: =IFERROR(VLOOKUP($K133,#REF!,5,0),"غير مسجل") -> غير مسجل | G133: غير مسجل | H133: غير مسجل | I133: غير مسجل | J133: غير مسجل | L133: غير مسجل | M133: غير مسجل | P133: =N133+O133 -> 0 | R133: =SUMIFS(التسليمات!$N:$N,التسليمات!$G:$G,B133) -> 0 | U133: =IFERROR(VLOOKUP($K133,#REF!,3,0),"غير مسجل") -> غير مسجل | V133: =IFERROR(VLOOKUP($K133,#REF!,2,0),"غير مسجل") -> غير مسجل | W133: =IF($C133="طباعه ",IF($V133>$P133,$V133*VLOOKUP($K133,#REF!,3,0),$P133*VLOOKUP($K133,#REF!,3,0)),IF($C133="يوفي ",($L133*$M133*$P133*10/7)*VLOOKUP($K133,#REF!,3,0),"غير مسجل")) -> غير مسجل | X133: =IF($C133="طباعه ",VLOOKUP(K133,#REF!,4,0)*F133,"0") -> 0 | Z133: 0 | AB133: 0 | AC133: =SUMIFS($AB$4:AB133,$K$4:K133,K133) -> 0 | AE133: 0
A134: =IF(I134<>"",MAX($A$3:A133)+1,"") -> 131 | C134: =IFERROR(VLOOKUP($K134,#REF!,5,0),"غير مسجل") -> غير مسجل | G134: غير مسجل | H134: غير مسجل | I134: غير مسجل | J134: غير مسجل | L134: غير مسجل | M134: غير مسجل | P134: 0 | R134: =SUMIFS(التسليمات!$N:$N,التسليمات!$G:$G,B134) -> 0 | U134: =IFERROR(VLOOKUP($K134,#REF!,3,0),"غير مسجل") -> غير مسجل | V134: =IFERROR(VLOOKUP($K134,#REF!,2,0),"غير مسجل") -> غير مسجل | W134: =IF($C134="طباعه ",IF($V134>$P134,$V134*VLOOKUP($K134,#REF!,3,0),$P134*VLOOKUP($K134,#REF!,3,0)),IF($C134="يوفي ",($L134*$M134*$P134*10/7)*VLOOKUP($K134,#REF!,3,0),"غير مسجل")) -> غير مسجل | X134: =IF($C134="طباعه ",VLOOKUP(K134,#REF!,4,0)*F134,"0") -> 0 | Z134: 0 | AB134: 0 | AC134: =SUMIFS($AB$4:AB134,$K$4:K134,K134) -> 0 | AE134: 0
A135: =IF(I135<>"",MAX($A$3:A134)+1,"") -> 132 | C135: =IFERROR(VLOOKUP($K135,#REF!,5,0),"غير مسجل") -> غير مسجل | G135: غير مسجل | H135: غير مسجل | I135: غير مسجل | J135: غير مسجل | L135: غير مسجل | M135: غير مسجل | P135: 0 | R135: =SUMIFS(التسليمات!$N:$N,التسليمات!$G:$G,B135) -> 0 | U135: =IFERROR(VLOOKUP($K135,#REF!,3,0),"غير مسجل") -> غير مسجل | V135: =IFERROR(VLOOKUP($K135,#REF!,2,0),"غير مسجل") -> غير مسجل | W135: =IF($C135="طباعه ",IF($V135>$P135,$V135*VLOOKUP($K135,#REF!,3,0),$P135*VLOOKUP($K135,#REF!,3,0)),IF($C135="يوفي ",($L135*$M135*$P135*10/7)*VLOOKUP($K135,#REF!,3,0),"غير مسجل")) -> غير مسجل | X135: =IF($C135="طباعه ",VLOOKUP(K135,#REF!,4,0)*F135,"0") -> 0 | Z135: 0 | AB135: 0 | AC135: =SUMIFS($AB$4:AB135,$K$4:K135,K135) -> 0 | AE135: 0
A136: =IF(I136<>"",MAX($A$3:A135)+1,"") -> 133 | C136: =IFERROR(VLOOKUP($K136,#REF!,5,0),"غير مسجل") -> غير مسجل | G136: غير مسجل | H136: غير مسجل | I136: غير مسجل | J136: غير مسجل | L136: غير مسجل | M136: غير مسجل | P136: 0 | R136: =SUMIFS(التسليمات!$N:$N,التسليمات!$G:$G,B136) -> 0 | U136: =IFERROR(VLOOKUP($K136,#REF!,3,0),"غير مسجل") -> غير مسجل | V136: =IFERROR(VLOOKUP($K136,#REF!,2,0),"غير مسجل") -> غير مسجل | W136: =IF($C136="طباعه ",IF($V136>$P136,$V136*VLOOKUP($K136,#REF!,3,0),$P136*VLOOKUP($K136,#REF!,3,0)),IF($C136="يوفي ",($L136*$M136*$P136*10/7)*VLOOKUP($K136,#REF!,3,0),"غير مسجل")) -> غير مسجل | X136: =IF($C136="طباعه ",VLOOKUP(K136,#REF!,4,0)*F136,"0") -> 0 | Z136: 0 | AB136: 0 | AC136: =SUMIFS($AB$4:AB136,$K$4:K136,K136) -> 0 | AE136: 0
A137: =IF(I137<>"",MAX($A$3:A136)+1,"") -> 134 | C137: =IFERROR(VLOOKUP($K137,#REF!,5,0),"غير مسجل") -> غير مسجل | G137: غير مسجل | H137: غير مسجل | I137: غير مسجل | J137: غير مسجل | L137: غير مسجل | M137: غير مسجل | P137: 0 | R137: =SUMIFS(التسليمات!$N:$N,التسليمات!$G:$G,B137) -> 0 | U137: =IFERROR(VLOOKUP($K137,#REF!,3,0),"غير مسجل") -> غير مسجل | V137: =IFERROR(VLOOKUP($K137,#REF!,2,0),"غير مسجل") -> غير مسجل | W137: =IF($C137="طباعه ",IF($V137>$P137,$V137*VLOOKUP($K137,#REF!,3,0),$P137*VLOOKUP($K137,#REF!,3,0)),IF($C137="يوفي ",($L137*$M137*$P137*10/7)*VLOOKUP($K137,#REF!,3,0),"غير مسجل")) -> غير مسجل | X137: =IF($C137="طباعه ",VLOOKUP(K137,#REF!,4,0)*F137,"0") -> 0 | Z137: 0 | AB137: 0 | AC137: =SUMIFS($AB$4:AB137,$K$4:K137,K137) -> 0 | AE137: 0
A138: =IF(I138<>"",MAX($A$3:A137)+1,"") -> 135 | C138: =IFERROR(VLOOKUP($K138,#REF!,5,0),"غير مسجل") -> غير مسجل | G138: غير مسجل | H138: غير مسجل | I138: غير مسجل | J138: غير مسجل | L138: غير مسجل | M138: غير مسجل | P138: 0 | R138: =SUMIFS(التسليمات!$N:$N,التسليمات!$G:$G,B138) -> 0 | U138: =IFERROR(VLOOKUP($K138,#REF!,3,0),"غير مسجل") -> غير مسجل | V138: =IFERROR(VLOOKUP($K138,#REF!,2,0),"غير مسجل") -> غير مسجل | W138: =IF($C138="طباعه ",IF($V138>$P138,$V138*VLOOKUP($K138,#REF!,3,0),$P138*VLOOKUP($K138,#REF!,3,0)),IF($C138="يوفي ",($L138*$M138*$P138*10/7)*VLOOKUP($K138,#REF!,3,0),"غير مسجل")) -> غير مسجل | X138: =IF($C138="طباعه ",VLOOKUP(K138,#REF!,4,0)*F138,"0") -> 0 | Z138: 0 | AB138: 0 | AC138: =SUMIFS($AB$4:AB138,$K$4:K138,K138) -> 0 | AE138: 0
A139: =IF(I139<>"",MAX($A$3:A138)+1,"") -> 136 | C139: =IFERROR(VLOOKUP($K139,#REF!,5,0),"غير مسجل") -> غير مسجل | G139: غير مسجل | H139: غير مسجل | I139: غير مسجل | J139: غير مسجل | L139: غير مسجل | M139: غير مسجل | P139: 0 | R139: =SUMIFS(التسليمات!$N:$N,التسليمات!$G:$G,B139) -> 0 | U139: =IFERROR(VLOOKUP($K139,#REF!,3,0),"غير مسجل") -> غير مسجل | V139: =IFERROR(VLOOKUP($K139,#REF!,2,0),"غير مسجل") -> غير مسجل | W139: =IF($C139="طباعه ",IF($V139>$P139,$V139*VLOOKUP($K139,#REF!,3,0),$P139*VLOOKUP($K139,#REF!,3,0)),IF($C139="يوفي ",($L139*$M139*$P139*10/7)*VLOOKUP($K139,#REF!,3,0),"غير مسجل")) -> غير مسجل | X139: =IF($C139="طباعه ",VLOOKUP(K139,#REF!,4,0)*F139,"0") -> 0 | Z139: 0 | AB139: 0 | AC139: =SUMIFS($AB$4:AB139,$K$4:K139,K139) -> 0 | AE139: 0
A140: =IF(I140<>"",MAX($A$3:A139)+1,"") -> 137 | C140: =IFERROR(VLOOKUP($K140,#REF!,5,0),"غير مسجل") -> غير مسجل | G140: غير مسجل | H140: غير مسجل | I140: غير مسجل | J140: غير مسجل | L140: غير مسجل | M140: غير مسجل | P140: 0 | R140: =SUMIFS(التسليمات!$N:$N,التسليمات!$G:$G,B140) -> 0 | U140: =IFERROR(VLOOKUP($K140,#REF!,3,0),"غير مسجل") -> غير مسجل | V140: =IFERROR(VLOOKUP($K140,#REF!,2,0),"غير مسجل") -> غير مسجل | W140: =IF($C140="طباعه ",IF($V140>$P140,$V140*VLOOKUP($K140,#REF!,3,0),$P140*VLOOKUP($K140,#REF!,3,0)),IF($C140="يوفي ",($L140*$M140*$P140*10/7)*VLOOKUP($K140,#REF!,3,0),"غير مسجل")) -> غير مسجل | X140: =IF($C140="طباعه ",VLOOKUP(K140,#REF!,4,0)*F140,"0") -> 0 | Z140: 0 | AB140: 0 | AC140: =SUMIFS($AB$4:AB140,$K$4:K140,K140) -> 0 | AE140: 0
A141: =IF(I141<>"",MAX($A$3:A140)+1,"") -> 138 | C141: =IFERROR(VLOOKUP($K141,#REF!,5,0),"غير مسجل") -> غير مسجل | G141: غير مسجل | H141: غير مسجل | I141: غير مسجل | J141: غير مسجل | L141: غير مسجل | M141: غير مسجل | P141: 0 | R141: =SUMIFS(التسليمات!$N:$N,التسليمات!$G:$G,B141) -> 0 | U141: =IFERROR(VLOOKUP($K141,#REF!,3,0),"غير مسجل") -> غير مسجل | V141: =IFERROR(VLOOKUP($K141,#REF!,2,0),"غير مسجل") -> غير مسجل | W141: =IF($C141="طباعه ",IF($V141>$P141,$V141*VLOOKUP($K141,#REF!,3,0),$P141*VLOOKUP($K141,#REF!,3,0)),IF($C141="يوفي ",($L141*$M141*$P141*10/7)*VLOOKUP($K141,#REF!,3,0),"غير مسجل")) -> غير مسجل | X141: =IF($C141="طباعه ",VLOOKUP(K141,#REF!,4,0)*F141,"0") -> 0 | Z141: 0 | AB141: 0 | AC141: =SUMIFS($AB$4:AB141,$K$4:K141,K141) -> 0 | AE141: 0
A142: =IF(I142<>"",MAX($A$3:A141)+1,"") -> 139 | C142: =IFERROR(VLOOKUP($K142,#REF!,5,0),"غير مسجل") -> غير مسجل | G142: غير مسجل | H142: غير مسجل | I142: غير مسجل | J142: غير مسجل | L142: غير مسجل | M142: غير مسجل | P142: 0 | R142: =SUMIFS(التسليمات!$N:$N,التسليمات!$G:$G,B142) -> 0 | U142: =IFERROR(VLOOKUP($K142,#REF!,3,0),"غير مسجل") -> غير مسجل | V142: =IFERROR(VLOOKUP($K142,#REF!,2,0),"غير مسجل") -> غير مسجل | W142: =IF($C142="طباعه ",IF($V142>$P142,$V142*VLOOKUP($K142,#REF!,3,0),$P142*VLOOKUP($K142,#REF!,3,0)),IF($C142="يوفي ",($L142*$M142*$P142*10/7)*VLOOKUP($K142,#REF!,3,0),"غير مسجل")) -> غير مسجل | X142: =IF($C142="طباعه ",VLOOKUP(K142,#REF!,4,0)*F142,"0") -> 0 | Z142: 0 | AB142: 0 | AC142: =SUMIFS($AB$4:AB142,$K$4:K142,K142) -> 0 | AE142: 0
A143: =IF(I143<>"",MAX($A$3:A142)+1,"") -> 140 | C143: =IFERROR(VLOOKUP($K143,#REF!,5,0),"غير مسجل") -> غير مسجل | G143: غير مسجل | H143: غير مسجل | I143: غير مسجل | J143: غير مسجل | L143: غير مسجل | M143: غير مسجل | P143: 0 | R143: =SUMIFS(التسليمات!$N:$N,التسليمات!$G:$G,B143) -> 0 | U143: =IFERROR(VLOOKUP($K143,#REF!,3,0),"غير مسجل") -> غير مسجل | V143: =IFERROR(VLOOKUP($K143,#REF!,2,0),"غير مسجل") -> غير مسجل | W143: =IF($C143="طباعه ",IF($V143>$P143,$V143*VLOOKUP($K143,#REF!,3,0),$P143*VLOOKUP($K143,#REF!,3,0)),IF($C143="يوفي ",($L143*$M143*$P143*10/7)*VLOOKUP($K143,#REF!,3,0),"غير مسجل")) -> غير مسجل | X143: =IF($C143="طباعه ",VLOOKUP(K143,#REF!,4,0)*F143,"0") -> 0 | Z143: 0 | AB143: 0 | AC143: =SUMIFS($AB$4:AB143,$K$4:K143,K143) -> 0 | AE143: 0
A144: =IF(I144<>"",MAX($A$3:A143)+1,"") -> 141 | C144: =IFERROR(VLOOKUP($K144,#REF!,5,0),"غير مسجل") -> غير مسجل | G144: غير مسجل | H144: غير مسجل | I144: غير مسجل | J144: غير مسجل | L144: غير مسجل | M144: غير مسجل | P144: 0 | R144: =SUMIFS(التسليمات!$N:$N,التسليمات!$G:$G,B144) -> 0 | U144: =IFERROR(VLOOKUP($K144,#REF!,3,0),"غير مسجل") -> غير مسجل | V144: =IFERROR(VLOOKUP($K144,#REF!,2,0),"غير مسجل") -> غير مسجل | W144: =IF($C144="طباعه ",IF($V144>$P144,$V144*VLOOKUP($K144,#REF!,3,0),$P144*VLOOKUP($K144,#REF!,3,0)),IF($C144="يوفي ",($L144*$M144*$P144*10/7)*VLOOKUP($K144,#REF!,3,0),"غير مسجل")) -> غير مسجل | X144: =IF($C144="طباعه ",VLOOKUP(K144,#REF!,4,0)*F144,"0") -> 0 | Z144: 0 | AB144: 0 | AC144: =SUMIFS($AB$4:AB144,$K$4:K144,K144) -> 0 | AE144: 0
A145: =IF(I145<>"",MAX($A$3:A144)+1,"") -> 142 | C145: =IFERROR(VLOOKUP($K145,#REF!,5,0),"غير مسجل") -> غير مسجل | G145: غير مسجل | H145: غير مسجل | I145: غير مسجل | J145: غير مسجل | L145: غير مسجل | M145: غير مسجل | P145: 0 | R145: =SUMIFS(التسليمات!$N:$N,التسليمات!$G:$G,B145) -> 0 | U145: =IFERROR(VLOOKUP($K145,#REF!,3,0),"غير مسجل") -> غير مسجل | V145: =IFERROR(VLOOKUP($K145,#REF!,2,0),"غير مسجل") -> غير مسجل | W145: =IF($C145="طباعه ",IF($V145>$P145,$V145*VLOOKUP($K145,#REF!,3,0),$P145*VLOOKUP($K145,#REF!,3,0)),IF($C145="يوفي ",($L145*$M145*$P145*10/7)*VLOOKUP($K145,#REF!,3,0),"غير مسجل")) -> غير مسجل | X145: =IF($C145="طباعه ",VLOOKUP(K145,#REF!,4,0)*F145,"0") -> 0 | Z145: =IFERROR(W145+X145-Y145,"0") -> 0 | AB145: =Z145-AA145 -> 0 | AC145: =SUMIFS($AB$4:AB145,$K$4:K145,K145) -> 0 | AE145: =AB145-AD145 -> 0
A146: =IF(I146<>"",MAX($A$3:A145)+1,"") -> 143 | C146: =IFERROR(VLOOKUP($K146,#REF!,5,0),"غير مسجل") -> غير مسجل | G146: غير مسجل | H146: غير مسجل | I146: غير مسجل | J146: غير مسجل | L146: غير مسجل | M146: غير مسجل | P146: 0 | R146: =SUMIFS(التسليمات!$N:$N,التسليمات!$G:$G,B146) -> 0 | U146: =IFERROR(VLOOKUP($K146,#REF!,3,0),"غير مسجل") -> غير مسجل | V146: =IFERROR(VLOOKUP($K146,#REF!,2,0),"غير مسجل") -> غير مسجل | W146: =IF($C146="طباعه ",IF($V146>$P146,$V146*VLOOKUP($K146,#REF!,3,0),$P146*VLOOKUP($K146,#REF!,3,0)),IF($C146="يوفي ",($L146*$M146*$P146*10/7)*VLOOKUP($K146,#REF!,3,0),"غير مسجل")) -> غير مسجل | X146: =IF($C146="طباعه ",VLOOKUP(K146,#REF!,4,0)*F146,"0") -> 0 | Z146: 0 | AB146: 0 | AC146: =SUMIFS($AB$4:AB146,$K$4:K146,K146) -> 0 | AE146: 0
A147: =IF(I147<>"",MAX($A$3:A146)+1,"") -> 144 | C147: =IFERROR(VLOOKUP($K147,#REF!,5,0),"غير مسجل") -> غير مسجل | G147: غير مسجل | H147: غير مسجل | I147: غير مسجل | J147: غير مسجل | L147: غير مسجل | M147: غير مسجل | P147: 0 | R147: =SUMIFS(التسليمات!$N:$N,التسليمات!$G:$G,B147) -> 0 | U147: =IFERROR(VLOOKUP($K147,#REF!,3,0),"غير مسجل") -> غير مسجل | V147: =IFERROR(VLOOKUP($K147,#REF!,2,0),"غير مسجل") -> غير مسجل | W147: =IF($C147="طباعه ",IF($V147>$P147,$V147*VLOOKUP($K147,#REF!,3,0),$P147*VLOOKUP($K147,#REF!,3,0)),IF($C147="يوفي ",($L147*$M147*$P147*10/7)*VLOOKUP($K147,#REF!,3,0),"غير مسجل")) -> غير مسجل | X147: =IF($C147="طباعه ",VLOOKUP(K147,#REF!,4,0)*F147,"0") -> 0 | Z147: 0 | AB147: 0 | AC147: =SUMIFS($AB$4:AB147,$K$4:K147,K147) -> 0 | AE147: 0
A148: =IF(I148<>"",MAX($A$3:A147)+1,"") -> 145 | C148: =IFERROR(VLOOKUP($K148,#REF!,5,0),"غير مسجل") -> غير مسجل | G148: غير مسجل | H148: غير مسجل | I148: غير مسجل | J148: غير مسجل | L148: غير مسجل | M148: غير مسجل | P148: 0 | R148: =SUMIFS(التسليمات!$N:$N,التسليمات!$G:$G,B148) -> 0 | U148: =IFERROR(VLOOKUP($K148,#REF!,3,0),"غير مسجل") -> غير مسجل | V148: =IFERROR(VLOOKUP($K148,#REF!,2,0),"غير مسجل") -> غير مسجل | W148: =IF($C148="طباعه ",IF($V148>$P148,$V148*VLOOKUP($K148,#REF!,3,0),$P148*VLOOKUP($K148,#REF!,3,0)),IF($C148="يوفي ",($L148*$M148*$P148*10/7)*VLOOKUP($K148,#REF!,3,0),"غير مسجل")) -> غير مسجل | X148: =IF($C148="طباعه ",VLOOKUP(K148,#REF!,4,0)*F148,"0") -> 0 | Z148: 0 | AB148: 0 | AC148: =SUMIFS($AB$4:AB148,$K$4:K148,K148) -> 0 | AE148: 0
A149: =IF(I149<>"",MAX($A$3:A148)+1,"") -> 146 | C149: =IFERROR(VLOOKUP($K149,#REF!,5,0),"غير مسجل") -> غير مسجل | G149: غير مسجل | H149: غير مسجل | I149: غير مسجل | J149: غير مسجل | L149: غير مسجل | M149: غير مسجل | P149: 0 | R149: =SUMIFS(التسليمات!$N:$N,التسليمات!$G:$G,B149) -> 0 | U149: =IFERROR(VLOOKUP($K149,#REF!,3,0),"غير مسجل") -> غير مسجل | V149: =IFERROR(VLOOKUP($K149,#REF!,2,0),"غير مسجل") -> غير مسجل | W149: =IF($C149="طباعه ",IF($V149>$P149,$V149*VLOOKUP($K149,#REF!,3,0),$P149*VLOOKUP($K149,#REF!,3,0)),IF($C149="يوفي ",($L149*$M149*$P149*10/7)*VLOOKUP($K149,#REF!,3,0),"غير مسجل")) -> غير مسجل | X149: =IF($C149="طباعه ",VLOOKUP(K149,#REF!,4,0)*F149,"0") -> 0 | Z149: 0 | AB149: 0 | AC149: =SUMIFS($AB$4:AB149,$K$4:K149,K149) -> 0 | AE149: 0
A150: =IF(I150<>"",MAX($A$3:A149)+1,"") -> 147 | C150: =IFERROR(VLOOKUP($K150,#REF!,5,0),"غير مسجل") -> غير مسجل | G150: غير مسجل | H150: غير مسجل | I150: غير مسجل | J150: غير مسجل | L150: غير مسجل | M150: غير مسجل | P150: 0 | R150: =SUMIFS(التسليمات!$N:$N,التسليمات!$G:$G,B150) -> 0 | U150: =IFERROR(VLOOKUP($K150,#REF!,3,0),"غير مسجل") -> غير مسجل | V150: =IFERROR(VLOOKUP($K150,#REF!,2,0),"غير مسجل") -> غير مسجل | W150: =IF($C150="طباعه ",IF($V150>$P150,$V150*VLOOKUP($K150,#REF!,3,0),$P150*VLOOKUP($K150,#REF!,3,0)),IF($C150="يوفي ",($L150*$M150*$P150*10/7)*VLOOKUP($K150,#REF!,3,0),"غير مسجل")) -> غير مسجل | X150: =IF($C150="طباعه ",VLOOKUP(K150,#REF!,4,0)*F150,"0") -> 0 | Z150: 0 | AB150: 0 | AC150: =SUMIFS($AB$4:AB150,$K$4:K150,K150) -> 0 | AE150: 0
A151: =IF(I151<>"",MAX($A$3:A150)+1,"") -> 148 | C151: =IFERROR(VLOOKUP($K151,#REF!,5,0),"غير مسجل") -> غير مسجل | G151: غير مسجل | H151: غير مسجل | I151: غير مسجل | J151: غير مسجل | L151: غير مسجل | M151: غير مسجل | P151: 0 | R151: =SUMIFS(التسليمات!$N:$N,التسليمات!$G:$G,B151) -> 0 | U151: =IFERROR(VLOOKUP($K151,#REF!,3,0),"غير مسجل") -> غير مسجل | V151: =IFERROR(VLOOKUP($K151,#REF!,2,0),"غير مسجل") -> غير مسجل | W151: =IF($C151="طباعه ",IF($V151>$P151,$V151*VLOOKUP($K151,#REF!,3,0),$P151*VLOOKUP($K151,#REF!,3,0)),IF($C151="يوفي ",($L151*$M151*$P151*10/7)*VLOOKUP($K151,#REF!,3,0),"غير مسجل")) -> غير مسجل | X151: =IF($C151="طباعه ",VLOOKUP(K151,#REF!,4,0)*F151,"0") -> 0 | Z151: 0 | AB151: 0 | AC151: =SUMIFS($AB$4:AB151,$K$4:K151,K151) -> 0 | AE151: 0
A152: =IF(I152<>"",MAX($A$3:A151)+1,"") -> 149 | C152: =IFERROR(VLOOKUP($K152,#REF!,5,0),"غير مسجل") -> غير مسجل | G152: غير مسجل | H152: غير مسجل | I152: غير مسجل | J152: غير مسجل | L152: غير مسجل | M152: غير مسجل | P152: 0 | R152: =SUMIFS(التسليمات!$N:$N,التسليمات!$G:$G,B152) -> 0 | U152: =IFERROR(VLOOKUP($K152,#REF!,3,0),"غير مسجل") -> غير مسجل | V152: =IFERROR(VLOOKUP($K152,#REF!,2,0),"غير مسجل") -> غير مسجل | W152: =IF($C152="طباعه ",IF($V152>$P152,$V152*VLOOKUP($K152,#REF!,3,0),$P152*VLOOKUP($K152,#REF!,3,0)),IF($C152="يوفي ",($L152*$M152*$P152*10/7)*VLOOKUP($K152,#REF!,3,0),"غير مسجل")) -> غير مسجل | X152: =IF($C152="طباعه ",VLOOKUP(K152,#REF!,4,0)*F152,"0") -> 0 | Z152: 0 | AB152: 0 | AC152: =SUMIFS($AB$4:AB152,$K$4:K152,K152) -> 0 | AE152: 0
A153: =IF(I153<>"",MAX($A$3:A152)+1,"") -> 150 | C153: =IFERROR(VLOOKUP($K153,#REF!,5,0),"غير مسجل") -> غير مسجل | G153: غير مسجل | H153: غير مسجل | I153: غير مسجل | J153: غير مسجل | L153: غير مسجل | M153: غير مسجل | P153: 0 | R153: =SUMIFS(التسليمات!$N:$N,التسليمات!$G:$G,B153) -> 0 | U153: =IFERROR(VLOOKUP($K153,#REF!,3,0),"غير مسجل") -> غير مسجل | V153: =IFERROR(VLOOKUP($K153,#REF!,2,0),"غير مسجل") -> غير مسجل | W153: =IF($C153="طباعه ",IF($V153>$P153,$V153*VLOOKUP($K153,#REF!,3,0),$P153*VLOOKUP($K153,#REF!,3,0)),IF($C153="يوفي ",($L153*$M153*$P153*10/7)*VLOOKUP($K153,#REF!,3,0),"غير مسجل")) -> غير مسجل | X153: =IF($C153="طباعه ",VLOOKUP(K153,#REF!,4,0)*F153,"0") -> 0 | Z153: 0 | AB153: 0 | AC153: =SUMIFS($AB$4:AB153,$K$4:K153,K153) -> 0 | AE153: 0
A154: =IF(I154<>"",MAX($A$3:A153)+1,"") -> 151 | C154: =IFERROR(VLOOKUP($K154,#REF!,5,0),"غير مسجل") -> غير مسجل | G154: غير مسجل | H154: غير مسجل | I154: غير مسجل | J154: غير مسجل | L154: غير مسجل | M154: غير مسجل | P154: 0 | R154: =SUMIFS(التسليمات!$N:$N,التسليمات!$G:$G,B154) -> 0 | U154: =IFERROR(VLOOKUP($K154,#REF!,3,0),"غير مسجل") -> غير مسجل | V154: =IFERROR(VLOOKUP($K154,#REF!,2,0),"غير مسجل") -> غير مسجل | W154: =IF($C154="طباعه ",IF($V154>$P154,$V154*VLOOKUP($K154,#REF!,3,0),$P154*VLOOKUP($K154,#REF!,3,0)),IF($C154="يوفي ",($L154*$M154*$P154*10/7)*VLOOKUP($K154,#REF!,3,0),"غير مسجل")) -> غير مسجل | X154: =IF($C154="طباعه ",VLOOKUP(K154,#REF!,4,0)*F154,"0") -> 0 | Z154: 0 | AB154: 0 | AC154: =SUMIFS($AB$4:AB154,$K$4:K154,K154) -> 0 | AE154: 0
A155: =IF(I155<>"",MAX($A$3:A154)+1,"") -> 152 | C155: =IFERROR(VLOOKUP($K155,#REF!,5,0),"غير مسجل") -> غير مسجل | G155: غير مسجل | H155: غير مسجل | I155: غير مسجل | J155: غير مسجل | L155: غير مسجل | M155: غير مسجل | P155: 0 | R155: =SUMIFS(التسليمات!$N:$N,التسليمات!$G:$G,B155) -> 0 | U155: =IFERROR(VLOOKUP($K155,#REF!,3,0),"غير مسجل") -> غير مسجل | V155: =IFERROR(VLOOKUP($K155,#REF!,2,0),"غير مسجل") -> غير مسجل | W155: =IF($C155="طباعه ",IF($V155>$P155,$V155*VLOOKUP($K155,#REF!,3,0),$P155*VLOOKUP($K155,#REF!,3,0)),IF($C155="يوفي ",($L155*$M155*$P155*10/7)*VLOOKUP($K155,#REF!,3,0),"غير مسجل")) -> غير مسجل | X155: =IF($C155="طباعه ",VLOOKUP(K155,#REF!,4,0)*F155,"0") -> 0 | Z155: 0 | AB155: 0 | AC155: =SUMIFS($AB$4:AB155,$K$4:K155,K155) -> 0 | AE155: 0
A156: =IF(I156<>"",MAX($A$3:A155)+1,"") -> 153 | C156: =IFERROR(VLOOKUP($K156,#REF!,5,0),"غير مسجل") -> غير مسجل | G156: غير مسجل | H156: غير مسجل | I156: غير مسجل | J156: غير مسجل | L156: غير مسجل | M156: غير مسجل | P156: 0 | R156: =SUMIFS(التسليمات!$N:$N,التسليمات!$G:$G,B156) -> 0 | U156: =IFERROR(VLOOKUP($K156,#REF!,3,0),"غير مسجل") -> غير مسجل | V156: =IFERROR(VLOOKUP($K156,#REF!,2,0),"غير مسجل") -> غير مسجل | W156: =IF($C156="طباعه ",IF($V156>$P156,$V156*VLOOKUP($K156,#REF!,3,0),$P156*VLOOKUP($K156,#REF!,3,0)),IF($C156="يوفي ",($L156*$M156*$P156*10/7)*VLOOKUP($K156,#REF!,3,0),"غير مسجل")) -> غير مسجل | X156: =IF($C156="طباعه ",VLOOKUP(K156,#REF!,4,0)*F156,"0") -> 0 | Z156: 0 | AB156: 0 | AC156: =SUMIFS($AB$4:AB156,$K$4:K156,K156) -> 0 | AE156: 0
A157: =IF(I157<>"",MAX($A$3:A156)+1,"") -> 154 | C157: =IFERROR(VLOOKUP($K157,#REF!,5,0),"غير مسجل") -> غير مسجل | G157: غير مسجل | H157: غير مسجل | I157: غير مسجل | J157: غير مسجل | L157: غير مسجل | M157: غير مسجل | P157: 0 | R157: =SUMIFS(التسليمات!$N:$N,التسليمات!$G:$G,B157) -> 0 | U157: =IFERROR(VLOOKUP($K157,#REF!,3,0),"غير مسجل") -> غير مسجل | V157: =IFERROR(VLOOKUP($K157,#REF!,2,0),"غير مسجل") -> غير مسجل | W157: =IF($C157="طباعه ",IF($V157>$P157,$V157*VLOOKUP($K157,#REF!,3,0),$P157*VLOOKUP($K157,#REF!,3,0)),IF($C157="يوفي ",($L157*$M157*$P157*10/7)*VLOOKUP($K157,#REF!,3,0),"غير مسجل")) -> غير مسجل | X157: =IF($C157="طباعه ",VLOOKUP(K157,#REF!,4,0)*F157,"0") -> 0 | Z157: 0 | AB157: 0 | AC157: =SUMIFS($AB$4:AB157,$K$4:K157,K157) -> 0 | AE157: 0
A158: =IF(I158<>"",MAX($A$3:A157)+1,"") -> 155 | C158: =IFERROR(VLOOKUP($K158,#REF!,5,0),"غير مسجل") -> غير مسجل | G158: غير مسجل | H158: غير مسجل | I158: غير مسجل | J158: غير مسجل | L158: غير مسجل | M158: غير مسجل | P158: 0 | R158: =SUMIFS(التسليمات!$N:$N,التسليمات!$G:$G,B158) -> 0 | U158: =IFERROR(VLOOKUP($K158,#REF!,3,0),"غير مسجل") -> غير مسجل | V158: =IFERROR(VLOOKUP($K158,#REF!,2,0),"غير مسجل") -> غير مسجل | W158: =IF($C158="طباعه ",IF($V158>$P158,$V158*VLOOKUP($K158,#REF!,3,0),$P158*VLOOKUP($K158,#REF!,3,0)),IF($C158="يوفي ",($L158*$M158*$P158*10/7)*VLOOKUP($K158,#REF!,3,0),"غير مسجل")) -> غير مسجل | X158: =IF($C158="طباعه ",VLOOKUP(K158,#REF!,4,0)*F158,"0") -> 0 | Z158: 0 | AB158: 0 | AC158: =SUMIFS($AB$4:AB158,$K$4:K158,K158) -> 0 | AE158: 0
A159: =IF(I159<>"",MAX($A$3:A158)+1,"") -> 156 | C159: =IFERROR(VLOOKUP($K159,#REF!,5,0),"غير مسجل") -> غير مسجل | G159: غير مسجل | H159: غير مسجل | I159: غير مسجل | J159: غير مسجل | L159: غير مسجل | M159: غير مسجل | P159: 0 | R159: =SUMIFS(التسليمات!$N:$N,التسليمات!$G:$G,B159) -> 0 | U159: =IFERROR(VLOOKUP($K159,#REF!,3,0),"غير مسجل") -> غير مسجل | V159: =IFERROR(VLOOKUP($K159,#REF!,2,0),"غير مسجل") -> غير مسجل | W159: =IF($C159="طباعه ",IF($V159>$P159,$V159*VLOOKUP($K159,#REF!,3,0),$P159*VLOOKUP($K159,#REF!,3,0)),IF($C159="يوفي ",($L159*$M159*$P159*10/7)*VLOOKUP($K159,#REF!,3,0),"غير مسجل")) -> غير مسجل | X159: =IF($C159="طباعه ",VLOOKUP(K159,#REF!,4,0)*F159,"0") -> 0 | Z159: 0 | AB159: 0 | AC159: =SUMIFS($AB$4:AB159,$K$4:K159,K159) -> 0 | AE159: 0
A160: =IF(I160<>"",MAX($A$3:A159)+1,"") -> 157 | C160: =IFERROR(VLOOKUP($K160,#REF!,5,0),"غير مسجل") -> غير مسجل | G160: غير مسجل | H160: غير مسجل | I160: غير مسجل | J160: غير مسجل | L160: غير مسجل | M160: غير مسجل | P160: 0 | R160: =SUMIFS(التسليمات!$N:$N,التسليمات!$G:$G,B160) -> 0 | U160: =IFERROR(VLOOKUP($K160,#REF!,3,0),"غير مسجل") -> غير مسجل | V160: =IFERROR(VLOOKUP($K160,#REF!,2,0),"غير مسجل") -> غير مسجل | W160: =IF($C160="طباعه ",IF($V160>$P160,$V160*VLOOKUP($K160,#REF!,3,0),$P160*VLOOKUP($K160,#REF!,3,0)),IF($C160="يوفي ",($L160*$M160*$P160*10/7)*VLOOKUP($K160,#REF!,3,0),"غير مسجل")) -> غير مسجل | X160: =IF($C160="طباعه ",VLOOKUP(K160,#REF!,4,0)*F160,"0") -> 0 | Z160: 0 | AB160: 0 | AC160: =SUMIFS($AB$4:AB160,$K$4:K160,K160) -> 0 | AE160: 0
A161: =IF(I161<>"",MAX($A$3:A160)+1,"") -> 158 | C161: =IFERROR(VLOOKUP($K161,#REF!,5,0),"غير مسجل") -> غير مسجل | G161: غير مسجل | H161: غير مسجل | I161: غير مسجل | J161: غير مسجل | L161: غير مسجل | M161: غير مسجل | P161: 0 | R161: =SUMIFS(التسليمات!$N:$N,التسليمات!$G:$G,B161) -> 0 | U161: =IFERROR(VLOOKUP($K161,#REF!,3,0),"غير مسجل") -> غير مسجل | V161: =IFERROR(VLOOKUP($K161,#REF!,2,0),"غير مسجل") -> غير مسجل | W161: =IF($C161="طباعه ",IF($V161>$P161,$V161*VLOOKUP($K161,#REF!,3,0),$P161*VLOOKUP($K161,#REF!,3,0)),IF($C161="يوفي ",($L161*$M161*$P161*10/7)*VLOOKUP($K161,#REF!,3,0),"غير مسجل")) -> غير مسجل | X161: =IF($C161="طباعه ",VLOOKUP(K161,#REF!,4,0)*F161,"0") -> 0 | Z161: 0 | AB161: 0 | AC161: =SUMIFS($AB$4:AB161,$K$4:K161,K161) -> 0 | AE161: 0
A162: =IF(I162<>"",MAX($A$3:A161)+1,"") -> 159 | C162: =IFERROR(VLOOKUP($K162,#REF!,5,0),"غير مسجل") -> غير مسجل | G162: غير مسجل | H162: غير مسجل | I162: غير مسجل | J162: غير مسجل | L162: غير مسجل | M162: غير مسجل | P162: 0 | R162: =SUMIFS(التسليمات!$N:$N,التسليمات!$G:$G,B162) -> 0 | U162: =IFERROR(VLOOKUP($K162,#REF!,3,0),"غير مسجل") -> غير مسجل | V162: =IFERROR(VLOOKUP($K162,#REF!,2,0),"غير مسجل") -> غير مسجل | W162: =IF($C162="طباعه ",IF($V162>$P162,$V162*VLOOKUP($K162,#REF!,3,0),$P162*VLOOKUP($K162,#REF!,3,0)),IF($C162="يوفي ",($L162*$M162*$P162*10/7)*VLOOKUP($K162,#REF!,3,0),"غير مسجل")) -> غير مسجل | X162: =IF($C162="طباعه ",VLOOKUP(K162,#REF!,4,0)*F162,"0") -> 0 | Z162: 0 | AB162: 0 | AC162: =SUMIFS($AB$4:AB162,$K$4:K162,K162) -> 0 | AE162: 0
A163: =IF(I163<>"",MAX($A$3:A162)+1,"") -> 160 | C163: =IFERROR(VLOOKUP($K163,#REF!,5,0),"غير مسجل") -> غير مسجل | G163: غير مسجل | H163: غير مسجل | I163: غير مسجل | J163: غير مسجل | L163: غير مسجل | M163: غير مسجل | P163: 0 | R163: =SUMIFS(التسليمات!$N:$N,التسليمات!$G:$G,B163) -> 0 | U163: =IFERROR(VLOOKUP($K163,#REF!,3,0),"غير مسجل") -> غير مسجل | V163: =IFERROR(VLOOKUP($K163,#REF!,2,0),"غير مسجل") -> غير مسجل | W163: =IF($C163="طباعه ",IF($V163>$P163,$V163*VLOOKUP($K163,#REF!,3,0),$P163*VLOOKUP($K163,#REF!,3,0)),IF($C163="يوفي ",($L163*$M163*$P163*10/7)*VLOOKUP($K163,#REF!,3,0),"غير مسجل")) -> غير مسجل | X163: =IF($C163="طباعه ",VLOOKUP(K163,#REF!,4,0)*F163,"0") -> 0 | Z163: 0 | AB163: 0 | AC163: =SUMIFS($AB$4:AB163,$K$4:K163,K163) -> 0 | AE163: 0
A164: =IF(I164<>"",MAX($A$3:A163)+1,"") -> 161 | C164: =IFERROR(VLOOKUP($K164,#REF!,5,0),"غير مسجل") -> غير مسجل | G164: غير مسجل | H164: غير مسجل | I164: غير مسجل | J164: غير مسجل | L164: غير مسجل | M164: غير مسجل | P164: 0 | R164: =SUMIFS(التسليمات!$N:$N,التسليمات!$G:$G,B164) -> 0 | U164: =IFERROR(VLOOKUP($K164,#REF!,3,0),"غير مسجل") -> غير مسجل | V164: =IFERROR(VLOOKUP($K164,#REF!,2,0),"غير مسجل") -> غير مسجل | W164: =IF($C164="طباعه ",IF($V164>$P164,$V164*VLOOKUP($K164,#REF!,3,0),$P164*VLOOKUP($K164,#REF!,3,0)),IF($C164="يوفي ",($L164*$M164*$P164*10/7)*VLOOKUP($K164,#REF!,3,0),"غير مسجل")) -> غير مسجل | X164: =IF($C164="طباعه ",VLOOKUP(K164,#REF!,4,0)*F164,"0") -> 0 | Z164: 0 | AB164: 0 | AC164: =SUMIFS($AB$4:AB164,$K$4:K164,K164) -> 0 | AE164: 0
A165: =IF(I165<>"",MAX($A$3:A164)+1,"") -> 162 | C165: =IFERROR(VLOOKUP($K165,#REF!,5,0),"غير مسجل") -> غير مسجل | G165: غير مسجل | H165: غير مسجل | I165: غير مسجل | J165: غير مسجل | L165: غير مسجل | M165: غير مسجل | P165: 0 | R165: =SUMIFS(التسليمات!$N:$N,التسليمات!$G:$G,B165) -> 0 | U165: =IFERROR(VLOOKUP($K165,#REF!,3,0),"غير مسجل") -> غير مسجل | V165: =IFERROR(VLOOKUP($K165,#REF!,2,0),"غير مسجل") -> غير مسجل | W165: =IF($C165="طباعه ",IF($V165>$P165,$V165*VLOOKUP($K165,#REF!,3,0),$P165*VLOOKUP($K165,#REF!,3,0)),IF($C165="يوفي ",($L165*$M165*$P165*10/7)*VLOOKUP($K165,#REF!,3,0),"غير مسجل")) -> غير مسجل | X165: =IF($C165="طباعه ",VLOOKUP(K165,#REF!,4,0)*F165,"0") -> 0 | Z165: 0 | AB165: 0 | AC165: =SUMIFS($AB$4:AB165,$K$4:K165,K165) -> 0 | AE165: 0
A166: =IF(I166<>"",MAX($A$3:A165)+1,"") -> 163 | C166: =IFERROR(VLOOKUP($K166,#REF!,5,0),"غير مسجل") -> غير مسجل | G166: غير مسجل | H166: غير مسجل | I166: غير مسجل | J166: غير مسجل | L166: غير مسجل | M166: غير مسجل | P166: 0 | R166: =SUMIFS(التسليمات!$N:$N,التسليمات!$G:$G,B166) -> 0 | U166: =IFERROR(VLOOKUP($K166,#REF!,3,0),"غير مسجل") -> غير مسجل | V166: =IFERROR(VLOOKUP($K166,#REF!,2,0),"غير مسجل") -> غير مسجل | W166: =IF($C166="طباعه ",IF($V166>$P166,$V166*VLOOKUP($K166,#REF!,3,0),$P166*VLOOKUP($K166,#REF!,3,0)),IF($C166="يوفي ",($L166*$M166*$P166*10/7)*VLOOKUP($K166,#REF!,3,0),"غير مسجل")) -> غير مسجل | X166: =IF($C166="طباعه ",VLOOKUP(K166,#REF!,4,0)*F166,"0") -> 0 | Z166: 0 | AB166: 0 | AC166: =SUMIFS($AB$4:AB166,$K$4:K166,K166) -> 0 | AE166: 0
A167: =IF(I167<>"",MAX($A$3:A166)+1,"") -> 164 | C167: =IFERROR(VLOOKUP($K167,#REF!,5,0),"غير مسجل") -> غير مسجل | G167: غير مسجل | H167: غير مسجل | I167: غير مسجل | J167: غير مسجل | L167: غير مسجل | M167: غير مسجل | P167: 0 | R167: =SUMIFS(التسليمات!$N:$N,التسليمات!$G:$G,B167) -> 0 | U167: =IFERROR(VLOOKUP($K167,#REF!,3,0),"غير مسجل") -> غير مسجل | V167: =IFERROR(VLOOKUP($K167,#REF!,2,0),"غير مسجل") -> غير مسجل | W167: =IF($C167="طباعه ",IF($V167>$P167,$V167*VLOOKUP($K167,#REF!,3,0),$P167*VLOOKUP($K167,#REF!,3,0)),IF($C167="يوفي ",($L167*$M167*$P167*10/7)*VLOOKUP($K167,#REF!,3,0),"غير مسجل")) -> غير مسجل | X167: =IF($C167="طباعه ",VLOOKUP(K167,#REF!,4,0)*F167,"0") -> 0 | Z167: 0 | AB167: 0 | AC167: =SUMIFS($AB$4:AB167,$K$4:K167,K167) -> 0 | AE167: 0
A168: =IF(I168<>"",MAX($A$3:A167)+1,"") -> 165 | C168: =IFERROR(VLOOKUP($K168,#REF!,5,0),"غير مسجل") -> غير مسجل | G168: غير مسجل | H168: غير مسجل | I168: غير مسجل | J168: غير مسجل | L168: غير مسجل | M168: غير مسجل | P168: 0 | R168: =SUMIFS(التسليمات!$N:$N,التسليمات!$G:$G,B168) -> 0 | U168: =IFERROR(VLOOKUP($K168,#REF!,3,0),"غير مسجل") -> غير مسجل | V168: =IFERROR(VLOOKUP($K168,#REF!,2,0),"غير مسجل") -> غير مسجل | W168: =IF($C168="طباعه ",IF($V168>$P168,$V168*VLOOKUP($K168,#REF!,3,0),$P168*VLOOKUP($K168,#REF!,3,0)),IF($C168="يوفي ",($L168*$M168*$P168*10/7)*VLOOKUP($K168,#REF!,3,0),"غير مسجل")) -> غير مسجل | X168: =IF($C168="طباعه ",VLOOKUP(K168,#REF!,4,0)*F168,"0") -> 0 | Z168: 0 | AB168: 0 | AC168: =SUMIFS($AB$4:AB168,$K$4:K168,K168) -> 0 | AE168: 0
A169: =IF(I169<>"",MAX($A$3:A168)+1,"") -> 166 | C169: =IFERROR(VLOOKUP($K169,#REF!,5,0),"غير مسجل") -> غير مسجل | G169: غير مسجل | H169: غير مسجل | I169: غير مسجل | J169: غير مسجل | L169: غير مسجل | M169: غير مسجل | P169: 0 | R169: =SUMIFS(التسليمات!$N:$N,التسليمات!$G:$G,B169) -> 0 | U169: =IFERROR(VLOOKUP($K169,#REF!,3,0),"غير مسجل") -> غير مسجل | V169: =IFERROR(VLOOKUP($K169,#REF!,2,0),"غير مسجل") -> غير مسجل | W169: =IF($C169="طباعه ",IF($V169>$P169,$V169*VLOOKUP($K169,#REF!,3,0),$P169*VLOOKUP($K169,#REF!,3,0)),IF($C169="يوفي ",($L169*$M169*$P169*10/7)*VLOOKUP($K169,#REF!,3,0),"غير مسجل")) -> غير مسجل | X169: =IF($C169="طباعه ",VLOOKUP(K169,#REF!,4,0)*F169,"0") -> 0 | Z169: 0 | AB169: 0 | AC169: =SUMIFS($AB$4:AB169,$K$4:K169,K169) -> 0 | AE169: 0
A170: =IF(I170<>"",MAX($A$3:A169)+1,"") -> 167 | C170: =IFERROR(VLOOKUP($K170,#REF!,5,0),"غير مسجل") -> غير مسجل | G170: غير مسجل | H170: غير مسجل | I170: غير مسجل | J170: غير مسجل | L170: غير مسجل | M170: غير مسجل | P170: 0 | R170: =SUMIFS(التسليمات!$N:$N,التسليمات!$G:$G,B170) -> 0 | U170: =IFERROR(VLOOKUP($K170,#REF!,3,0),"غير مسجل") -> غير مسجل | V170: =IFERROR(VLOOKUP($K170,#REF!,2,0),"غير مسجل") -> غير مسجل | W170: =IF($C170="طباعه ",IF($V170>$P170,$V170*VLOOKUP($K170,#REF!,3,0),$P170*VLOOKUP($K170,#REF!,3,0)),IF($C170="يوفي ",($L170*$M170*$P170*10/7)*VLOOKUP($K170,#REF!,3,0),"غير مسجل")) -> غير مسجل | X170: =IF($C170="طباعه ",VLOOKUP(K170,#REF!,4,0)*F170,"0") -> 0 | Z170: 0 | AB170: 0 | AC170: =SUMIFS($AB$4:AB170,$K$4:K170,K170) -> 0 | AE170: 0
A171: =IF(I171<>"",MAX($A$3:A170)+1,"") -> 168 | C171: =IFERROR(VLOOKUP($K171,#REF!,5,0),"غير مسجل") -> غير مسجل | G171: غير مسجل | H171: غير مسجل | I171: غير مسجل | J171: غير مسجل | L171: غير مسجل | M171: غير مسجل | P171: 0 | R171: =SUMIFS(التسليمات!$N:$N,التسليمات!$G:$G,B171) -> 0 | U171: =IFERROR(VLOOKUP($K171,#REF!,3,0),"غير مسجل") -> غير مسجل | V171: =IFERROR(VLOOKUP($K171,#REF!,2,0),"غير مسجل") -> غير مسجل | W171: =IF($C171="طباعه ",IF($V171>$P171,$V171*VLOOKUP($K171,#REF!,3,0),$P171*VLOOKUP($K171,#REF!,3,0)),IF($C171="يوفي ",($L171*$M171*$P171*10/7)*VLOOKUP($K171,#REF!,3,0),"غير مسجل")) -> غير مسجل | X171: =IF($C171="طباعه ",VLOOKUP(K171,#REF!,4,0)*F171,"0") -> 0 | Z171: 0 | AB171: 0 | AC171: =SUMIFS($AB$4:AB171,$K$4:K171,K171) -> 0 | AE171: 0
A172: =IF(I172<>"",MAX($A$3:A171)+1,"") -> 169 | C172: =IFERROR(VLOOKUP($K172,#REF!,5,0),"غير مسجل") -> غير مسجل | G172: غير مسجل | H172: غير مسجل | I172: غير مسجل | J172: غير مسجل | L172: غير مسجل | M172: غير مسجل | P172: 0 | R172: =SUMIFS(التسليمات!$N:$N,التسليمات!$G:$G,B172) -> 0 | U172: =IFERROR(VLOOKUP($K172,#REF!,3,0),"غير مسجل") -> غير مسجل | V172: =IFERROR(VLOOKUP($K172,#REF!,2,0),"غير مسجل") -> غير مسجل | W172: =IF($C172="طباعه ",IF($V172>$P172,$V172*VLOOKUP($K172,#REF!,3,0),$P172*VLOOKUP($K172,#REF!,3,0)),IF($C172="يوفي ",($L172*$M172*$P172*10/7)*VLOOKUP($K172,#REF!,3,0),"غير مسجل")) -> غير مسجل | X172: =IF($C172="طباعه ",VLOOKUP(K172,#REF!,4,0)*F172,"0") -> 0 | Z172: 0 | AB172: 0 | AC172: =SUMIFS($AB$4:AB172,$K$4:K172,K172) -> 0 | AE172: 0
A173: =IF(I173<>"",MAX($A$3:A172)+1,"") -> 170 | C173: =IFERROR(VLOOKUP($K173,#REF!,5,0),"غير مسجل") -> غير مسجل | G173: غير مسجل | H173: غير مسجل | I173: غير مسجل | J173: غير مسجل | L173: غير مسجل | M173: غير مسجل | P173: 0 | R173: =SUMIFS(التسليمات!$N:$N,التسليمات!$G:$G,B173) -> 0 | U173: =IFERROR(VLOOKUP($K173,#REF!,3,0),"غير مسجل") -> غير مسجل | V173: =IFERROR(VLOOKUP($K173,#REF!,2,0),"غير مسجل") -> غير مسجل | W173: =IF($C173="طباعه ",IF($V173>$P173,$V173*VLOOKUP($K173,#REF!,3,0),$P173*VLOOKUP($K173,#REF!,3,0)),IF($C173="يوفي ",($L173*$M173*$P173*10/7)*VLOOKUP($K173,#REF!,3,0),"غير مسجل")) -> غير مسجل | X173: =IF($C173="طباعه ",VLOOKUP(K173,#REF!,4,0)*F173,"0") -> 0 | Z173: 0 | AB173: 0 | AC173: =SUMIFS($AB$4:AB173,$K$4:K173,K173) -> 0 | AE173: 0
A174: =IF(I174<>"",MAX($A$3:A173)+1,"") -> 171 | C174: =IFERROR(VLOOKUP($K174,#REF!,5,0),"غير مسجل") -> غير مسجل | G174: غير مسجل | H174: غير مسجل | I174: غير مسجل | J174: غير مسجل | L174: غير مسجل | M174: غير مسجل | P174: 0 | R174: =SUMIFS(التسليمات!$N:$N,التسليمات!$G:$G,B174) -> 0 | U174: =IFERROR(VLOOKUP($K174,#REF!,3,0),"غير مسجل") -> غير مسجل | V174: =IFERROR(VLOOKUP($K174,#REF!,2,0),"غير مسجل") -> غير مسجل | W174: =IF($C174="طباعه ",IF($V174>$P174,$V174*VLOOKUP($K174,#REF!,3,0),$P174*VLOOKUP($K174,#REF!,3,0)),IF($C174="يوفي ",($L174*$M174*$P174*10/7)*VLOOKUP($K174,#REF!,3,0),"غير مسجل")) -> غير مسجل | X174: =IF($C174="طباعه ",VLOOKUP(K174,#REF!,4,0)*F174,"0") -> 0 | Z174: 0 | AB174: 0 | AC174: =SUMIFS($AB$4:AB174,$K$4:K174,K174) -> 0 | AE174: 0
A175: =IF(I175<>"",MAX($A$3:A174)+1,"") -> 172 | C175: =IFERROR(VLOOKUP($K175,#REF!,5,0),"غير مسجل") -> غير مسجل | G175: غير مسجل | H175: غير مسجل | I175: غير مسجل | J175: غير مسجل | L175: غير مسجل | M175: غير مسجل | P175: 0 | R175: =SUMIFS(التسليمات!$N:$N,التسليمات!$G:$G,B175) -> 0 | U175: =IFERROR(VLOOKUP($K175,#REF!,3,0),"غير مسجل") -> غير مسجل | V175: =IFERROR(VLOOKUP($K175,#REF!,2,0),"غير مسجل") -> غير مسجل | W175: =IF($C175="طباعه ",IF($V175>$P175,$V175*VLOOKUP($K175,#REF!,3,0),$P175*VLOOKUP($K175,#REF!,3,0)),IF($C175="يوفي ",($L175*$M175*$P175*10/7)*VLOOKUP($K175,#REF!,3,0),"غير مسجل")) -> غير مسجل | X175: =IF($C175="طباعه ",VLOOKUP(K175,#REF!,4,0)*F175,"0") -> 0 | Z175: 0 | AB175: 0 | AC175: =SUMIFS($AB$4:AB175,$K$4:K175,K175) -> 0 | AE175: 0
A176: =IF(I176<>"",MAX($A$3:A175)+1,"") -> 173 | C176: =IFERROR(VLOOKUP($K176,#REF!,5,0),"غير مسجل") -> غير مسجل | G176: غير مسجل | H176: غير مسجل | I176: غير مسجل | J176: غير مسجل | L176: غير مسجل | M176: غير مسجل | P176: 0 | R176: =SUMIFS(التسليمات!$N:$N,التسليمات!$G:$G,B176) -> 0 | U176: =IFERROR(VLOOKUP($K176,#REF!,3,0),"غير مسجل") -> غير مسجل | V176: =IFERROR(VLOOKUP($K176,#REF!,2,0),"غير مسجل") -> غير مسجل | W176: =IF($C176="طباعه ",IF($V176>$P176,$V176*VLOOKUP($K176,#REF!,3,0),$P176*VLOOKUP($K176,#REF!,3,0)),IF($C176="يوفي ",($L176*$M176*$P176*10/7)*VLOOKUP($K176,#REF!,3,0),"غير مسجل")) -> غير مسجل | X176: =IF($C176="طباعه ",VLOOKUP(K176,#REF!,4,0)*F176,"0") -> 0 | Z176: 0 | AB176: 0 | AC176: =SUMIFS($AB$4:AB176,$K$4:K176,K176) -> 0 | AE176: 0
A177: =IF(I177<>"",MAX($A$3:A176)+1,"") -> 174 | C177: =IFERROR(VLOOKUP($K177,#REF!,5,0),"غير مسجل") -> غير مسجل | G177: غير مسجل | H177: غير مسجل | I177: غير مسجل | J177: غير مسجل | L177: غير مسجل | M177: غير مسجل | P177: 0 | R177: =SUMIFS(التسليمات!$N:$N,التسليمات!$G:$G,B177) -> 0 | U177: =IFERROR(VLOOKUP($K177,#REF!,3,0),"غير مسجل") -> غير مسجل | V177: =IFERROR(VLOOKUP($K177,#REF!,2,0),"غير مسجل") -> غير مسجل | W177: =IF($C177="طباعه ",IF($V177>$P177,$V177*VLOOKUP($K177,#REF!,3,0),$P177*VLOOKUP($K177,#REF!,3,0)),IF($C177="يوفي ",($L177*$M177*$P177*10/7)*VLOOKUP($K177,#REF!,3,0),"غير مسجل")) -> غير مسجل | X177: =IF($C177="طباعه ",VLOOKUP(K177,#REF!,4,0)*F177,"0") -> 0 | Z177: 0 | AB177: 0 | AC177: =SUMIFS($AB$4:AB177,$K$4:K177,K177) -> 0 | AE177: 0
A178: =IF(I178<>"",MAX($A$3:A177)+1,"") -> 175 | C178: =IFERROR(VLOOKUP($K178,#REF!,5,0),"غير مسجل") -> غير مسجل | G178: غير مسجل | H178: غير مسجل | I178: غير مسجل | J178: غير مسجل | L178: غير مسجل | M178: غير مسجل | P178: 0 | R178: =SUMIFS(التسليمات!$N:$N,التسليمات!$G:$G,B178) -> 0 | U178: =IFERROR(VLOOKUP($K178,#REF!,3,0),"غير مسجل") -> غير مسجل | V178: =IFERROR(VLOOKUP($K178,#REF!,2,0),"غير مسجل") -> غير مسجل | W178: =IF($C178="طباعه ",IF($V178>$P178,$V178*VLOOKUP($K178,#REF!,3,0),$P178*VLOOKUP($K178,#REF!,3,0)),IF($C178="يوفي ",($L178*$M178*$P178*10/7)*VLOOKUP($K178,#REF!,3,0),"غير مسجل")) -> غير مسجل | X178: =IF($C178="طباعه ",VLOOKUP(K178,#REF!,4,0)*F178,"0") -> 0 | Z178: 0 | AB178: 0 | AC178: =SUMIFS($AB$4:AB178,$K$4:K178,K178) -> 0 | AE178: 0
A179: =IF(I179<>"",MAX($A$3:A178)+1,"") -> 176 | C179: =IFERROR(VLOOKUP($K179,#REF!,5,0),"غير مسجل") -> غير مسجل | G179: غير مسجل | H179: غير مسجل | I179: غير مسجل | J179: غير مسجل | L179: غير مسجل | M179: غير مسجل | P179: 0 | R179: =SUMIFS(التسليمات!$N:$N,التسليمات!$G:$G,B179) -> 0 | U179: =IFERROR(VLOOKUP($K179,#REF!,3,0),"غير مسجل") -> غير مسجل | V179: =IFERROR(VLOOKUP($K179,#REF!,2,0),"غير مسجل") -> غير مسجل | W179: =IF($C179="طباعه ",IF($V179>$P179,$V179*VLOOKUP($K179,#REF!,3,0),$P179*VLOOKUP($K179,#REF!,3,0)),IF($C179="يوفي ",($L179*$M179*$P179*10/7)*VLOOKUP($K179,#REF!,3,0),"غير مسجل")) -> غير مسجل | X179: =IF($C179="طباعه ",VLOOKUP(K179,#REF!,4,0)*F179,"0") -> 0 | Z179: 0 | AB179: 0 | AC179: =SUMIFS($AB$4:AB179,$K$4:K179,K179) -> 0 | AE179: 0
A180: =IF(I180<>"",MAX($A$3:A179)+1,"") -> 177 | C180: =IFERROR(VLOOKUP($K180,#REF!,5,0),"غير مسجل") -> غير مسجل | G180: غير مسجل | H180: غير مسجل | I180: غير مسجل | J180: غير مسجل | L180: غير مسجل | M180: غير مسجل | P180: 0 | R180: =SUMIFS(التسليمات!$N:$N,التسليمات!$G:$G,B180) -> 0 | U180: =IFERROR(VLOOKUP($K180,#REF!,3,0),"غير مسجل") -> غير مسجل | V180: =IFERROR(VLOOKUP($K180,#REF!,2,0),"غير مسجل") -> غير مسجل | W180: =IF($C180="طباعه ",IF($V180>$P180,$V180*VLOOKUP($K180,#REF!,3,0),$P180*VLOOKUP($K180,#REF!,3,0)),IF($C180="يوفي ",($L180*$M180*$P180*10/7)*VLOOKUP($K180,#REF!,3,0),"غير مسجل")) -> غير مسجل | X180: =IF($C180="طباعه ",VLOOKUP(K180,#REF!,4,0)*F180,"0") -> 0 | Z180: 0 | AB180: 0 | AC180: =SUMIFS($AB$4:AB180,$K$4:K180,K180) -> 0 | AE180: 0
A181: =IF(I181<>"",MAX($A$3:A180)+1,"") -> 178 | C181: =IFERROR(VLOOKUP($K181,#REF!,5,0),"غير مسجل") -> غير مسجل | G181: غير مسجل | H181: غير مسجل | I181: غير مسجل | J181: غير مسجل | L181: غير مسجل | M181: غير مسجل | P181: 0 | R181: =SUMIFS(التسليمات!$N:$N,التسليمات!$G:$G,B181) -> 0 | U181: =IFERROR(VLOOKUP($K181,#REF!,3,0),"غير مسجل") -> غير مسجل | V181: =IFERROR(VLOOKUP($K181,#REF!,2,0),"غير مسجل") -> غير مسجل | W181: =IF($C181="طباعه ",IF($V181>$P181,$V181*VLOOKUP($K181,#REF!,3,0),$P181*VLOOKUP($K181,#REF!,3,0)),IF($C181="يوفي ",($L181*$M181*$P181*10/7)*VLOOKUP($K181,#REF!,3,0),"غير مسجل")) -> غير مسجل | X181: =IF($C181="طباعه ",VLOOKUP(K181,#REF!,4,0)*F181,"0") -> 0 | Z181: 0 | AB181: 0 | AC181: =SUMIFS($AB$4:AB181,$K$4:K181,K181) -> 0 | AE181: 0
A182: =IF(I182<>"",MAX($A$3:A181)+1,"") -> 179 | C182: =IFERROR(VLOOKUP($K182,#REF!,5,0),"غير مسجل") -> غير مسجل | G182: غير مسجل | H182: غير مسجل | I182: غير مسجل | J182: غير مسجل | L182: غير مسجل | M182: غير مسجل | P182: 0 | R182: =SUMIFS(التسليمات!$N:$N,التسليمات!$G:$G,B182) -> 0 | U182: =IFERROR(VLOOKUP($K182,#REF!,3,0),"غير مسجل") -> غير مسجل | V182: =IFERROR(VLOOKUP($K182,#REF!,2,0),"غير مسجل") -> غير مسجل | W182: =IF($C182="طباعه ",IF($V182>$P182,$V182*VLOOKUP($K182,#REF!,3,0),$P182*VLOOKUP($K182,#REF!,3,0)),IF($C182="يوفي ",($L182*$M182*$P182*10/7)*VLOOKUP($K182,#REF!,3,0),"غير مسجل")) -> غير مسجل | X182: =IF($C182="طباعه ",VLOOKUP(K182,#REF!,4,0)*F182,"0") -> 0 | Z182: 0 | AB182: 0 | AC182: =SUMIFS($AB$4:AB182,$K$4:K182,K182) -> 0 | AE182: 0
A183: =IF(I183<>"",MAX($A$3:A182)+1,"") -> 180 | C183: =IFERROR(VLOOKUP($K183,#REF!,5,0),"غير مسجل") -> غير مسجل | G183: غير مسجل | H183: غير مسجل | I183: غير مسجل | J183: غير مسجل | L183: غير مسجل | M183: غير مسجل | P183: 0 | R183: =SUMIFS(التسليمات!$N:$N,التسليمات!$G:$G,B183) -> 0 | U183: =IFERROR(VLOOKUP($K183,#REF!,3,0),"غير مسجل") -> غير مسجل | V183: =IFERROR(VLOOKUP($K183,#REF!,2,0),"غير مسجل") -> غير مسجل | W183: =IF($C183="طباعه ",IF($V183>$P183,$V183*VLOOKUP($K183,#REF!,3,0),$P183*VLOOKUP($K183,#REF!,3,0)),IF($C183="يوفي ",($L183*$M183*$P183*10/7)*VLOOKUP($K183,#REF!,3,0),"غير مسجل")) -> غير مسجل | X183: =IF($C183="طباعه ",VLOOKUP(K183,#REF!,4,0)*F183,"0") -> 0 | Z183: 0 | AB183: 0 | AC183: =SUMIFS($AB$4:AB183,$K$4:K183,K183) -> 0 | AE183: 0
A184: =IF(I184<>"",MAX($A$3:A183)+1,"") -> 181 | C184: =IFERROR(VLOOKUP($K184,#REF!,5,0),"غير مسجل") -> غير مسجل | G184: غير مسجل | H184: غير مسجل | I184: غير مسجل | J184: غير مسجل | L184: غير مسجل | M184: غير مسجل | P184: 0 | R184: =SUMIFS(التسليمات!$N:$N,التسليمات!$G:$G,B184) -> 0 | U184: =IFERROR(VLOOKUP($K184,#REF!,3,0),"غير مسجل") -> غير مسجل | V184: =IFERROR(VLOOKUP($K184,#REF!,2,0),"غير مسجل") -> غير مسجل | W184: =IF($C184="طباعه ",IF($V184>$P184,$V184*VLOOKUP($K184,#REF!,3,0),$P184*VLOOKUP($K184,#REF!,3,0)),IF($C184="يوفي ",($L184*$M184*$P184*10/7)*VLOOKUP($K184,#REF!,3,0),"غير مسجل")) -> غير مسجل | X184: =IF($C184="طباعه ",VLOOKUP(K184,#REF!,4,0)*F184,"0") -> 0 | Z184: 0 | AB184: 0 | AC184: =SUMIFS($AB$4:AB184,$K$4:K184,K184) -> 0 | AE184: 0
A185: =IF(I185<>"",MAX($A$3:A184)+1,"") -> 182 | C185: =IFERROR(VLOOKUP($K185,#REF!,5,0),"غير مسجل") -> غير مسجل | G185: غير مسجل | H185: غير مسجل | I185: غير مسجل | J185: غير مسجل | L185: غير مسجل | M185: غير مسجل | P185: 0 | R185: =SUMIFS(التسليمات!$N:$N,التسليمات!$G:$G,B185) -> 0 | U185: =IFERROR(VLOOKUP($K185,#REF!,3,0),"غير مسجل") -> غير مسجل | V185: =IFERROR(VLOOKUP($K185,#REF!,2,0),"غير مسجل") -> غير مسجل | W185: =IF($C185="طباعه ",IF($V185>$P185,$V185*VLOOKUP($K185,#REF!,3,0),$P185*VLOOKUP($K185,#REF!,3,0)),IF($C185="يوفي ",($L185*$M185*$P185*10/7)*VLOOKUP($K185,#REF!,3,0),"غير مسجل")) -> غير مسجل | X185: =IF($C185="طباعه ",VLOOKUP(K185,#REF!,4,0)*F185,"0") -> 0 | Z185: 0 | AB185: 0 | AC185: =SUMIFS($AB$4:AB185,$K$4:K185,K185) -> 0 | AE185: 0
A186: =IF(I186<>"",MAX($A$3:A185)+1,"") -> 183 | C186: =IFERROR(VLOOKUP($K186,#REF!,5,0),"غير مسجل") -> غير مسجل | G186: غير مسجل | H186: غير مسجل | I186: غير مسجل | J186: غير مسجل | L186: غير مسجل | M186: غير مسجل | P186: 0 | R186: =SUMIFS(التسليمات!$N:$N,التسليمات!$G:$G,B186) -> 0 | U186: =IFERROR(VLOOKUP($K186,#REF!,3,0),"غير مسجل") -> غير مسجل | V186: =IFERROR(VLOOKUP($K186,#REF!,2,0),"غير مسجل") -> غير مسجل | W186: =IF($C186="طباعه ",IF($V186>$P186,$V186*VLOOKUP($K186,#REF!,3,0),$P186*VLOOKUP($K186,#REF!,3,0)),IF($C186="يوفي ",($L186*$M186*$P186*10/7)*VLOOKUP($K186,#REF!,3,0),"غير مسجل")) -> غير مسجل | X186: =IF($C186="طباعه ",VLOOKUP(K186,#REF!,4,0)*F186,"0") -> 0 | Z186: 0 | AB186: 0 | AC186: =SUMIFS($AB$4:AB186,$K$4:K186,K186) -> 0 | AE186: 0
A187: =IF(I187<>"",MAX($A$3:A186)+1,"") -> 184 | C187: =IFERROR(VLOOKUP($K187,#REF!,5,0),"غير مسجل") -> غير مسجل | G187: غير مسجل | H187: غير مسجل | I187: غير مسجل | J187: غير مسجل | L187: غير مسجل | M187: غير مسجل | P187: 0 | R187: =SUMIFS(التسليمات!$N:$N,التسليمات!$G:$G,B187) -> 0 | U187: =IFERROR(VLOOKUP($K187,#REF!,3,0),"غير مسجل") -> غير مسجل | V187: =IFERROR(VLOOKUP($K187,#REF!,2,0),"غير مسجل") -> غير مسجل | W187: =IF($C187="طباعه ",IF($V187>$P187,$V187*VLOOKUP($K187,#REF!,3,0),$P187*VLOOKUP($K187,#REF!,3,0)),IF($C187="يوفي ",($L187*$M187*$P187*10/7)*VLOOKUP($K187,#REF!,3,0),"غير مسجل")) -> غير مسجل | X187: =IF($C187="طباعه ",VLOOKUP(K187,#REF!,4,0)*F187,"0") -> 0 | Z187: 0 | AB187: 0 | AC187: =SUMIFS($AB$4:AB187,$K$4:K187,K187) -> 0 | AE187: 0
A188: =IF(I188<>"",MAX($A$3:A187)+1,"") -> 185 | C188: =IFERROR(VLOOKUP($K188,#REF!,5,0),"غير مسجل") -> غير مسجل | G188: غير مسجل | H188: غير مسجل | I188: غير مسجل | J188: غير مسجل | L188: غير مسجل | M188: غير مسجل | P188: 0 | R188: =SUMIFS(التسليمات!$N:$N,التسليمات!$G:$G,B188) -> 0 | U188: =IFERROR(VLOOKUP($K188,#REF!,3,0),"غير مسجل") -> غير مسجل | V188: =IFERROR(VLOOKUP($K188,#REF!,2,0),"غير مسجل") -> غير مسجل | W188: =IF($C188="طباعه ",IF($V188>$P188,$V188*VLOOKUP($K188,#REF!,3,0),$P188*VLOOKUP($K188,#REF!,3,0)),IF($C188="يوفي ",($L188*$M188*$P188*10/7)*VLOOKUP($K188,#REF!,3,0),"غير مسجل")) -> غير مسجل | X188: =IF($C188="طباعه ",VLOOKUP(K188,#REF!,4,0)*F188,"0") -> 0 | Z188: 0 | AB188: 0 | AC188: =SUMIFS($AB$4:AB188,$K$4:K188,K188) -> 0 | AE188: 0
A189: =IF(I189<>"",MAX($A$3:A188)+1,"") -> 186 | C189: =IFERROR(VLOOKUP($K189,#REF!,5,0),"غير مسجل") -> غير مسجل | G189: غير مسجل | H189: غير مسجل | I189: غير مسجل | J189: غير مسجل | L189: غير مسجل | M189: غير مسجل | P189: 0 | R189: =SUMIFS(التسليمات!$N:$N,التسليمات!$G:$G,B189) -> 0 | U189: =IFERROR(VLOOKUP($K189,#REF!,3,0),"غير مسجل") -> غير مسجل | V189: =IFERROR(VLOOKUP($K189,#REF!,2,0),"غير مسجل") -> غير مسجل | W189: =IF($C189="طباعه ",IF($V189>$P189,$V189*VLOOKUP($K189,#REF!,3,0),$P189*VLOOKUP($K189,#REF!,3,0)),IF($C189="يوفي ",($L189*$M189*$P189*10/7)*VLOOKUP($K189,#REF!,3,0),"غير مسجل")) -> غير مسجل | X189: =IF($C189="طباعه ",VLOOKUP(K189,#REF!,4,0)*F189,"0") -> 0 | Z189: 0 | AB189: 0 | AC189: =SUMIFS($AB$4:AB189,$K$4:K189,K189) -> 0 | AE189: 0
A190: =IF(I190<>"",MAX($A$3:A189)+1,"") -> 187 | C190: =IFERROR(VLOOKUP($K190,#REF!,5,0),"غير مسجل") -> غير مسجل | G190: غير مسجل | H190: غير مسجل | I190: غير مسجل | J190: غير مسجل | L190: غير مسجل | M190: غير مسجل | P190: 0 | R190: =SUMIFS(التسليمات!$N:$N,التسليمات!$G:$G,B190) -> 0 | U190: =IFERROR(VLOOKUP($K190,#REF!,3,0),"غير مسجل") -> غير مسجل | V190: =IFERROR(VLOOKUP($K190,#REF!,2,0),"غير مسجل") -> غير مسجل | W190: =IF($C190="طباعه ",IF($V190>$P190,$V190*VLOOKUP($K190,#REF!,3,0),$P190*VLOOKUP($K190,#REF!,3,0)),IF($C190="يوفي ",($L190*$M190*$P190*10/7)*VLOOKUP($K190,#REF!,3,0),"غير مسجل")) -> غير مسجل | X190: =IF($C190="طباعه ",VLOOKUP(K190,#REF!,4,0)*F190,"0") -> 0 | Z190: 0 | AB190: 0 | AC190: =SUMIFS($AB$4:AB190,$K$4:K190,K190) -> 0 | AE190: 0
A191: =IF(I191<>"",MAX($A$3:A190)+1,"") -> 188 | C191: =IFERROR(VLOOKUP($K191,#REF!,5,0),"غير مسجل") -> غير مسجل | G191: غير مسجل | H191: غير مسجل | I191: غير مسجل | J191: غير مسجل | L191: غير مسجل | M191: غير مسجل | P191: 0 | R191: =SUMIFS(التسليمات!$N:$N,التسليمات!$G:$G,B191) -> 0 | U191: =IFERROR(VLOOKUP($K191,#REF!,3,0),"غير مسجل") -> غير مسجل | V191: =IFERROR(VLOOKUP($K191,#REF!,2,0),"غير مسجل") -> غير مسجل | W191: =IF($C191="طباعه ",IF($V191>$P191,$V191*VLOOKUP($K191,#REF!,3,0),$P191*VLOOKUP($K191,#REF!,3,0)),IF($C191="يوفي ",($L191*$M191*$P191*10/7)*VLOOKUP($K191,#REF!,3,0),"غير مسجل")) -> غير مسجل | X191: =IF($C191="طباعه ",VLOOKUP(K191,#REF!,4,0)*F191,"0") -> 0 | Z191: 0 | AB191: 0 | AC191: =SUMIFS($AB$4:AB191,$K$4:K191,K191) -> 0 | AE191: 0
A192: =IF(I192<>"",MAX($A$3:A191)+1,"") -> 189 | C192: =IFERROR(VLOOKUP($K192,#REF!,5,0),"غير مسجل") -> غير مسجل | G192: غير مسجل | H192: غير مسجل | I192: غير مسجل | J192: غير مسجل | L192: غير مسجل | M192: غير مسجل | P192: 0 | R192: =SUMIFS(التسليمات!$N:$N,التسليمات!$G:$G,B192) -> 0 | U192: =IFERROR(VLOOKUP($K192,#REF!,3,0),"غير مسجل") -> غير مسجل | V192: =IFERROR(VLOOKUP($K192,#REF!,2,0),"غير مسجل") -> غير مسجل | W192: =IF($C192="طباعه ",IF($V192>$P192,$V192*VLOOKUP($K192,#REF!,3,0),$P192*VLOOKUP($K192,#REF!,3,0)),IF($C192="يوفي ",($L192*$M192*$P192*10/7)*VLOOKUP($K192,#REF!,3,0),"غير مسجل")) -> غير مسجل | X192: =IF($C192="طباعه ",VLOOKUP(K192,#REF!,4,0)*F192,"0") -> 0 | Z192: 0 | AB192: 0 | AC192: =SUMIFS($AB$4:AB192,$K$4:K192,K192) -> 0 | AE192: 0
A193: =IF(I193<>"",MAX($A$3:A192)+1,"") -> 190 | C193: =IFERROR(VLOOKUP($K193,#REF!,5,0),"غير مسجل") -> غير مسجل | G193: غير مسجل | H193: غير مسجل | I193: غير مسجل | J193: غير مسجل | L193: غير مسجل | M193: غير مسجل | P193: 0 | R193: =SUMIFS(التسليمات!$N:$N,التسليمات!$G:$G,B193) -> 0 | U193: =IFERROR(VLOOKUP($K193,#REF!,3,0),"غير مسجل") -> غير مسجل | V193: =IFERROR(VLOOKUP($K193,#REF!,2,0),"غير مسجل") -> غير مسجل | W193: =IF($C193="طباعه ",IF($V193>$P193,$V193*VLOOKUP($K193,#REF!,3,0),$P193*VLOOKUP($K193,#REF!,3,0)),IF($C193="يوفي ",($L193*$M193*$P193*10/7)*VLOOKUP($K193,#REF!,3,0),"غير مسجل")) -> غير مسجل | X193: =IF($C193="طباعه ",VLOOKUP(K193,#REF!,4,0)*F193,"0") -> 0 | Z193: 0 | AB193: 0 | AC193: =SUMIFS($AB$4:AB193,$K$4:K193,K193) -> 0 | AE193: 0
A194: =IF(I194<>"",MAX($A$3:A193)+1,"") -> 191 | C194: =IFERROR(VLOOKUP($K194,#REF!,5,0),"غير مسجل") -> غير مسجل | G194: غير مسجل | H194: غير مسجل | I194: غير مسجل | J194: غير مسجل | L194: غير مسجل | M194: غير مسجل | P194: 0 | R194: =SUMIFS(التسليمات!$N:$N,التسليمات!$G:$G,B194) -> 0 | U194: =IFERROR(VLOOKUP($K194,#REF!,3,0),"غير مسجل") -> غير مسجل | V194: =IFERROR(VLOOKUP($K194,#REF!,2,0),"غير مسجل") -> غير مسجل | W194: =IF($C194="طباعه ",IF($V194>$P194,$V194*VLOOKUP($K194,#REF!,3,0),$P194*VLOOKUP($K194,#REF!,3,0)),IF($C194="يوفي ",($L194*$M194*$P194*10/7)*VLOOKUP($K194,#REF!,3,0),"غير مسجل")) -> غير مسجل | X194: =IF($C194="طباعه ",VLOOKUP(K194,#REF!,4,0)*F194,"0") -> 0 | Z194: 0 | AB194: 0 | AC194: =SUMIFS($AB$4:AB194,$K$4:K194,K194) -> 0 | AE194: 0
A195: =IF(I195<>"",MAX($A$3:A194)+1,"") -> 192 | C195: =IFERROR(VLOOKUP($K195,#REF!,5,0),"غير مسجل") -> غير مسجل | G195: غير مسجل | H195: غير مسجل | I195: غير مسجل | J195: غير مسجل | L195: غير مسجل | M195: غير مسجل | P195: 0 | R195: =SUMIFS(التسليمات!$N:$N,التسليمات!$G:$G,B195) -> 0 | U195: =IFERROR(VLOOKUP($K195,#REF!,3,0),"غير مسجل") -> غير مسجل | V195: =IFERROR(VLOOKUP($K195,#REF!,2,0),"غير مسجل") -> غير مسجل | W195: =IF($C195="طباعه ",IF($V195>$P195,$V195*VLOOKUP($K195,#REF!,3,0),$P195*VLOOKUP($K195,#REF!,3,0)),IF($C195="يوفي ",($L195*$M195*$P195*10/7)*VLOOKUP($K195,#REF!,3,0),"غير مسجل")) -> غير مسجل | X195: =IF($C195="طباعه ",VLOOKUP(K195,#REF!,4,0)*F195,"0") -> 0 | Z195: 0 | AB195: 0 | AC195: =SUMIFS($AB$4:AB195,$K$4:K195,K195) -> 0 | AE195: 0
A196: =IF(I196<>"",MAX($A$3:A195)+1,"") -> 193 | C196: =IFERROR(VLOOKUP($K196,#REF!,5,0),"غير مسجل") -> غير مسجل | G196: =IFERROR(VLOOKUP($B196,table3,5,0),"غير مسجل") -> غير مسجل | H196: =IFERROR(VLOOKUP($B196,table3,4,0),"غير مسجل") -> غير مسجل | I196: =IFERROR(VLOOKUP($B196,table3,3,0),"غير مسجل") -> غير مسجل | J196: =IFERROR(VLOOKUP($B196,table3,32,0),"غير مسجل") -> غير مسجل | L196: =IFERROR(VLOOKUP($B196,table3,10,0),"غير مسجل") -> غير مسجل | M196: =IFERROR(VLOOKUP($B196,table3,11,0),"غير مسجل") -> غير مسجل | P196: 0 | Q196: =IFERROR(VLOOKUP($I196,table2,17,0),"") ->  | R196: =SUMIFS(التسليمات!$N:$N,التسليمات!$G:$G,B196) -> 0 | T196: =IFERROR(($R196*$Q196)+$S196,"") ->  | U196: =IFERROR(VLOOKUP($K196,#REF!,3,0),"غير مسجل") -> غير مسجل | V196: =IFERROR(VLOOKUP($K196,#REF!,2,0),"غير مسجل") -> غير مسجل | W196: =IF($C196="طباعه ",IF($V196>$P196,$V196*VLOOKUP($K196,#REF!,3,0),$P196*VLOOKUP($K196,#REF!,3,0)),IF($C196="يوفي ",($L196*$M196*$P196*10/7)*VLOOKUP($K196,#REF!,3,0),"غير مسجل")) -> غير مسجل | X196: =IF($C196="طباعه ",VLOOKUP(K196,#REF!,4,0)*F196,"0") -> 0 | Z196: 0 | AB196: 0 | AC196: =SUMIFS($AB$4:AB196,$K$4:K196,K196) -> 0 | AE196: 0
A197: =IF(I197<>"",MAX($A$3:A196)+1,"") -> 194 | C197: =IFERROR(VLOOKUP($K197,#REF!,5,0),"غير مسجل") -> غير مسجل | G197: غير مسجل | H197: غير مسجل | I197: غير مسجل | J197: غير مسجل | L197: غير مسجل | M197: غير مسجل | P197: =N197+O197 -> 0 | R197: =SUMIFS(التسليمات!$N:$N,التسليمات!$G:$G,B197) -> 0 | U197: =IFERROR(VLOOKUP($K197,#REF!,3,0),"غير مسجل") -> غير مسجل | V197: =IFERROR(VLOOKUP($K197,#REF!,2,0),"غير مسجل") -> غير مسجل | W197: =IF($C197="طباعه ",IF($V197>$P197,$V197*VLOOKUP($K197,#REF!,3,0),$P197*VLOOKUP($K197,#REF!,3,0)),IF($C197="يوفي ",($L197*$M197*$P197*10/7)*VLOOKUP($K197,#REF!,3,0),"غير مسجل")) -> غير مسجل | X197: =IF($C197="طباعه ",VLOOKUP(K197,#REF!,4,0)*F197,"0") -> 0 | Z197: 0 | AB197: 0 | AC197: =SUMIFS($AB$4:AB197,$K$4:K197,K197) -> 0 | AE197: 0
A198: =IF(I198<>"",MAX($A$3:A197)+1,"") -> 195 | C198: =IFERROR(VLOOKUP($K198,#REF!,5,0),"غير مسجل") -> غير مسجل | G198: غير مسجل | H198: غير مسجل | I198: غير مسجل | J198: غير مسجل | L198: غير مسجل | M198: غير مسجل | P198: 0 | R198: =SUMIFS(التسليمات!$N:$N,التسليمات!$G:$G,B198) -> 0 | U198: =IFERROR(VLOOKUP($K198,#REF!,3,0),"غير مسجل") -> غير مسجل | V198: =IFERROR(VLOOKUP($K198,#REF!,2,0),"غير مسجل") -> غير مسجل | W198: =IF($C198="طباعه ",IF($V198>$P198,$V198*VLOOKUP($K198,#REF!,3,0),$P198*VLOOKUP($K198,#REF!,3,0)),IF($C198="يوفي ",($L198*$M198*$P198*10/7)*VLOOKUP($K198,#REF!,3,0),"غير مسجل")) -> غير مسجل | X198: =IF($C198="طباعه ",VLOOKUP(K198,#REF!,4,0)*F198,"0") -> 0 | Z198: 0 | AB198: 0 | AC198: =SUMIFS($AB$4:AB198,$K$4:K198,K198) -> 0 | AE198: 0
A199: =IF(I199<>"",MAX($A$3:A198)+1,"") -> 196 | C199: =IFERROR(VLOOKUP($K199,#REF!,5,0),"غير مسجل") -> غير مسجل | G199: غير مسجل | H199: غير مسجل | I199: غير مسجل | J199: غير مسجل | L199: غير مسجل | M199: غير مسجل | P199: 0 | R199: =SUMIFS(التسليمات!$N:$N,التسليمات!$G:$G,B199) -> 0 | U199: =IFERROR(VLOOKUP($K199,#REF!,3,0),"غير مسجل") -> غير مسجل | V199: =IFERROR(VLOOKUP($K199,#REF!,2,0),"غير مسجل") -> غير مسجل | W199: =IF($C199="طباعه ",IF($V199>$P199,$V199*VLOOKUP($K199,#REF!,3,0),$P199*VLOOKUP($K199,#REF!,3,0)),IF($C199="يوفي ",($L199*$M199*$P199*10/7)*VLOOKUP($K199,#REF!,3,0),"غير مسجل")) -> غير مسجل | X199: =IF($C199="طباعه ",VLOOKUP(K199,#REF!,4,0)*F199,"0") -> 0 | Z199: 0 | AB199: 0 | AC199: =SUMIFS($AB$4:AB199,$K$4:K199,K199) -> 0 | AE199: 0
A200: =IF(I200<>"",MAX($A$3:A199)+1,"") -> 197 | C200: =IFERROR(VLOOKUP($K200,#REF!,5,0),"غير مسجل") -> غير مسجل | G200: غير مسجل | H200: غير مسجل | I200: غير مسجل | J200: غير مسجل | L200: غير مسجل | M200: غير مسجل | P200: 0 | R200: =SUMIFS(التسليمات!$N:$N,التسليمات!$G:$G,B200) -> 0 | U200: =IFERROR(VLOOKUP($K200,#REF!,3,0),"غير مسجل") -> غير مسجل | V200: =IFERROR(VLOOKUP($K200,#REF!,2,0),"غير مسجل") -> غير مسجل | W200: =IF($C200="طباعه ",IF($V200>$P200,$V200*VLOOKUP($K200,#REF!,3,0),$P200*VLOOKUP($K200,#REF!,3,0)),IF($C200="يوفي ",($L200*$M200*$P200*10/7)*VLOOKUP($K200,#REF!,3,0),"غير مسجل")) -> غير مسجل | X200: =IF($C200="طباعه ",VLOOKUP(K200,#REF!,4,0)*F200,"0") -> 0 | Z200: 0 | AB200: 0 | AC200: =SUMIFS($AB$4:AB200,$K$4:K200,K200) -> 0 | AE200: 0
A201: =IF(I201<>"",MAX($A$3:A200)+1,"") -> 198 | C201: =IFERROR(VLOOKUP($K201,#REF!,5,0),"غير مسجل") -> غير مسجل | G201: غير مسجل | H201: غير مسجل | I201: غير مسجل | J201: غير مسجل | L201: غير مسجل | M201: غير مسجل | P201: 0 | R201: =SUMIFS(التسليمات!$N:$N,التسليمات!$G:$G,B201) -> 0 | U201: =IFERROR(VLOOKUP($K201,#REF!,3,0),"غير مسجل") -> غير مسجل | V201: =IFERROR(VLOOKUP($K201,#REF!,2,0),"غير مسجل") -> غير مسجل | W201: =IF($C201="طباعه ",IF($V201>$P201,$V201*VLOOKUP($K201,#REF!,3,0),$P201*VLOOKUP($K201,#REF!,3,0)),IF($C201="يوفي ",($L201*$M201*$P201*10/7)*VLOOKUP($K201,#REF!,3,0),"غير مسجل")) -> غير مسجل | X201: =IF($C201="طباعه ",VLOOKUP(K201,#REF!,4,0)*F201,"0") -> 0 | Z201: 0 | AB201: 0 | AC201: =SUMIFS($AB$4:AB201,$K$4:K201,K201) -> 0 | AE201: 0
... 38 more rows

Sheet تقرير الطباعه
A1: اسم العميل | B1: وحيد | E1: نقوم باختيار اسم العميل من هنا
A2: من تاريخ | B2: 2020-01-01 | E2: مدين | G2: دائن | I2: الرصيد
A3: الي تاريخ | B3: 2020-02-02 | E3: =SUM(R4:R10000) -> 0 | G3: =SUM(T6:T10000) -> 0 | I3: =E3-G3 -> 0 | L3: =Sheet1!$F$15:$F$19 -> 
A5: مسلسل | B5: رقم امر الشغل | C5: الصنف | E5: التاريخ | F5: زنكات | G5: اسم العميل | H5: اسم المصنع | I5: اسم المنتج | J5: عدد الالوان | K5: اسم المورد | L5: طول | M5: عرض | N5: الكميه | O5: الفرق | P5: اجمالي الكميه | Q5: عدد الشيتات | R5: الكميه الموردة | S5: الفرق | T5: اجمالي المورد | U5: السعر | V5: الحد الادني | W5: الاجمالي | X5: زنكات | Y5: الخصم | Z5: اجمالي | AA5: دفعات | AB5: الاجمالي العام | AC5: اجمالي مرحل
A6: =IF(I6<>"",MAX($A$3:A5)+1,"") -> 1 | B6: 3628 | C6: =IFERROR(VLOOKUP($K6,#REF!,5,0),"غير مسجل") -> غير مسجل | E6: 2020-01-01 | F6: 6 | G6: =IFERROR(VLOOKUP($B6,table3,5,0),"غير مسجل") -> غير مسجل | H6: =IFERROR(VLOOKUP($B6,table3,4,0),"غير مسجل") -> غير مسجل | I6: =IFERROR(VLOOKUP($B6,table3,3,0),"غير مسجل") -> غير مسجل | J6: =IFERROR(VLOOKUP($B6,table3,32,0),"غير مسجل") -> غير مسجل | K6: وحيد | L6: =IFERROR(VLOOKUP($B6,table3,10,0),"غير مسجل") -> غير مسجل | M6: =IFERROR(VLOOKUP($B6,table3,11,0),"غير مسجل") -> غير مسجل | N6: 2000 | P6: =N6+O6 -> 2000 | Q6: =IFERROR(VLOOKUP($I6,table2,17,0),"") ->  | R6: =SUMIFS(التسليمات!$N:$N,التسليمات!$G:$G,B6) -> 0 | T6: =IFERROR(($R6*$Q6)+$S6,"") ->  | U6: =IFERROR(VLOOKUP($K6,#REF!,3,0),"غير مسجل") -> غير مسجل | V6: =IFERROR(VLOOKUP($K6,#REF!,2,0),"غير مسجل") -> غير مسجل | W6: =IF($C6="طباعه ",IF($V6>$P6,$V6*VLOOKUP($K6,#REF!,3,0),$P6*VLOOKUP($K6,#REF!,3,0)),IF($C6="يوفي ",($L6*$M6*$P6*10/7)*VLOOKUP($K6,#REF!,3,0),"غير مسجل")) -> غير مسجل | X6: =IF($C6="طباعه ",VLOOKUP(K6,#REF!,4,0)*F6,"0") -> 0 | Z6: =IFERROR(W6+X6-Y6,"0") -> 0 | AB6: =Z6-AA6 -> 0 | AC6: =SUMIFS($AB$4:AB6,$K$4:K6,K6) -> 0
A7: =IF(I7<>"",MAX($A$3:A6)+1,"") -> 2 | B7: 3666 | C7: =IFERROR(VLOOKUP($K7,#REF!,5,0),"غير مسجل") -> غير مسجل | E7: 2020-01-01 | F7: 6 | G7: غير مسجل | H7: غير مسجل | I7: غير مسجل | J7: غير مسجل | K7: وحيد | L7: غير مسجل | M7: غير مسجل | N7: 2000 | P7: =N7+O7 -> 2000 | R7: =SUMIFS(التسليمات!$N:$N,التسليمات!$G:$G,B7) -> 0 | U7: =IFERROR(VLOOKUP($K7,#REF!,3,0),"غير مسجل") -> غير مسجل | V7: =IFERROR(VLOOKUP($K7,#REF!,2,0),"غير مسجل") -> غير مسجل | W7: =IF($C7="طباعه ",IF($V7>$P7,$V7*VLOOKUP($K7,#REF!,3,0),$P7*VLOOKUP($K7,#REF!,3,0)),IF($C7="يوفي ",($L7*$M7*$P7*10/7)*VLOOKUP($K7,#REF!,3,0),"غير مسجل")) -> غير مسجل | X7: =IF($C7="طباعه ",VLOOKUP(K7,#REF!,4,0)*F7,"0") -> 0 | Z7: =IFERROR(W7+X7-Y7,"0") -> 0 | AB7: =Z7-AA7 -> 0 | AC7: =SUMIFS($AB$4:AB7,$K$4:K7,K7) -> 0
A8: =IF(I8<>"",MAX($A$3:A7)+1,"") -> 3 | B8: 3682 | C8: =IFERROR(VLOOKUP($K8,#REF!,5,0),"غير مسجل") -> غير مسجل | E8: 2020-01-01 | F8: 6 | G8: غير مسجل | H8: غير مسجل | I8: غير مسجل | J8: غير مسجل | K8: وحيد | L8: غير مسجل | M8: غير مسجل | N8: 1500 | P8: 1500 | R8: =SUMIFS(التسليمات!$N:$N,التسليمات!$G:$G,B8) -> 0 | U8: =IFERROR(VLOOKUP($K8,#REF!,3,0),"غير مسجل") -> غير مسجل | V8: =IFERROR(VLOOKUP($K8,#REF!,2,0),"غير مسجل") -> غير مسجل | W8: =IF($C8="طباعه ",IF($V8>$P8,$V8*VLOOKUP($K8,#REF!,3,0),$P8*VLOOKUP($K8,#REF!,3,0)),IF($C8="يوفي ",($L8*$M8*$P8*10/7)*VLOOKUP($K8,#REF!,3,0),"غير مسجل")) -> غير مسجل | X8: =IF($C8="طباعه ",VLOOKUP(K8,#REF!,4,0)*F8,"0") -> 0 | Z8: 0 | AB8: =Z8-AA8 -> 0 | AC8: =SUMIFS($AB$4:AB8,$K$4:K8,K8) -> 0
A9: =IF(I9<>"",MAX($A$3:A8)+1,"") -> 4 | B9: 3682.1 | C9: =IFERROR(VLOOKUP($K9,#REF!,5,0),"غير مسجل") -> غير مسجل | E9: 2020-01-01 | F9: 6 | G9: غير مسجل | H9: غير مسجل | I9: غير مسجل | J9: غير مسجل | K9: وحيد | L9: غير مسجل | M9: غير مسجل | N9: 1500 | P9: 1500 | R9: =SUMIFS(التسليمات!$N:$N,التسليمات!$G:$G,B9) -> 0 | U9: =IFERROR(VLOOKUP($K9,#REF!,3,0),"غير مسجل") -> غير مسجل | V9: =IFERROR(VLOOKUP($K9,#REF!,2,0),"غير مسجل") -> غير مسجل | W9: =IF($C9="طباعه ",IF($V9>$P9,$V9*VLOOKUP($K9,#REF!,3,0),$P9*VLOOKUP($K9,#REF!,3,0)),IF($C9="يوفي ",($L9*$M9*$P9*10/7)*VLOOKUP($K9,#REF!,3,0),"غير مسجل")) -> غير مسجل | X9: =IF($C9="طباعه ",VLOOKUP(K9,#REF!,4,0)*F9,"0") -> 0 | Z9: 0 | AB9: 0 | AC9: =SUMIFS($AB$4:AB9,$K$4:K9,K9) -> 0
A10: =IF(I10<>"",MAX($A$3:A9)+1,"") -> 5 | B10: 3682.2 | C10: =IFERROR(VLOOKUP($K10,#REF!,5,0),"غير مسجل") -> غير مسجل | E10: 2020-01-01 | F10: 6 | G10: غير مسجل | H10: غير مسجل | I10: غير مسجل | J10: غير مسجل | K10: وحيد | L10: غير مسجل | M10: غير مسجل | N10: 1500 | P10: 1500 | R10: =SUMIFS(التسليمات!$N:$N,التسليمات!$G:$G,B10) -> 0 | U10: =IFERROR(VLOOKUP($K10,#REF!,3,0),"غير مسجل") -> غير مسجل | V10: =IFERROR(VLOOKUP($K10,#REF!,2,0),"غير مسجل") -> غير مسجل | W10: =IF($C10="طباعه ",IF($V10>$P10,$V10*VLOOKUP($K10,#REF!,3,0),$P10*VLOOKUP($K10,#REF!,3,0)),IF($C10="يوفي ",($L10*$M10*$P10*10/7)*VLOOKUP($K10,#REF!,3,0),"غير مسجل")) -> غير مسجل | X10: =IF($C10="طباعه ",VLOOKUP(K10,#REF!,4,0)*F10,"0") -> 0 | Z10: 0 | AB10: 0 | AC10: =SUMIFS($AB$4:AB10,$K$4:K10,K10) -> 0
A11: =IF(I11<>"",MAX($A$3:A10)+1,"") -> 6 | B11: 3682.3 | C11: =IFERROR(VLOOKUP($K11,#REF!,5,0),"غير مسجل") -> غير مسجل | E11: 2020-01-01 | F11: 6 | G11: غير مسجل | H11: غير مسجل | I11: غير مسجل | J11: غير مسجل | K11: وحيد | L11: غير مسجل | M11: غير مسجل | N11: 1500 | P11: 1500 | R11: =SUMIFS(التسليمات!$N:$N,التسليمات!$G:$G,B11) -> 0 | U11: =IFERROR(VLOOKUP($K11,#REF!,3,0),"غير مسجل") -> غير مسجل | V11: =IFERROR(VLOOKUP($K11,#REF!,2,0),"غير مسجل") -> غير مسجل | W11: =IF($C11="طباعه ",IF($V11>$P11,$V11*VLOOKUP($K11,#REF!,3,0),$P11*VLOOKUP($K11,#REF!,3,0)),IF($C11="يوفي ",($L11*$M11*$P11*10/7)*VLOOKUP($K11,#REF!,3,0),"غير مسجل")) -> غير مسجل | X11: =IF($C11="طباعه ",VLOOKUP(K11,#REF!,4,0)*F11,"0") -> 0 | Z11: 0 | AB11: 0 | AC11: =SUMIFS($AB$4:AB11,$K$4:K11,K11) -> 0
A12: =IF(I12<>"",MAX($A$3:A11)+1,"") -> 7 | B12: 3682.4 | C12: =IFERROR(VLOOKUP($K12,#REF!,5,0),"غير مسجل") -> غير مسجل | E12: 2020-01-01 | F12: 6 | G12: غير مسجل | H12: غير مسجل | I12: غير مسجل | J12: غير مسجل | K12: وحيد | L12: غير مسجل | M12: غير مسجل | N12: 1500 | P12: 1500 | R12: =SUMIFS(التسليمات!$N:$N,التسليمات!$G:$G,B12) -> 0 | U12: =IFERROR(VLOOKUP($K12,#REF!,3,0),"غير مسجل") -> غير مسجل | V12: =IFERROR(VLOOKUP($K12,#REF!,2,0),"غير مسجل") -> غير مسجل | W12: =IF($C12="طباعه ",IF($V12>$P12,$V12*VLOOKUP($K12,#REF!,3,0),$P12*VLOOKUP($K12,#REF!,3,0)),IF($C12="يوفي ",($L12*$M12*$P12*10/7)*VLOOKUP($K12,#REF!,3,0),"غير مسجل")) -> غير مسجل | X12: =IF($C12="طباعه ",VLOOKUP(K12,#REF!,4,0)*F12,"0") -> 0 | Z12: 0 | AB12: 0 | AC12: =SUMIFS($AB$4:AB12,$K$4:K12,K12) -> 0
A13: =IF(I13<>"",MAX($A$3:A12)+1,"") -> 8 | B13: 3681 | C13: =IFERROR(VLOOKUP($K13,#REF!,5,0),"غير مسجل") -> غير مسجل | E13: 2020-01-01 | F13: 6 | G13: غير مسجل | H13: غير مسجل | I13: غير مسجل | J13: غير مسجل | K13: وحيد | L13: غير مسجل | M13: غير مسجل | N13: 2550 | P13: 2550 | R13: =SUMIFS(التسليمات!$N:$N,التسليمات!$G:$G,B13) -> 0 | U13: =IFERROR(VLOOKUP($K13,#REF!,3,0),"غير مسجل") -> غير مسجل | V13: =IFERROR(VLOOKUP($K13,#REF!,2,0),"غير مسجل") -> غير مسجل | W13: =IF($C13="طباعه ",IF($V13>$P13,$V13*VLOOKUP($K13,#REF!,3,0),$P13*VLOOKUP($K13,#REF!,3,0)),IF($C13="يوفي ",($L13*$M13*$P13*10/7)*VLOOKUP($K13,#REF!,3,0),"غير مسجل")) -> غير مسجل | X13: =IF($C13="طباعه ",VLOOKUP(K13,#REF!,4,0)*F13,"0") -> 0 | Z13: 0 | AA13: 10000 | AB13: -10000 | AC13: =SUMIFS($AB$4:AB13,$K$4:K13,K13) -> -10000
A14: =IF(I14<>"",MAX($A$3:A13)+1,"") -> 9 | B14: 3681 | C14: =IFERROR(VLOOKUP($K14,#REF!,5,0),"غير مسجل") -> غير مسجل | E14: 2020-01-01 | F14: 6 | G14: غير مسجل | H14: غير مسجل | I14: غير مسجل | J14: غير مسجل | K14: وحيد | L14: غير مسجل | M14: غير مسجل | N14: 2550 | P14: 2550 | R14: =SUMIFS(التسليمات!$N:$N,التسليمات!$G:$G,B14) -> 0 | U14: =IFERROR(VLOOKUP($K14,#REF!,3,0),"غير مسجل") -> غير مسجل | V14: =IFERROR(VLOOKUP($K14,#REF!,2,0),"غير مسجل") -> غير مسجل | W14: =IF($C14="طباعه ",IF($V14>$P14,$V14*VLOOKUP($K14,#REF!,3,0),$P14*VLOOKUP($K14,#REF!,3,0)),IF($C14="يوفي ",($L14*$M14*$P14*10/7)*VLOOKUP($K14,#REF!,3,0),"غير مسجل")) -> غير مسجل | X14: =IF($C14="طباعه ",VLOOKUP(K14,#REF!,4,0)*F14,"0") -> 0 | Z14: 0 | AA14: 20000 | AB14: -20000 | AC14: =SUMIFS($AB$4:AB14,$K$4:K14,K14) -> -30000
A15: =IF(I15<>"",MAX($A$3:A14)+1,"") -> 10 | B15: 3674 | C15: =IFERROR(VLOOKUP($K15,#REF!,5,0),"غير مسجل") -> غير مسجل | E15: 2020-01-01 | F15: 6 | G15: غير مسجل | H15: غير مسجل | I15: غير مسجل | J15: غير مسجل | K15: وحيد | L15: غير مسجل | M15: غير مسجل | N15: 1500 | P15: 1500 | R15: =SUMIFS(التسليمات!$N:$N,التسليمات!$G:$G,B15) -> 0 | U15: =IFERROR(VLOOKUP($K15,#REF!,3,0),"غير مسجل") -> غير مسجل | V15: =IFERROR(VLOOKUP($K15,#REF!,2,0),"غير مسجل") -> غير مسجل | W15: =IF($C15="طباعه ",IF($V15>$P15,$V15*VLOOKUP($K15,#REF!,3,0),$P15*VLOOKUP($K15,#REF!,3,0)),IF($C15="يوفي ",($L15*$M15*$P15*10/7)*VLOOKUP($K15,#REF!,3,0),"غير مسجل")) -> غير مسجل | X15: =IF($C15="طباعه ",VLOOKUP(K15,#REF!,4,0)*F15,"0") -> 0 | Z15: 0 | AB15: 0 | AC15: =SUMIFS($AB$4:AB15,$K$4:K15,K15) -> -30000
A16: =IF(I16<>"",MAX($A$3:A15)+1,"") -> 11 | B16: 3674 | C16: =IFERROR(VLOOKUP($K16,#REF!,5,0),"غير مسجل") -> غير مسجل | E16: 2020-01-01 | F16: 6 | G16: غير مسجل | H16: غير مسجل | I16: غير مسجل | J16: غير مسجل | K16: وحيد | L16: غير مسجل | M16: غير مسجل | N16: 1500 | P16: 1500 | R16: =SUMIFS(التسليمات!$N:$N,التسليمات!$G:$G,B16) -> 0 | U16: =IFERROR(VLOOKUP($K16,#REF!,3,0),"غير مسجل") -> غير مسجل | V16: =IFERROR(VLOOKUP($K16,#REF!,2,0),"غير مسجل") -> غير مسجل | W16: =IF($C16="طباعه ",IF($V16>$P16,$V16*VLOOKUP($K16,#REF!,3,0),$P16*VLOOKUP($K16,#REF!,3,0)),IF($C16="يوفي ",($L16*$M16*$P16*10/7)*VLOOKUP($K16,#REF!,3,0),"غير مسجل")) -> غير مسجل | X16: =IF($C16="طباعه ",VLOOKUP(K16,#REF!,4,0)*F16,"0") -> 0 | Z16: 0 | AB16: 0 | AC16: =SUMIFS($AB$4:AB16,$K$4:K16,K16) -> -30000
A17: =IF(I17<>"",MAX($A$3:A16)+1,"") -> 12 | B17: 3669 | C17: =IFERROR(VLOOKUP($K17,#REF!,5,0),"غير مسجل") -> غير مسجل | E17: 2020-01-01 | G17: غير مسجل | H17: غير مسجل | I17: غير مسجل | J17: غير مسجل | K17: وحيد | L17: غير مسجل | M17: غير مسجل | N17: 1500 | P17: 1500 | R17: =SUMIFS(التسليمات!$N:$N,التسليمات!$G:$G,B17) -> 0 | U17: =IFERROR(VLOOKUP($K17,#REF!,3,0),"غير مسجل") -> غير مسجل | V17: =IFERROR(VLOOKUP($K17,#REF!,2,0),"غير مسجل") -> غير مسجل | W17: =IF($C17="طباعه ",IF($V17>$P17,$V17*VLOOKUP($K17,#REF!,3,0),$P17*VLOOKUP($K17,#REF!,3,0)),IF($C17="يوفي ",($L17*$M17*$P17*10/7)*VLOOKUP($K17,#REF!,3,0),"غير مسجل")) -> غير مسجل | X17: =IF($C17="طباعه ",VLOOKUP(K17,#REF!,4,0)*F17,"0") -> 0 | Z17: 0 | AB17: 0 | AC17: =SUMIFS($AB$4:AB17,$K$4:K17,K17) -> -30000
A18: =IF(I18<>"",MAX($A$3:A17)+1,"") -> 13 | B18: 3671 | C18: =IFERROR(VLOOKUP($K18,#REF!,5,0),"غير مسجل") -> غير مسجل | E18: 2020-01-01 | F18: 6 | G18: غير مسجل | H18: غير مسجل | I18: غير مسجل | J18: غير مسجل | K18: وحيد | L18: غير مسجل | M18: غير مسجل | N18: 4000 | P18: 4000 | R18: =SUMIFS(التسليمات!$N:$N,التسليمات!$G:$G,B18) -> 0 | U18: =IFERROR(VLOOKUP($K18,#REF!,3,0),"غير مسجل") -> غير مسجل | V18: =IFERROR(VLOOKUP($K18,#REF!,2,0),"غير مسجل") -> غير مسجل | W18: =IF($C18="طباعه ",IF($V18>$P18,$V18*VLOOKUP($K18,#REF!,3,0),$P18*VLOOKUP($K18,#REF!,3,0)),IF($C18="يوفي ",($L18*$M18*$P18*10/7)*VLOOKUP($K18,#REF!,3,0),"غير مسجل")) -> غير مسجل | X18: =IF($C18="طباعه ",VLOOKUP(K18,#REF!,4,0)*F18,"0") -> 0 | Z18: 0 | AB18: 0 | AC18: =SUMIFS($AB$4:AB18,$K$4:K18,K18) -> -30000
A19: =IF(I19<>"",MAX($A$3:A18)+1,"") -> 14 | B19: 3670 | C19: =IFERROR(VLOOKUP($K19,#REF!,5,0),"غير مسجل") -> غير مسجل | E19: 2020-01-01 | F19: 6 | G19: غير مسجل | H19: غير مسجل | I19: غير مسجل | J19: غير مسجل | K19: وحيد | L19: غير مسجل | M19: غير مسجل | N19: 5000 | P19: 5000 | R19: =SUMIFS(التسليمات!$N:$N,التسليمات!$G:$G,B19) -> 0 | U19: =IFERROR(VLOOKUP($K19,#REF!,3,0),"غير مسجل") -> غير مسجل | V19: =IFERROR(VLOOKUP($K19,#REF!,2,0),"غير مسجل") -> غير مسجل | W19: =IF($C19="طباعه ",IF($V19>$P19,$V19*VLOOKUP($K19,#REF!,3,0),$P19*VLOOKUP($K19,#REF!,3,0)),IF($C19="يوفي ",($L19*$M19*$P19*10/7)*VLOOKUP($K19,#REF!,3,0),"غير مسجل")) -> غير مسجل | X19: =IF($C19="طباعه ",VLOOKUP(K19,#REF!,4,0)*F19,"0") -> 0 | Z19: 0 | AB19: 0 | AC19: =SUMIFS($AB$4:AB19,$K$4:K19,K19) -> -30000
A20: =IF(I20<>"",MAX($A$3:A19)+1,"") -> 15 | B20: 3670.1 | C20: =IFERROR(VLOOKUP($K20,#REF!,5,0),"غير مسجل") -> غير مسجل | E20: 2020-01-01 | F20: 3 | G20: غير مسجل | H20: غير مسجل | I20: غير مسجل | J20: غير مسجل | K20: وحيد | L20: غير مسجل | M20: غير مسجل | N20: 5000 | P20: 5000 | R20: =SUMIFS(التسليمات!$N:$N,التسليمات!$G:$G,B20) -> 0 | U20: =IFERROR(VLOOKUP($K20,#REF!,3,0),"غير مسجل") -> غير مسجل | V20: =IFERROR(VLOOKUP($K20,#REF!,2,0),"غير مسجل") -> غير مسجل | W20: =IF($C20="طباعه ",IF($V20>$P20,$V20*VLOOKUP($K20,#REF!,3,0),$P20*VLOOKUP($K20,#REF!,3,0)),IF($C20="يوفي ",($L20*$M20*$P20*10/7)*VLOOKUP($K20,#REF!,3,0),"غير مسجل")) -> غير مسجل | X20: =IF($C20="طباعه ",VLOOKUP(K20,#REF!,4,0)*F20,"0") -> 0 | Z20: 0 | AB20: 0 | AC20: =SUMIFS($AB$4:AB20,$K$4:K20,K20) -> -30000
A21: =IF(I21<>"",MAX($A$3:A20)+1,"") -> 16 | B21: 3670.2 | C21: =IFERROR(VLOOKUP($K21,#REF!,5,0),"غير مسجل") -> غير مسجل | E21: 2020-01-01 | G21: غير مسجل | H21: غير مسجل | I21: غير مسجل | J21: غير مسجل | K21: وحيد | L21: غير مسجل | M21: غير مسجل | N21: 5000 | P21: 5000 | R21: =SUMIFS(التسليمات!$N:$N,التسليمات!$G:$G,B21) -> 0 | U21: =IFERROR(VLOOKUP($K21,#REF!,3,0),"غير مسجل") -> غير مسجل | V21: =IFERROR(VLOOKUP($K21,#REF!,2,0),"غير مسجل") -> غير مسجل | W21: =IF($C21="طباعه ",IF($V21>$P21,$V21*VLOOKUP($K21,#REF!,3,0),$P21*VLOOKUP($K21,#REF!,3,0)),IF($C21="يوفي ",($L21*$M21*$P21*10/7)*VLOOKUP($K21,#REF!,3,0),"غير مسجل")) -> غير مسجل | X21: =IF($C21="طباعه ",VLOOKUP(K21,#REF!,4,0)*F21,"0") -> 0 | Z21: 0 | AB21: 0 | AC21: =SUMIFS($AB$4:AB21,$K$4:K21,K21) -> -30000
A22: =IF(I22<>"",MAX($A$3:A21)+1,"") -> 17 | B22: 3683 | C22: =IFERROR(VLOOKUP($K22,#REF!,5,0),"غير مسجل") -> غير مسجل | E22: 2020-01-01 | F22: 6 | G22: غير مسجل | H22: غير مسجل | I22: غير مسجل | J22: غير مسجل | K22: وحيد | L22: غير مسجل | M22: غير مسجل | N22: 6000 | P22: 6000 | R22: =SUMIFS(التسليمات!$N:$N,التسليمات!$G:$G,B22) -> 0 | U22: =IFERROR(VLOOKUP($K22,#REF!,3,0),"غير مسجل") -> غير مسجل | V22: =IFERROR(VLOOKUP($K22,#REF!,2,0),"غير مسجل") -> غير مسجل | W22: =IF($C22="طباعه ",IF($V22>$P22,$V22*VLOOKUP($K22,#REF!,3,0),$P22*VLOOKUP($K22,#REF!,3,0)),IF($C22="يوفي ",($L22*$M22*$P22*10/7)*VLOOKUP($K22,#REF!,3,0),"غير مسجل")) -> غير مسجل | X22: =IF($C22="طباعه ",VLOOKUP(K22,#REF!,4,0)*F22,"0") -> 0 | Z22: 0 | AA22: 20000 | AB22: -20000 | AC22: =SUMIFS($AB$4:AB22,$K$4:K22,K22) -> -50000
A23: =IF(I23<>"",MAX($A$3:A22)+1,"") -> 18 | B23: 3683.1 | C23: =IFERROR(VLOOKUP($K23,#REF!,5,0),"غير مسجل") -> غير مسجل | E23: 2020-01-01 | F23: 6 | G23: غير مسجل | H23: غير مسجل | I23: غير مسجل | J23: غير مسجل | K23: وحيد | L23: غير مسجل | M23: غير مسجل | N23: 6000 | P23: 6000 | R23: =SUMIFS(التسليمات!$N:$N,التسليمات!$G:$G,B23) -> 0 | U23: =IFERROR(VLOOKUP($K23,#REF!,3,0),"غير مسجل") -> غير مسجل | V23: =IFERROR(VLOOKUP($K23,#REF!,2,0),"غير مسجل") -> غير مسجل | W23: =IF($C23="طباعه ",IF($V23>$P23,$V23*VLOOKUP($K23,#REF!,3,0),$P23*VLOOKUP($K23,#REF!,3,0)),IF($C23="يوفي ",($L23*$M23*$P23*10/7)*VLOOKUP($K23,#REF!,3,0),"غير مسجل")) -> غير مسجل | X23: =IF($C23="طباعه ",VLOOKUP(K23,#REF!,4,0)*F23,"0") -> 0 | Z23: 0 | AB23: 0 | AC23: =SUMIFS($AB$4:AB23,$K$4:K23,K23) -> -50000
A24: =IF(I24<>"",MAX($A$3:A23)+1,"") -> 19 | B24: 3683.2 | C24: =IFERROR(VLOOKUP($K24,#REF!,5,0),"غير مسجل") -> غير مسجل | E24: 2020-01-01 | F24: 6 | G24: غير مسجل | H24: غير مسجل | I24: غير مسجل | J24: غير مسجل | K24: وحيد | L24: غير مسجل | M24: غير مسجل | N24: 6000 | P24: 6000 | R24: =SUMIFS(التسليمات!$N:$N,التسليمات!$G:$G,B24) -> 0 | U24: =IFERROR(VLOOKUP($K24,#REF!,3,0),"غير مسجل") -> غير مسجل | V24: =IFERROR(VLOOKUP($K24,#REF!,2,0),"غير مسجل") -> غير مسجل | W24: =IF($C24="طباعه ",IF($V24>$P24,$V24*VLOOKUP($K24,#REF!,3,0),$P24*VLOOKUP($K24,#REF!,3,0)),IF($C24="يوفي ",($L24*$M24*$P24*10/7)*VLOOKUP($K24,#REF!,3,0),"غير مسجل")) -> غير مسجل | X24: =IF($C24="طباعه ",VLOOKUP(K24,#REF!,4,0)*F24,"0") -> 0 | Z24: 0 | AA24: 5655 | AB24: -5655 | AC24: =SUMIFS($AB$4:AB24,$K$4:K24,K24) -> -55655

Sheet Sheet1
B4: اسماء العملاء
B5: سمير
B6: سيد
B7: مسعود
F15: وحيد
F16: ابو اليزيد
F17: اسبوت يوفي - الراوي
F18: الفاباك
F19: فريندز - علاء
